Workbook

Sheet metadata
A1: sheet | B1: sheet description | D1: column | E1: sheet | F1: column description
A2: Domain | B2: congregated taxonomic information (summary terms) at the Domain level | D2: total reads | E2: Domain | F2: total number of reads
A3: Kingdom | B3: congregated taxonomic information (summary terms) at the Kingdom level | D3: assigned_number | E3: Domain | F3: number given my researcher
A4: Phylum | B4: congregated taxonomic information (summary terms) at the Phylum level | D4: domain | E4: Domain | F4: domain group
A5: Class | B5: congregated taxonomic information (summary terms) at the Class level | D5: taxonomy_id | E5: Domain | F5: number given during Kracken-Bracken analysis
A6: Order | B6: congregated taxonomic information (summary terms) at the Order level | D6: sample02 | E6: Domain | F6: Farm A, tank biofilm
A7: Species | B7: congregated taxonomic information (summary terms) at the Species level | D7: sample03 | E7: Domain | F7: Farm A, tank biofilm
A8: Fish_Pathogens | B8: detected fish pathogen and relative information regarding the disease | D8: sample08 | E8: Domain | F8: Farm A, tank water
D9: sample09 | E9: Domain | F9: Farm A, tank water
D10: sample10 | E10: Domain | F10: Farm A, biofilter water
D11: sample11 | E11: Domain | F11: Farm A, biofilter water
D12: total_sample_reads | E12: Domain | F12: total number of reads per sample
D13: total_sample_reads_perc | E13: Domain | F13: percentage of reads / sample based on total reads
D14: total reads | E14: Kingdom | F14: total number of reads
D15: assigned_number | E15: Kingdom | F15: number given my researcher
D16: kingdom | E16: Kingdom | F16: kingdom group
D17: taxonomy_id | E17: Kingdom | F17: number given during Kracken-Bracken analysis
D18: sample02 | E18: Kingdom | F18: Farm A, tank biofilm
D19: sample03 | E19: Kingdom | F19: Farm A, tank biofilm
D20: sample08 | E20: Kingdom | F20: Farm A, tank water
D21: sample09 | E21: Kingdom | F21: Farm A, tank water
D22: sample10 | E22: Kingdom | F22: Farm A, biofilter water
D23: sample11 | E23: Kingdom | F23: Farm A, biofilter water
D24: total_sample_reads | E24: Kingdom | F24: total number of reads per sample
D25: total_sample_reads_perc | E25: Kingdom | F25: percentage of reads / sample based on total reads
D26: total reads | E26: Phylum | F26: total number of reads
D27: assigned_number | E27: Phylum | F27: number given my researcher
D28: phylum | E28: Phylum | F28: phylum group
D29: taxonomy_id | E29: Phylum | F29: number given during Kracken-Bracken analysis
D30: sample02 | E30: Phylum | F30: Farm A, tank biofilm
D31: sample03 | E31: Phylum | F31: Farm A, tank biofilm
D32: sample08 | E32: Phylum | F32: Farm A, tank water
D33: sample09 | E33: Phylum | F33: Farm A, tank water
D34: sample10 | E34: Phylum | F34: Farm A, biofilter water
D35: sample11 | E35: Phylum | F35: Farm A, biofilter water
D36: total_sample_reads | E36: Phylum | F36: total number of reads per sample
D37: total_sample_reads_perc | E37: Phylum | F37: percentage of reads / sample based on total reads
D38: total reads | E38: Class | F38: total number of reads
D39: assigned_number | E39: Class | F39: number given my researcher
D40: class | E40: Class | F40: class group
D41: taxonomy_id | E41: Class | F41: number given during Kracken-Bracken analysis
D42: sample02 | E42: Class | F42: Farm A, tank biofilm
D43: sample03 | E43: Class | F43: Farm A, tank biofilm
D44: sample08 | E44: Class | F44: Farm A, tank water
D45: sample09 | E45: Class | F45: Farm A, tank water
D46: sample10 | E46: Class | F46: Farm A, biofilter water
D47: sample11 | E47: Class | F47: Farm A, biofilter water
D48: total_sample_reads | E48: Class | F48: percentage of reads / sample based on total reads
D49: total_sample_reads_perc | E49: Class | F49: percentage of reads / sample
D50: total reads | E50: Order | F50: total number of reads
D51: assigned_number | E51: Order | F51: number given my researcher
D52: order | E52: Order | F52: order group
D53: taxonomy_id | E53: Order | F53: number given during Kracken-Bracken analysis
D54: sample02 | E54: Order | F54: Farm A, tank biofilm
D55: sample03 | E55: Order | F55: Farm A, tank biofilm
D56: sample08 | E56: Order | F56: Farm A, tank water
D57: sample09 | E57: Order | F57: Farm A, tank water
D58: sample10 | E58: Order | F58: Farm A, biofilter water
D59: sample11 | E59: Order | F59: Farm A, biofilter water
D60: total_sample_reads | E60: Order | F60: total number of reads per sample
D61: total_sample_reads_perc | E61: Order | F61: percentage of reads / sample based on total reads
D62: total reads | E62: Species | F62: total number of reads
D63: assigned_number | E63: Species | F63: number given my researcher
D64: species | E64: Species | F64: species group
D65: taxonomy_id | E65: Species | F65: number given during Kracken-Bracken analysis
D66: sample02 | E66: Species | F66: Farm A, tank biofilm
D67: sample03 | E67: Species | F67: Farm A, tank biofilm
D68: sample08 | E68: Species | F68: Farm A, tank water
D69: sample09 | E69: Species | F69: Farm A, tank water
D70: sample10 | E70: Species | F70: Farm A, biofilter water
D71: sample11 | E71: Species | F71: Farm A, biofilter water
D72: total_sample_reads | E72: Species | F72: total number of reads per sample
D73: total_sample_reads_perc | E73: Species | F73: percentage of reads / sample based on total reads
D74: assigned_number | E74: Fish_Pathogen | F74: number given my researcher
D75: species | E75: Fish_Pathogen | F75: species group
D76: sample02 | E76: Fish_Pathogen | F76: Farm A, tank biofilm
D77: sample03 | E77: Fish_Pathogen | F77: Farm A, tank biofilm
D78: sample08 | E78: Fish_Pathogen | F78: Farm A, tank water
D79: sample09 | E79: Fish_Pathogen | F79: Farm A, tank water
D80: sample10 | E80: Fish_Pathogen | F80: Farm A, biofilter water
D81: sample11 | E81: Fish_Pathogen | F81: Farm A, biofilter water
D82: total_sample_reads | E82: Fish_Pathogen | F82: total number of reads per sample
D83: total_sample_reads_perc | E83: Fish_Pathogen | F83: percentage of reads / sample based on total reads
D84: disease_or_symptoms | E84: Fish_Pathogen | F84: disease or symptom caused by pathogen
D85: potential_candidates | E85: Fish_Pathogen | F85: potentially effected organsim

Sheet Domain
A1: total reads | C1: assigned_number | D1: domain | E1: taxonomy_id | F1: sample02 | G1: sample03 | H1: sample08 | I1: sample09 | J1: sample10 | K1: sample11 | L1: total_sample_reads | M1: total_sample_reads_perc
A2: =SUM(L2:L5) -> 404118656 | C2: 1 | D2: Bacteria | E2: 2 | F2: 52698704 | G2: 62893581 | H2: 56534366 | I2: 51690393 | J2: 41453378 | K2: 40049653 | L2: =SUM(J2,K2,F2,G2,H2,I2) -> 305320075 | M2: =(L2/$A$2)*100 -> 75.55
C3: 2 | D3: Eukaryota | E3: 2759 | F3: 14933959 | G3: 16797299 | H3: 20208559 | I3: 13996092 | J3: 15377285 | K3: 15548522 | L3: =SUM(J3,K3,F3,G3,H3,I3) -> 96861716 | M3: =(L3/$A$2)*100 -> 23.97
C4: 3 | D4: Archaea | E4: 2157 | F4: 135891 | G4: 148994 | H4: 133533 | I4: 120442 | J4: 204090 | K4: 212784 | L4: =SUM(J4,K4,F4,G4,H4,I4) -> 955734 | M4: 0.24
C5: 4 | D5: Viruses | E5: 10239 | F5: 154807 | G5: 172743 | H5: 180033 | I5: 152544 | J5: 158320 | K5: 162684 | L5: =SUM(J5,K5,F5,G5,H5,I5) -> 981131 | M5: 0.24

Sheet Kingdom
A1: total reads | C1: assigned_number | D1: kingdom | E1: taxonomy_id | F1: sample02 | G1: sample03 | H1: sample08 | I1: sample09 | J1: sample10 | K1: sample11 | L1: total_sample_reads | M1: total_sample_reads_perc
A2: =SUM(L2:L14) -> 92249764 | C2: 1 | D2: Metazoa | E2: 33208 | F2: 12207235 | G2: 13711011 | H2: 17370530 | I2: 11630727 | J2: 12240257 | K2: 12374166 | L2: =SUM(J2,K2,F2,G2,H2,I2) -> 79533926 | M2: 86.22
C3: 2 | D3: Fungi | E3: 4751 | F3: 645944 | G3: 713219 | H3: 598437 | I3: 520640 | J3: 766342 | K3: 795736 | L3: =SUM(J3,K3,F3,G3,H3,I3) -> 4040318 | M3: 4.38
C4: 3 | D4: Viridiplantae | E4: 33090 | F4: 1242581 | G4: 1378947 | H4: 1315180 | I4: 1087056 | J4: 1380455 | K4: 1420748 | L4: =SUM(J4,K4,F4,G4,H4,I4) -> 7824967 | M4: 8.48
C5: 4 | D5: Heunggongvirae | E5: 2731360 | F5: 109767 | G5: 123037 | H5: 130700 | I5: 110452 | J5: 107391 | K5: 109848 | L5: =SUM(J5,K5,F5,G5,H5,I5) -> 691195 | M5: 0.75
C6: 5 | D6: Orthornavirae | E6: 2732396 | F6: 12580 | G6: 13784 | H6: 12323 | I6: 10548 | J6: 14159 | K6: 15102 | L6: =SUM(J6,K6,F6,G6,H6,I6) -> 78496 | M6: 0.09
C7: 6 | D7: Pararnavirae | E7: 2732397 | F7: 2489 | G7: 2679 | H7: 2827 | I7: 2395 | J7: 2967 | K7: 2929 | L7: =SUM(J7,K7,F7,G7,H7,I7) -> 16286 | M7: 0.02
C8: 7 | D8: Bamfordvirae | E8: 2732005 | F8: 6836 | G8: 7667 | H8: 8442 | I8: 6913 | J8: 8123 | K8: 8162 | L8: =SUM(J8,K8,F8,G8,H8,I8) -> 46143 | M8: 0.05
C9: 8 | D9: Helvetiavirae | E9: 2732006 | F9: 27 | G9: 17 | H9: 14 | I9: 20 | J9: 35 | K9: 37 | L9: =SUM(J9,K9,F9,G9,H9,I9) -> 150 | M9: 0.00
C10: 9 | D10: Shotokuvirae | E10: 2732092 | F10: 1046 | G10: 1082 | H10: 1425 | I10: 1220 | J10: 1485 | K10: 1633 | L10: =SUM(J10,K10,F10,G10,H10,I10) -> 7891 | M10: 0.01
C11: 10 | D11: Sangervirae | E11: 2732091 | F11: 1204 | G11: 1342 | H11: 1496 | I11: 1262 | J11: 1322 | K11: 1389 | L11: =SUM(J11,K11,F11,G11,H11,I11) -> 8015 | M11: 0.01
C12: 11 | D12: Loebvirae | E12: 2732090 | F12: 256 | G12: 310 | H12: 406 | I12: 375 | J12: 460 | K12: 408 | L12: =SUM(J12,K12,F12,G12,H12,I12) -> 2215 | M12: 0.00
C13: 12 | D13: Trapavirae | E13: 2732093 | F13: 2 | G13: 3 | H13: 6 | I13: 4 | J13: 22 | K13: 21 | L13: =SUM(J13,K13,F13,G13,H13,I13) -> 58 | M13: 0.00
C14: 13 | D14: Zilligvirae | E14: 2840023 | F14: 12 | G14: 14 | H14: 31 | I14: 18 | J14: 14 | K14: 15 | L14: =SUM(J14,K14,F14,G14,H14,I14) -> 104 | M14: 0.00

Sheet Phylum
A1: total_reads | C1: assigned_number | D1: phyla | E1: taxonomy_id | F1: sample02 | G1: sample03 | H1: sample08 | I1: sample09 | J1: sample10 | K1: sample11 | L1: total_sample_reads | M1: total_sample_reads_perc
A2: =SUM(L2:L182) -> 381392357 | C2: 1 | D2: Proteobacteria | E2: 1224 | F2: 39238342 | G2: 47277250 | H2: 38586227 | I2: 34688101 | J2: 25076431 | K2: 23813896 | L2: =SUM(J2,K2,F2,G2,H2,I2) -> 208680247 | M2: 54.72
C3: 82 | D3: Arthropoda | E3: 6656 | F3: 6823270 | G3: 7691863 | H3: 6662585 | I3: 5427625 | J3: 6307215 | K3: 6333121 | L3: =SUM(J3,K3,F3,G3,H3,I3) -> 39245679 | M3: 10.29
C4: 2 | D4: Actinobacteria | E4: 201174 | F4: 6235871 | G4: 7267873 | H4: 5365517 | I4: 5812785 | J4: 5731115 | K4: 5723433 | L4: =SUM(J4,K4,F4,G4,H4,I4) -> 36136594 | M4: 9.47
C5: 10 | D5: Bacteroidetes | E5: 976 | F5: 3635637 | G5: 4179557 | H5: 8182075 | I5: 7014076 | J5: 3996820 | K5: 3690095 | L5: =SUM(J5,K5,F5,G5,H5,I5) -> 30698260 | M5: 8.05
C6: 104 | D6: Chordata | E6: 7711 | F6: 3934820 | G6: 4300025 | H6: 8948845 | I6: 4790957 | J6: 4276659 | K6: 4427653 | L6: =SUM(J6,K6,F6,G6,H6,I6) -> 30678959 | M6: 8.04
C7: 122 | D7: Streptophyta | E7: 35493 | F7: 1185063 | G7: 1313499 | H7: 1263970 | I7: 1041582 | J7: 1307613 | K7: 1344661 | L7: =SUM(J7,K7,F7,G7,H7,I7) -> 7456388 | M7: 1.96
C8: 23 | D8: Nitrospirae | E8: 40117 | F8: 55600 | G8: 64744 | H8: 716716 | I8: 759598 | J8: 1555709 | K8: 1736853 | L8: =SUM(J8,K8,F8,G8,H8,I8) -> 4889220 | M8: 1.28
C9: 3 | D9: Firmicutes | E9: 1239 | F9: 571485 | G9: 625471 | H9: 651722 | I9: 574843 | J9: 686529 | K9: 686469 | L9: =SUM(J9,K9,F9,G9,H9,I9) -> 3796519 | M9: 1.00
C10: 112 | D10: Ascomycota | E10: 4890 | F10: 482364 | G10: 532589 | H10: 449896 | I10: 391033 | J10: 570816 | K10: 592680 | L10: =SUM(J10,K10,F10,G10,H10,I10) -> 3019378 | M10: 0.79
C11: 24 | D11: Planctomycetes | E11: 203682 | F11: 311559 | G11: 348626 | H11: 350737 | I11: 340570 | J11: 710481 | K11: 756234 | L11: =SUM(J11,K11,F11,G11,H11,I11) -> 2818207 | M11: 0.74
C12: 89 | D12: Mollusca | E12: 6447 | F12: 300813 | G12: 332156 | H12: 333893 | I12: 277154 | J12: 328017 | K12: 336742 | L12: =SUM(J12,K12,F12,G12,H12,I12) -> 1908775 | M12: 0.50
C13: 4 | D13: Cyanobacteria | E13: 1117 | F13: 141720 | G13: 158990 | H13: 154720 | I13: 136192 | J13: 210790 | K13: 208771 | L13: =SUM(J13,K13,F13,G13,H13,I13) -> 1011183 | M13: 0.27
C14: 25 | D14: Verrucomicrobia | E14: 74201 | F14: 103101 | G14: 112998 | H14: 124489 | I14: 112602 | J14: 242252 | K14: 237598 | L14: =SUM(J14,K14,F14,G14,H14,I14) -> 933040 | M14: 0.24
C15: 16 | D15: Gemmatimonadetes | E15: 142182 | F15: 195922 | G15: 230961 | H15: 66342 | I15: 63128 | J15: 146254 | K15: 149692 | L15: =SUM(J15,K15,F15,G15,H15,I15) -> 852299 | M15: 0.22
C16: 113 | D16: Basidiomycota | E16: 5204 | F16: 128703 | G16: 142345 | H16: 116167 | I16: 102106 | J16: 158872 | K16: 166021 | L16: =SUM(J16,K16,F16,G16,H16,I16) -> 814214 | M16: 0.21
C17: 145 | D17: Euryarchaeota | E17: 28890 | F17: 111036 | G17: 121775 | H17: 104818 | I17: 95879 | J17: 172331 | K17: 180470 | L17: =SUM(J17,K17,F17,G17,H17,I17) -> 786309 | M17: 0.21
C18: 30 | D18: Acidobacteria | E18: 57723 | F18: 74277 | G18: 86889 | H18: 83404 | I18: 80418 | J18: 185412 | K18: 207001 | L18: =SUM(J18,K18,F18,G18,H18,I18) -> 717401 | M18: 0.19
C19: 85 | D19: Nematoda | E19: 6231 | F19: 125359 | G19: 169803 | H19: 120115 | I19: 99404 | J19: 91799 | K19: 94404 | L19: =SUM(J19,K19,F19,G19,H19,I19) -> 700884 | M19: 0.18
C20: 160 | D20: Uroviricota | E20: 2731618 | F20: 107776 | G20: 120769 | H20: 128637 | I20: 108629 | J20: 104592 | K20: 106920 | L20: =SUM(J20,K20,F20,G20,H20,I20) -> 677323 | M20: 0.18
C21: 7 | D21: Deinococcus-Thermus | E21: 1297 | F21: 64703 | G21: 65374 | H21: 143165 | I21: 182285 | J21: 80158 | K21: 80930 | L21: =SUM(J21,K21,F21,G21,H21,I21) -> 616615 | M21: 0.16
C22: 90 | D22: Platyhelminthes | E22: 6157 | F22: 94058 | G22: 103599 | H22: 95000 | I22: 78741 | J22: 101604 | K22: 104872 | L22: =SUM(J22,K22,F22,G22,H22,I22) -> 577874 | M22: 0.15
C23: 6 | D23: Chloroflexi | E23: 200795 | F23: 39369 | G23: 43549 | H23: 45783 | I23: 45458 | J23: 102688 | K23: 98842 | L23: =SUM(J23,K23,F23,G23,H23,I23) -> 375689 | M23: 0.10
C24: 105 | D24: Echinodermata | E24: 7586 | F24: 56987 | G24: 62629 | H24: 61583 | I24: 51320 | J24: 64639 | K24: 66540 | L24: =SUM(J24,K24,F24,G24,H24,I24) -> 363698 | M24: 0.10
C25: 123 | D25: Chlorophyta | E25: 3041 | F25: 55373 | G25: 62941 | H25: 49162 | I25: 43692 | J25: 70148 | K25: 73335 | L25: =SUM(J25,K25,F25,G25,H25,I25) -> 354651 | M25: 0.09
C26: 108 | D26: Cnidaria | E26: 6073 | F26: 52068 | G26: 57400 | H26: 58587 | I26: 48647 | J26: 59272 | K26: 61255 | L26: =SUM(J26,K26,F26,G26,H26,I26) -> 337229 | M26: 0.09
C27: 125 | D27: Apicomplexa | E27: 5794 | F27: 49733 | G27: 55666 | H27: 50310 | I27: 41023 | J27: 51539 | K27: 53100 | L27: =SUM(J27,K27,F27,G27,H27,I27) -> 301371 | M27: 0.08
C28: 31 | D28: Spirochaetes | E28: 203691 | F28: 23247 | G28: 26007 | H28: 26908 | I28: 23012 | J28: 35685 | K28: 35682 | L28: =SUM(J28,K28,F28,G28,H28,I28) -> 170541 | M28: 0.04
C29: 134 | D29: Euglenozoa | E29: 33682 | F29: 25690 | G29: 28487 | H29: 24027 | I29: 20904 | J29: 32849 | K29: 34665 | L29: =SUM(J29,K29,F29,G29,H29,I29) -> 166622 | M29: 0.04
C30: 128 | D30: Oomycota | E30: 4762 | F30: 24326 | G30: 26303 | H30: 22089 | I30: 19613 | J30: 31364 | K30: 34166 | L30: =SUM(J30,K30,F30,G30,H30,I30) -> 157861 | M30: 0.04
C31: 8 | D31: Tenericutes | E31: 544448 | F31: 19992 | G31: 22695 | H31: 24573 | I31: 20052 | J31: 21712 | K31: 21009 | L31: =SUM(J31,K31,F31,G31,H31,I31) -> 130033 | M31: 0.03
C32: 114 | D32: Mucoromycota | E32: 1913637 | F32: 18694 | G32: 20270 | H32: 20105 | I32: 16755 | J32: 18733 | K32: 18612 | L32: =SUM(J32,K32,F32,G32,H32,I32) -> 113169 | M32: 0.03
C33: 126 | D33: Ciliophora | E33: 5878 | F33: 26862 | G33: 30446 | H33: 15126 | I33: 11093 | J33: 13126 | K33: 13455 | L33: =SUM(J33,K33,F33,G33,H33,I33) -> 110108 | M33: 0.03
C34: 11 | D34: Chlorobi | E34: 1090 | F34: 13785 | G34: 15528 | H34: 13456 | I34: 11213 | J34: 19114 | K34: 18107 | L34: =SUM(J34,K34,F34,G34,H34,I34) -> 91203 | M34: 0.02
C35: 91 | D35: Nemertea | E35: 6217 | F35: 13470 | G35: 14695 | H35: 14714 | I35: 11935 | J35: 16138 | K35: 16846 | L35: =SUM(J35,K35,F35,G35,H35,I35) -> 87798 | M35: 0.02
C36: 92 | D36: Bryozoa | E36: 10205 | F36: 13454 | G36: 14711 | H36: 14188 | I36: 12097 | J36: 15494 | K36: 15757 | L36: =SUM(J36,K36,F36,G36,H36,I36) -> 85701 | M36: 0.02
C37: 136 | D37: Evosea | E37: 2605435 | F37: 10874 | G37: 12021 | H37: 11303 | I37: 9177 | J37: 11132 | K37: 11097 | L37: =SUM(J37,K37,F37,G37,H37,I37) -> 65604 | M37: 0.02
C38: 101 | D38: Rotifera | E38: 10190 | F38: 8180 | G38: 9671 | H38: 12877 | I38: 10947 | J38: 11446 | K38: 12225 | L38: =SUM(J38,K38,F38,G38,H38,I38) -> 65346 | M38: 0.02
C39: 9 | D39: Armatimonadetes | E39: 67819 | F39: 8535 | G39: 9971 | H39: 7875 | I39: 7400 | J39: 15102 | K39: 15700 | L39: =SUM(J39,K39,F39,G39,H39,I39) -> 64583 | M39: 0.02
C40: 67 | D40: Fusobacteria | E40: 32066 | F40: 8655 | G40: 9918 | H40: 12552 | I40: 10492 | J40: 10710 | K40: 10391 | L40: =SUM(J40,K40,F40,G40,H40,I40) -> 62718 | M40: 0.02
C41: 55 | D41: Candidatus Absconditabacteria | E41: 221235 | F41: 462 | G41: 444 | H41: 26013 | I41: 22304 | J41: 2061 | K41: 1914 | L41: =SUM(J41,K41,F41,G41,H41,I41) -> 53198 | M41: 0.01
C42: 146 | D42: Crenarchaeota | E42: 28889 | F42: 7996 | G42: 8804 | H42: 8098 | I42: 6907 | J42: 8915 | K42: 9172 | L42: =SUM(J42,K42,F42,G42,H42,I42) -> 49892 | M42: 0.01
C43: 139 | D43: Haptophyta | E43: 2830 | F43: 6626 | G43: 7381 | H43: 6011 | I43: 5475 | J43: 10593 | K43: 11118 | L43: =SUM(J43,K43,F43,G43,H43,I43) -> 47204 | M43: 0.01
C44: 12 | D44: Ignavibacteriae | E44: 1134404 | F44: 6566 | G44: 7439 | H44: 8021 | I44: 6809 | J44: 8649 | K44: 8313 | L44: =SUM(J44,K44,F44,G44,H44,I44) -> 45797 | M44: 0.01
C45: 26 | D45: Chlamydiae | E45: 204428 | F45: 4230 | G45: 4812 | H45: 7598 | I45: 6760 | J45: 11756 | K45: 9506 | L45: =SUM(J45,K45,F45,G45,H45,I45) -> 44662 | M45: 0.01
C46: 140 | D46: Rhodophyta | E46: 2763 | F46: 6857 | G46: 7727 | H46: 7189 | I46: 6084 | J46: 7913 | K46: 8027 | L46: =SUM(J46,K46,F46,G46,H46,I46) -> 43797 | M46: 0.01
C47: 168 | D47: Nucleocytoviricota | E47: 2732007 | F47: 6336 | G47: 7180 | H47: 7944 | I47: 6466 | J47: 7589 | K47: 7637 | L47: =SUM(J47,K47,F47,G47,H47,I47) -> 43152 | M47: 0.01
C48: 68 | D48: Thermotogae | E48: 200918 | F48: 5319 | G48: 5878 | H48: 5706 | I48: 4873 | J48: 6775 | K48: 6570 | L48: =SUM(J48,K48,F48,G48,H48,I48) -> 35121 | M48: 0.01
C49: 147 | D49: Thaumarchaeota | E49: 651137 | F49: 4866 | G49: 5369 | H49: 6007 | I49: 5135 | J49: 6434 | K49: 6210 | L49: =SUM(J49,K49,F49,G49,H49,I49) -> 34021 | M49: 0.01
C50: 135 | D50: Heterolobosea | E50: 5752 | F50: 5190 | G50: 5769 | H50: 4984 | I50: 4125 | J50: 5047 | K50: 5292 | L50: =SUM(J50,K50,F50,G50,H50,I50) -> 30407 | M50: 0.01
C51: 162 | D51: Pisuviricota | E51: 2732408 | F51: 4920 | G51: 5559 | H51: 4732 | I51: 3961 | J51: 5127 | K51: 5450 | L51: =SUM(J51,K51,F51,G51,H51,I51) -> 29749 | M51: 0.01
C52: 51 | D52: Candidatus Saccharibacteria | E52: 95818 | F52: 3605 | G52: 3876 | H52: 5013 | I52: 4468 | J52: 6072 | K52: 5879 | L52: =SUM(J52,K52,F52,G52,H52,I52) -> 28913 | M52: 0.01
C53: 150 | D53: Candidatus Thermoplasmatota | E53: 2283796 | F53: 3708 | G53: 4102 | H53: 4927 | I53: 4364 | J53: 5566 | K53: 5618 | L53: =SUM(J53,K53,F53,G53,H53,I53) -> 28285 | M53: 0.01
C54: 137 | D54: Discosea | E54: 555280 | F54: 4039 | G54: 4577 | H54: 3610 | I54: 3359 | J54: 6108 | K54: 6406 | L54: =SUM(J54,K54,F54,G54,H54,I54) -> 28099 | M54: 0.01
C55: 69 | D55: Synergistetes | E55: 508458 | F55: 3853 | G55: 4448 | H55: 3642 | I55: 3357 | J55: 5942 | K55: 6216 | L55: =SUM(J55,K55,F55,G55,H55,I55) -> 27458 | M55: 0.01
C56: 13 | D56: Balneolaeota | E56: 1936987 | F56: 4191 | G56: 4516 | H56: 4624 | I56: 3946 | J56: 5036 | K56: 4898 | L56: =SUM(J56,K56,F56,G56,H56,I56) -> 27211 | M56: 0.01
C57: 18 | D57: candidate division Zixibacteria | E57: 1379697 | F57: 3326 | G57: 3539 | H57: 3605 | I57: 3201 | J57: 5734 | K57: 5910 | L57: =SUM(J57,K57,F57,G57,H57,I57) -> 25315 | M57: 0.01
C58: 93 | D58: Annelida | E58: 6340 | F58: 3441 | G58: 3847 | H58: 3677 | I58: 2904 | J58: 5079 | K58: 6033 | L58: =SUM(J58,K58,F58,G58,H58,I58) -> 24981 | M58: 0.01
C59: 17 | D59: Candidatus Latescibacteria | E59: 74015 | F59: 2930 | G59: 3290 | H59: 3096 | I59: 2943 | J59: 5995 | K59: 6201 | L59: =SUM(J59,K59,F59,G59,H59,I59) -> 24455 | M59: 0.01
C60: 129 | D60: Bacillariophyta | E60: 2836 | F60: 3468 | G60: 3969 | H60: 4057 | I60: 3382 | J60: 4674 | K60: 4785 | L60: =SUM(J60,K60,F60,G60,H60,I60) -> 24335 | M60: 0.01
C61: 27 | D61: Lentisphaerae | E61: 256845 | F61: 2854 | G61: 3169 | H61: 3322 | I61: 2949 | J61: 4823 | K61: 4945 | L61: =SUM(J61,K61,F61,G61,H61,I61) -> 22062 | M61: 0.01
C62: 94 | D62: Brachiopoda | E62: 7568 | F62: 3245 | G62: 3373 | H62: 3613 | I62: 2872 | J62: 3669 | K62: 3948 | L62: =SUM(J62,K62,F62,G62,H62,I62) -> 20720 | M62: 0.01
C63: 164 | D63: Negarnaviricota | E63: 2497569 | F63: 3434 | G63: 3589 | H63: 3024 | I63: 2599 | J63: 3157 | K63: 3397 | L63: =SUM(J63,K63,F63,G63,H63,I63) -> 19200 | M63: 0.01
C64: 86 | D64: Priapulida | E64: 33467 | F64: 2283 | G64: 2402 | H64: 3638 | I64: 2984 | J64: 3277 | K64: 3484 | L64: =SUM(J64,K64,F64,G64,H64,I64) -> 18068 | M64: 0.00
C65: 28 | D65: Kiritimatiellaeota | E65: 134625 | F65: 2125 | G65: 2421 | H65: 2336 | I65: 2172 | J65: 4184 | K65: 4378 | L65: =SUM(J65,K65,F65,G65,H65,I65) -> 17616 | M65: 0.00
C66: 163 | D66: Kitrinoviricota | E66: 2732406 | F66: 2448 | G66: 2614 | H66: 2686 | I66: 2359 | J66: 3513 | K66: 3809 | L66: =SUM(J66,K66,F66,G66,H66,I66) -> 17429 | M66: 0.00
C67: 115 | D67: Chytridiomycota | E67: 4761 | F67: 2814 | G67: 3146 | H67: 2645 | I67: 2223 | J67: 3056 | K67: 3124 | L67: =SUM(J67,K67,F67,G67,H67,I67) -> 17008 | M67: 0.00
C68: 167 | D68: Artverviricota | E68: 2732409 | F68: 2489 | G68: 2679 | H68: 2827 | I68: 2395 | J68: 2967 | K68: 2929 | L68: =SUM(J68,K68,F68,G68,H68,I68) -> 16286 | M68: 0.00
C69: 70 | D69: Nitrospinae | E69: 1293497 | F69: 1832 | G69: 2019 | H69: 2146 | I69: 2010 | J69: 3933 | K69: 4052 | L69: =SUM(J69,K69,F69,G69,H69,I69) -> 15992 | M69: 0.00
C70: 52 | D70: Candidatus Aminicenantes | E70: 67817 | F70: 2132 | G70: 2372 | H70: 2373 | I70: 2173 | J70: 3179 | K70: 3289 | L70: =SUM(J70,K70,F70,G70,H70,I70) -> 15518 | M70: 0.00
C71: 141 | D71: Parabasalia | E71: 5719 | F71: 2356 | G71: 2521 | H71: 2670 | I71: 2285 | J71: 2527 | K71: 2683 | L71: =SUM(J71,K71,F71,G71,H71,I71) -> 15042 | M71: 0.00
C72: 111 | D72: Porifera | E72: 6040 | F72: 2345 | G72: 2595 | H72: 2355 | I72: 1972 | J72: 2645 | K72: 2763 | L72: =SUM(J72,K72,F72,G72,H72,I72) -> 14675 | M72: 0.00
C73: 161 | D73: Peploviricota | E73: 2731361 | F73: 1987 | G73: 2249 | H73: 2053 | I73: 1821 | J73: 2796 | K73: 2924 | L73: =SUM(J73,K73,F73,G73,H73,I73) -> 13830 | M73: 0.00
C74: 53 | D74: candidate division WOR-3 | E74: 1703755 | F74: 1782 | G74: 1909 | H74: 1768 | I74: 1561 | J74: 3024 | K74: 3185 | L74: =SUM(J74,K74,F74,G74,H74,I74) -> 13229 | M74: 0.00
C75: 106 | D75: Hemichordata | E75: 10219 | F75: 2085 | G75: 2328 | H75: 2135 | I75: 1813 | J75: 2293 | K75: 2325 | L75: =SUM(J75,K75,F75,G75,H75,I75) -> 12979 | M75: 0.00
C76: 19 | D76: Fibrobacteres | E76: 65842 | F76: 1412 | G76: 1622 | H76: 1934 | I76: 1823 | J76: 2824 | K76: 2947 | L76: =SUM(J76,K76,F76,G76,H76,I76) -> 12562 | M76: 0.00
C77: 116 | D77: Microsporidia | E77: 6029 | F77: 2836 | G77: 3117 | H77: 1665 | I77: 1410 | J77: 1646 | K77: 1631 | L77: =SUM(J77,K77,F77,G77,H77,I77) -> 12305 | M77: 0.00
C78: 72 | D78: Aquificae | E78: 200783 | F78: 1485 | G78: 1626 | H78: 2126 | I78: 1724 | J78: 2691 | K78: 2649 | L78: =SUM(J78,K78,F78,G78,H78,I78) -> 12301 | M78: 0.00
C79: 54 | D79: Candidatus Bipolaricaulota | E79: 67810 | F79: 1282 | G79: 1501 | H79: 1693 | I79: 1631 | J79: 2991 | K79: 3132 | L79: =SUM(J79,K79,F79,G79,H79,I79) -> 12230 | M79: 0.00
C80: 148 | D80: Candidatus Bathyarchaeota | E80: 928852 | F80: 1728 | G80: 1831 | H80: 1856 | I80: 1605 | J80: 2445 | K80: 2606 | L80: =SUM(J80,K80,F80,G80,H80,I80) -> 12071 | M80: 0.00
C81: 73 | D81: Thermodesulfobacteria | E81: 200940 | F81: 1680 | G81: 2030 | H81: 1657 | I81: 1456 | J81: 2212 | K81: 2358 | L81: =SUM(J81,K81,F81,G81,H81,I81) -> 11393 | M81: 0.00
C82: 20 | D82: Candidatus Marinimicrobia | E82: 62680 | F82: 1548 | G82: 1777 | H82: 1620 | I82: 1493 | J82: 2414 | K82: 2494 | L82: =SUM(J82,K82,F82,G82,H82,I82) -> 11346 | M82: 0.00
C83: 14 | D83: Rhodothermaeota | E83: 1853220 | F83: 1594 | G83: 1807 | H83: 1334 | I83: 1053 | J83: 2489 | K83: 2622 | L83: =SUM(J83,K83,F83,G83,H83,I83) -> 10899 | M83: 0.00
C84: 5 | D84: Candidatus Melainabacteria | E84: 1798710 | F84: 1270 | G84: 1430 | H84: 1526 | I84: 1183 | J84: 2521 | K84: 2555 | L84: =SUM(J84,K84,F84,G84,H84,I84) -> 10485 | M84: 0.00
C85: 74 | D85: Calditrichaeota | E85: 1930617 | F85: 1621 | G85: 2096 | H85: 1336 | I85: 1208 | J85: 2047 | K85: 1996 | L85: =SUM(J85,K85,F85,G85,H85,I85) -> 10304 | M85: 0.00
C86: 75 | D86: Deferribacteres | E86: 200930 | F86: 1333 | G86: 1549 | H86: 1499 | I86: 1375 | J86: 1842 | K86: 1856 | L86: =SUM(J86,K86,F86,G86,H86,I86) -> 9454 | M86: 0.00
C87: 165 | D87: Duplornaviricota | E87: 2732405 | F87: 1334 | G87: 1515 | H87: 1329 | I87: 1218 | J87: 1770 | K87: 1864 | L87: =SUM(J87,K87,F87,G87,H87,I87) -> 9030 | M87: 0.00
C88: 29 | D88: Candidatus Omnitrophica | E88: 67812 | F88: 1255 | G88: 1344 | H88: 1652 | I88: 1295 | J88: 1579 | K88: 1536 | L88: =SUM(J88,K88,F88,G88,H88,I88) -> 8661 | M88: 0.00
C89: 173 | D89: Phixviricota | E89: 2732412 | F89: 1204 | G89: 1342 | H89: 1496 | I89: 1262 | J89: 1322 | K89: 1389 | L89: =SUM(J89,K89,F89,G89,H89,I89) -> 8015 | M89: 0.00
C90: 56 | D90: Candidatus Peregrinibacteria | E90: 1619053 | F90: 881 | G90: 1061 | H90: 1381 | I90: 1237 | J90: 1748 | K90: 1633 | L90: =SUM(J90,K90,F90,G90,H90,I90) -> 7941 | M90: 0.00
C91: 117 | D91: Zoopagomycota | E91: 1913638 | F91: 1321 | G91: 1400 | H91: 1102 | I91: 980 | J91: 1498 | K91: 1545 | L91: =SUM(J91,K91,F91,G91,H91,I91) -> 7846 | M91: 0.00
C92: 151 | D92: Candidatus Heimdallarchaeota | E92: 1936272 | F92: 1091 | G92: 1236 | H92: 1338 | I92: 1128 | J92: 1225 | K92: 1225 | L92: =SUM(J92,K92,F92,G92,H92,I92) -> 7243 | M92: 0.00
C93: 109 | D93: Placozoa | E93: 10226 | F93: 1265 | G93: 1429 | H93: 1006 | I93: 851 | J93: 1209 | K93: 1193 | L93: =SUM(J93,K93,F93,G93,H93,I93) -> 6953 | M93: 0.00
C94: 57 | D94: Candidatus Coatesbacteria | E94: 1817797 | F94: 945 | G94: 1007 | H94: 744 | I94: 755 | J94: 1649 | K94: 1666 | L94: =SUM(J94,K94,F94,G94,H94,I94) -> 6766 | M94: 0.00
C95: 58 | D95: candidate division NC10 | E95: 640293 | F95: 933 | G95: 1066 | H95: 861 | I95: 786 | J95: 1367 | K95: 1517 | L95: =SUM(J95,K95,F95,G95,H95,I95) -> 6530 | M95: 0.00
C96: 152 | D96: Candidatus Lokiarchaeota | E96: 1655434 | F96: 893 | G96: 967 | H96: 1178 | I96: 932 | J96: 906 | K96: 935 | L96: =SUM(J96,K96,F96,G96,H96,I96) -> 5811 | M96: 0.00
C97: 76 | D97: Chrysiogenetes | E97: 200938 | F97: 908 | G97: 983 | H97: 919 | I97: 894 | J97: 1016 | K97: 1065 | L97: =SUM(J97,K97,F97,G97,H97,I97) -> 5785 | M97: 0.00
C98: 50 | D98: Candidatus Gracilibacteria | E98: 363464 | F98: 652 | G98: 662 | H98: 1672 | I98: 1383 | J98: 637 | K98: 538 | L98: =SUM(J98,K98,F98,G98,H98,I98) -> 5544 | M98: 0.00
C99: 127 | D99: Perkinsozoa | E99: 2497438 | F99: 904 | G99: 939 | H99: 860 | I99: 762 | J99: 899 | K99: 1012 | L99: =SUM(J99,K99,F99,G99,H99,I99) -> 5376 | M99: 0.00
C100: 33 | D100: Candidatus Moranbacteria | E100: 1752737 | F100: 780 | G100: 805 | H100: 831 | I100: 714 | J100: 1118 | K100: 1014 | L100: =SUM(J100,K100,F100,G100,H100,I100) -> 5262 | M100: 0.00
C101: 77 | D101: Elusimicrobia | E101: 74152 | F101: 638 | G101: 727 | H101: 791 | I101: 719 | J101: 1003 | K101: 929 | L101: =SUM(J101,K101,F101,G101,H101,I101) -> 4807 | M101: 0.00
C102: 32 | D102: Candidatus Nomurabacteria | E102: 1752729 | F102: 267 | G102: 318 | H102: 769 | I102: 662 | J102: 1478 | K102: 1272 | L102: =SUM(J102,K102,F102,G102,H102,I102) -> 4766 | M102: 0.00
C103: 59 | D103: Candidatus Sumerlaeota | E103: 200295 | F103: 530 | G103: 533 | H103: 612 | I103: 538 | J103: 1113 | K103: 1132 | L103: =SUM(J103,K103,F103,G103,H103,I103) -> 4458 | M103: 0.00
C104: 44 | D104: Candidatus Woesebacteria | E104: 1752722 | F104: 421 | G104: 448 | H104: 760 | I104: 739 | J104: 1044 | K104: 997 | L104: =SUM(J104,K104,F104,G104,H104,I104) -> 4409 | M104: 0.00
C105: 154 | D105: Candidatus Diapherotrites | E105: 743725 | F105: 152 | G105: 176 | H105: 951 | I105: 880 | J105: 1021 | K105: 1139 | L105: =SUM(J105,K105,F105,G105,H105,I105) -> 4319 | M105: 0.00
C106: 172 | D106: Cossaviricota | E106: 2732415 | F106: 573 | G106: 568 | H106: 733 | I106: 613 | J106: 697 | K106: 784 | L106: =SUM(J106,K106,F106,G106,H106,I106) -> 3968 | M106: 0.00
C107: 171 | D107: Cressdnaviricota | E107: 2732416 | F107: 473 | G107: 513 | H107: 692 | I107: 607 | J107: 788 | K107: 849 | L107: =SUM(J107,K107,F107,G107,H107,I107) -> 3922 | M107: 0.00
C108: 34 | D108: Candidatus Campbellbacteria | E108: 1752727 | F108: 350 | G108: 450 | H108: 686 | I108: 602 | J108: 885 | K108: 799 | L108: =SUM(J108,K108,F108,G108,H108,I108) -> 3772 | M108: 0.00
C109: 131 | D109: Cercozoa | E109: 136419 | F109: 1029 | G109: 1005 | H109: 549 | I109: 450 | J109: 341 | K109: 367 | L109: =SUM(J109,K109,F109,G109,H109,I109) -> 3741 | M109: 0.00
C110: 35 | D110: Candidatus Kaiserbacteria | E110: 1752734 | F110: 380 | G110: 415 | H110: 611 | I110: 511 | J110: 784 | K110: 720 | L110: =SUM(J110,K110,F110,G110,H110,I110) -> 3421 | M110: 0.00
C111: 142 | D111: Fornicata | E111: 207245 | F111: 540 | G111: 616 | H111: 403 | I111: 339 | J111: 562 | K111: 650 | L111: =SUM(J111,K111,F111,G111,H111,I111) -> 3110 | M111: 0.00
C112: 130 | D112: Imbricatea | E112: 1736114 | F112: 578 | G112: 611 | H112: 373 | I112: 371 | J112: 521 | K112: 584 | L112: =SUM(J112,K112,F112,G112,H112,I112) -> 3038 | M112: 0.00
C113: 169 | D113: Preplasmiviricota | E113: 2732008 | F113: 500 | G113: 487 | H113: 498 | I113: 447 | J113: 534 | K113: 525 | L113: =SUM(J113,K113,F113,G113,H113,I113) -> 2991 | M113: 0.00
C114: 15 | D114: Candidatus Kapabacteria | E114: 1662329 | F114: 359 | G114: 368 | H114: 534 | I114: 446 | J114: 612 | K114: 622 | L114: =SUM(J114,K114,F114,G114,H114,I114) -> 2941 | M114: 0.00
C115: 166 | D115: Lenarviricota | E115: 2732407 | F115: 411 | G115: 463 | H115: 502 | I115: 363 | J115: 556 | K115: 541 | L115: =SUM(J115,K115,F115,G115,H115,I115) -> 2836 | M115: 0.00
C116: 21 | D116: Candidatus Hydrogenedentes | E116: 142187 | F116: 360 | G116: 393 | H116: 387 | I116: 325 | J116: 652 | K116: 610 | L116: =SUM(J116,K116,F116,G116,H116,I116) -> 2727 | M116: 0.00
C117: 60 | D117: Candidatus Eisenbacteria | E117: 1817801 | F117: 379 | G117: 427 | H117: 254 | I117: 289 | J117: 654 | K117: 722 | L117: =SUM(J117,K117,F117,G117,H117,I117) -> 2725 | M117: 0.00
C118: 153 | D118: Candidatus Thorarchaeota | E118: 1706441 | F118: 517 | G118: 553 | H118: 323 | I118: 247 | J118: 437 | K118: 444 | L118: =SUM(J118,K118,F118,G118,H118,I118) -> 2521 | M118: 0.00
C119: 22 | D119: Candidatus Cloacimonetes | E119: 456828 | F119: 433 | G119: 431 | H119: 375 | I119: 330 | J119: 496 | K119: 450 | L119: =SUM(J119,K119,F119,G119,H119,I119) -> 2515 | M119: 0.00
C120: 78 | D120: Atribacterota | E120: 67818 | F120: 353 | G120: 403 | H120: 412 | I120: 346 | J120: 494 | K120: 447 | L120: =SUM(J120,K120,F120,G120,H120,I120) -> 2455 | M120: 0.00
C121: 45 | D121: Candidatus Roizmanbacteria | E121: 1752723 | F121: 328 | G121: 376 | H121: 351 | I121: 327 | J121: 433 | K121: 447 | L121: =SUM(J121,K121,F121,G121,H121,I121) -> 2262 | M121: 0.00
C122: 36 | D122: Candidatus Falkowbacteria | E122: 1752728 | F122: 192 | G122: 217 | H122: 411 | I122: 324 | J122: 566 | K122: 538 | L122: =SUM(J122,K122,F122,G122,H122,I122) -> 2248 | M122: 0.00
C123: 174 | D123: Hofneiviricota | E123: 2732410 | F123: 256 | G123: 310 | H123: 406 | I123: 375 | J123: 460 | K123: 408 | L123: =SUM(J123,K123,F123,G123,H123,I123) -> 2215 | M123: 0.00
C124: 79 | D124: Dictyoglomi | E124: 68297 | F124: 214 | G124: 263 | H124: 429 | I124: 346 | J124: 401 | K124: 424 | L124: =SUM(J124,K124,F124,G124,H124,I124) -> 2077 | M124: 0.00
C125: 37 | D125: Candidatus Uhrbacteria | E125: 1752732 | F125: 235 | G125: 260 | H125: 360 | I125: 287 | J125: 474 | K125: 434 | L125: =SUM(J125,K125,F125,G125,H125,I125) -> 2050 | M125: 0.00
C126: 155 | D126: Candidatus Aenigmarchaeota | E126: 743724 | F126: 291 | G126: 368 | H126: 437 | I126: 384 | J126: 259 | K126: 236 | L126: =SUM(J126,K126,F126,G126,H126,I126) -> 1975 | M126: 0.00
C127: 61 | D127: Candidatus Berkelbacteria | E127: 1618330 | F127: 146 | G127: 146 | H127: 456 | I127: 333 | J127: 379 | K127: 349 | L127: =SUM(J127,K127,F127,G127,H127,I127) -> 1809 | M127: 0.00
C128: 38 | D128: Candidatus Wolfebacteria | E128: 1752735 | F128: 60 | G128: 66 | H128: 234 | I128: 179 | J128: 383 | K128: 397 | L128: =SUM(J128,K128,F128,G128,H128,I128) -> 1319 | M128: 0.00
C129: 156 | D129: Candidatus Micrarchaeota | E129: 1801631 | F129: 137 | G129: 131 | H129: 205 | I129: 149 | J129: 229 | K129: 268 | L129: =SUM(J129,K129,F129,G129,H129,I129) -> 1119 | M129: 0.00
C130: 46 | D130: Candidatus Beckwithbacteria | E130: 1752726 | F130: 181 | G130: 179 | H130: 102 | I130: 81 | J130: 188 | K130: 197 | L130: =SUM(J130,K130,F130,G130,H130,I130) -> 928 | M130: 0.00
C131: 80 | D131: Coprothermobacterota | E131: 2138240 | F131: 135 | G131: 147 | H131: 95 | I131: 103 | J131: 179 | K131: 229 | L131: =SUM(J131,K131,F131,G131,H131,I131) -> 888 | M131: 0.00
C132: 158 | D132: Candidatus Woesearchaeota | E132: 1801616 | F132: 155 | G132: 157 | H132: 182 | I132: 122 | J132: 127 | K132: 131 | L132: =SUM(J132,K132,F132,G132,H132,I132) -> 874 | M132: 0.00
C133: 81 | D133: Caldiserica | E133: 67814 | F133: 151 | G133: 178 | H133: 158 | I133: 127 | J133: 109 | K133: 116 | L133: =SUM(J133,K133,F133,G133,H133,I133) -> 839 | M133: 0.00
C134: 157 | D134: Nanoarchaeota | E134: 192989 | F134: 125 | G134: 180 | H134: 143 | I134: 124 | J134: 136 | K134: 122 | L134: =SUM(J134,K134,F134,G134,H134,I134) -> 830 | M134: 0.00
C135: 39 | D135: Candidatus Niyogibacteria | E135: 1817912 | F135: 66 | G135: 81 | H135: 116 | I135: 117 | J135: 232 | K135: 212 | L135: =SUM(J135,K135,F135,G135,H135,I135) -> 824 | M135: 0.00
C136: 62 | D136: Candidatus Dadabacteria | E136: 1752716 | F136: 64 | G136: 84 | H136: 117 | I136: 98 | J136: 182 | K136: 254 | L136: =SUM(J136,K136,F136,G136,H136,I136) -> 799 | M136: 0.00
C137: 143 | D137: Preaxostyla | E137: 2662611 | F137: 65 | G137: 58 | H137: 93 | I137: 77 | J137: 242 | K137: 237 | L137: =SUM(J137,K137,F137,G137,H137,I137) -> 772 | M137: 0.00
C138: 41 | D138: Candidatus Sungbacteria | E138: 1817917 | F138: 221 | G138: 231 | H138: 64 | I138: 56 | J138: 90 | K138: 87 | L138: =SUM(J138,K138,F138,G138,H138,I138) -> 749 | M138: 0.00
C139: 40 | D139: Candidatus Giovannonibacteria | E139: 1752738 | F139: 50 | G139: 73 | H139: 116 | I139: 116 | J139: 195 | K139: 183 | L139: =SUM(J139,K139,F139,G139,H139,I139) -> 733 | M139: 0.00
C140: 64 | D140: Candidatus Aerophobetes | E140: 1052815 | F140: 84 | G140: 75 | H140: 116 | I140: 97 | J140: 156 | K140: 188 | L140: =SUM(J140,K140,F140,G140,H140,I140) -> 716 | M140: 0.00
C141: 107 | D141: Xenacoelomorpha | E141: 1312402 | F141: 71 | G141: 76 | H141: 124 | I141: 117 | J141: 137 | K141: 183 | L141: =SUM(J141,K141,F141,G141,H141,I141) -> 708 | M141: 0.00
C142: 63 | D142: candidate division WWE3 | E142: 422282 | F142: 44 | G142: 48 | H142: 115 | I142: 116 | J142: 180 | K142: 183 | L142: =SUM(J142,K142,F142,G142,H142,I142) -> 686 | M142: 0.00
C143: 159 | D143: Candidatus Nanohaloarchaeota | E143: 1462430 | F143: 110 | G143: 135 | H143: 101 | I143: 103 | J143: 115 | K143: 120 | L143: =SUM(J143,K143,F143,G143,H143,I143) -> 684 | M143: 0.00
C144: 119 | D144: Blastocladiomycota | E144: 451459 | F144: 164 | G144: 159 | H144: 74 | I144: 74 | J144: 104 | K144: 97 | L144: =SUM(J144,K144,F144,G144,H144,I144) -> 672 | M144: 0.00
C145: 95 | D145: Acanthocephala | E145: 10232 | F145: 59 | G145: 44 | H145: 202 | I145: 195 | J145: 62 | K145: 71 | L145: =SUM(J145,K145,F145,G145,H145,I145) -> 633 | M145: 0.00
C146: 48 | D146: Candidatus Levybacteria | E146: 1752719 | F146: 38 | G146: 42 | H146: 111 | I146: 84 | J146: 106 | K146: 154 | L146: =SUM(J146,K146,F146,G146,H146,I146) -> 535 | M146: 0.00
C147: 47 | D147: Candidatus Daviesbacteria | E147: 1752718 | F147: 31 | G147: 47 | H147: 83 | I147: 86 | J147: 132 | K147: 134 | L147: =SUM(J147,K147,F147,G147,H147,I147) -> 513 | M147: 0.00
C148: 138 | D148: Tubulinea | E148: 555369 | F148: 29 | G148: 28 | H148: 59 | I148: 61 | J148: 131 | K148: 175 | L148: =SUM(J148,K148,F148,G148,H148,I148) -> 483 | M148: 0.00
C149: 149 | D149: Candidatus Korarchaeota | E149: 51967 | F149: 122 | G149: 135 | H149: 37 | I149: 34 | J149: 61 | K149: 72 | L149: =SUM(J149,K149,F149,G149,H149,I149) -> 461 | M149: 0.00
C150: 83 | D150: Tardigrada | E150: 42241 | F150: 32 | G150: 44 | H150: 101 | I150: 75 | J150: 94 | K150: 101 | L150: =SUM(J150,K150,F150,G150,H150,I150) -> 447 | M150: 0.00
C151: 132 | D151: Foraminifera | E151: 29178 | F151: 119 | G151: 130 | H151: 53 | I151: 49 | J151: 49 | K151: 45 | L151: =SUM(J151,K151,F151,G151,H151,I151) -> 445 | M151: 0.00
C152: 133 | D152: Endomyxa | E152: 2604748 | F152: 46 | G152: 70 | H152: 51 | I152: 43 | J152: 86 | K152: 89 | L152: =SUM(J152,K152,F152,G152,H152,I152) -> 385 | M152: 0.00
C153: 71 | D153: Candidatus Tectomicrobia | E153: 1802339 | F153: 43 | G153: 48 | H153: 41 | I153: 45 | J153: 103 | K153: 89 | L153: =SUM(J153,K153,F153,G153,H153,I153) -> 369 | M153: 0.00
C154: 110 | D154: Ctenophora | E154: 10197 | F154: 15 | G154: 22 | H154: 122 | I154: 72 | J154: 56 | K154: 57 | L154: =SUM(J154,K154,F154,G154,H154,I154) -> 344 | M154: 0.00
C155: 42 | D155: Candidatus Parcubacteria | E155: 221216 | F155: 27 | G155: 33 | H155: 41 | I155: 42 | J155: 88 | K155: 94 | L155: =SUM(J155,K155,F155,G155,H155,I155) -> 325 | M155: 0.00
C156: 118 | D156: Cryptomycota | E156: 1031332 | F156: 6 | G156: 4 | H156: 59 | I156: 30 | J156: 106 | K156: 84 | L156: =SUM(J156,K156,F156,G156,H156,I156) -> 289 | M156: 0.00
C157: 102 | D157: Chaetognatha | E157: 10229 | F157: 48 | G157: 44 | H157: 42 | I157: 45 | J157: 59 | K157: 50 | L157: =SUM(J157,K157,F157,G157,H157,I157) -> 288 | M157: 0.00
C158: 49 | D158: Candidatus Microgenomates | E158: 67820 | F158: 33 | G158: 24 | H158: 34 | I158: 41 | J158: 53 | K158: 53 | L158: =SUM(J158,K158,F158,G158,H158,I158) -> 238 | M158: 0.00
C159: 65 | D159: Candidatus Poribacteria | E159: 265317 | F159: 13 | G159: 8 | H159: 21 | I159: 12 | J159: 58 | K159: 60 | L159: =SUM(J159,K159,F159,G159,H159,I159) -> 172 | M159: 0.00
C160: 84 | D160: Onychophora | E160: 27563 | F160: 20 | G160: 21 | H160: 28 | I160: 34 | J160: 28 | K160: 30 | L160: =SUM(J160,K160,F160,G160,H160,I160) -> 161 | M160: 0.00
C161: 170 | D161: Dividoviricota | E161: 2732009 | F161: 27 | G161: 17 | H161: 14 | I161: 20 | J161: 35 | K161: 37 | L161: =SUM(J161,K161,F161,G161,H161,I161) -> 150 | M161: 0.00
C162: 88 | D162: Nematomorpha | E162: 33310 | F162: 50 | G162: 79 | H162: 2 | I162: 3 | J162: 2 | K162: 4 | L162: =SUM(J162,K162,F162,G162,H162,I162) -> 140 | M162: 0.00
C163: 176 | D163: Taleaviricota | E163: 2840024 | F163: 12 | G163: 14 | H163: 31 | I163: 18 | J163: 14 | K163: 15 | L163: =SUM(J163,K163,F163,G163,H163,I163) -> 104 | M163: 0.00
C164: 96 | D164: Gastrotricha | E164: 33313 | F164: 7 | G164: 7 | H164: 23 | I164: 16 | J164: 24 | K164: 21 | L164: =SUM(J164,K164,F164,G164,H164,I164) -> 98 | M164: 0.00
C165: 97 | D165: Sipuncula | E165: 6433 | F165: 8 | G165: 3 | H165: 6 | I165: 14 | J165: 22 | K165: 18 | L165: =SUM(J165,K165,F165,G165,H165,I165) -> 71 | M165: 0.00
C166: 175 | D166: Saleviricota | E166: 2732448 | F166: 2 | G166: 3 | H166: 6 | I166: 4 | J166: 22 | K166: 21 | L166: =SUM(J166,K166,F166,G166,H166,I166) -> 58 | M166: 0.00
C167: 124 | D167: Prasinodermophyta | E167: 2806169 | F167: 10 | G167: 11 | H167: 9 | I167: 6 | J167: 14 | K167: 3 | L167: =SUM(J167,K167,F167,G167,H167,I167) -> 53 | M167: 0.00
C168: 66 | D168: Candidatus Calescamantes | E168: 1052197 | F168: 5 | G168: 2 | H168: 9 | I168: 6 | J168: 16 | K168: 10 | L168: =SUM(J168,K168,F168,G168,H168,I168) -> 48 | M168: 0.00
C169: 98 | D169: Phoronida | E169: 120557 | F169: 6 | G169: 4 | H169: 13 | I169: 6 | J169: 9 | K169: 9 | L169: =SUM(J169,K169,F169,G169,H169,I169) -> 47 | M169: 0.00
C170: 87 | D170: Kinorhyncha | E170: 51516 | F170: 4 | G170: 4 | H170: 18 | I170: 4 | J170: 5 | K170: 9 | L170: =SUM(J170,K170,F170,G170,H170,I170) -> 44 | M170: 0.00
C171: 120 | D171: Sanchytriomycota | E171: 2871090 | F171: 0 | G171: 0 | H171: 3 | I171: 5 | J171: 12 | K171: 8 | L171: =SUM(J171,K171,F171,G171,H171,I171) -> 28 | M171: 0.00
C172: 100 | D172: Dicyemida | E172: 10215 | F172: 1 | G172: 2 | H172: 4 | I172: 2 | J172: 5 | K172: 7 | L172: =SUM(J172,K172,F172,G172,H172,I172) -> 21 | M172: 0.00
C173: 99 | D173: Entoprocta | E173: 43120 | F173: 0 | G173: 1 | H173: 0 | I173: 1 | J173: 6 | K173: 10 | L173: =SUM(J173,K173,F173,G173,H173,I173) -> 18 | M173: 0.00
C174: 144 | D174: Picozoa | E174: 419944 | F174: 0 | G174: 0 | H174: 9 | I174: 2 | J174: 1 | K174: 6 | L174: =SUM(J174,K174,F174,G174,H174,I174) -> 18 | M174: 0.00
C175: 103 | D175: Gnathostomulida | E175: 66780 | F175: 4 | G175: 5 | H175: 1 | I175: 1 | J175: 1 | K175: 3 | L175: =SUM(J175,K175,F175,G175,H175,I175) -> 15 | M175: 0.00
C176: 121 | D176: Olpidiomycota | E176: 2202805 | F176: 0 | G176: 1 | H176: 2 | I176: 1 | J176: 2 | K176: 5 | L176: =SUM(J176,K176,F176,G176,H176,I176) -> 11 | M176: 0.00
C177: 181 | D177: Candidatus Parvarchaeota | E177: 1462422 | F177: 0 | G177: 0 | H177: 3 | I177: 5 | J177: 0 | K177: 0 | L177: =SUM(J177,K177,F177,G177,H177,I177) -> 8 | M177: 0.00
C178: 177 | D178: Candidatus Jorgensenbacteria | E178: 1752739 | F178: 0 | G178: 0 | H178: 1 | I178: 0 | J178: 0 | K178: 1 | L178: =SUM(J178,K178,F178,G178,H178,I178) -> 2 | M178: 0.00
C179: 178 | D179: Cycliophora | E179: 69815 | F179: 0 | G179: 0 | H179: 0 | I179: 0 | J179: 0 | K179: 2 | L179: =SUM(J179,K179,F179,G179,H179,I179) -> 2 | M179: 0.00
C180: 43 | D180: Candidatus Magasanikbacteria | E180: 1752731 | F180: 0 | G180: 0 | H180: 0 | I180: 0 | J180: 1 | K180: 0 | L180: =SUM(J180,K180,F180,G180,H180,I180) -> 1 | M180: 0.00
C181: 179 | D181: Loricifera | E181: 310840 | F181: 0 | G181: 0 | H181: 1 | I181: 0 | J181: 0 | K181: 0 | L181: =SUM(J181,K181,F181,G181,H181,I181) -> 1 | M181: 0.00
C182: 180 | D182: Orthonectida | E182: 33209 | F182: 0 | G182: 0 | H182: 1 | I182: 0 | J182: 0 | K182: 0 | L182: =SUM(J182,K182,F182,G182,H182,I182) -> 1 | M182: 0.00

Sheet Class
A1: total_reads | B1: total_perc | D1: assigned_number | E1: class | F1: taxonomy_id | G1: sample02 | H1: sample03 | I1: sample08 | J1: sample09 | K1: sample10 | L1: sample11 | M1: total_sample_reads | N1: total_sample_reads_perc
A2: =SUM(M2:M396) -> 368280092 | B2: =SUM(N2:N396) -> 100 | D2: 1 | E2: Alphaproteobacteria | F2: 28211 | G2: 15610180 | H2: 18670600 | I2: 16066007 | J2: 15397817 | K2: 11099721 | L2: 10669213 | M2: =SUM(K2,L2,G2,H2,I2,J2) -> 87513538 | N2: =(M2/$A$2)*100 -> 23.76
D3: 2 | E3: Betaproteobacteria | F3: 28216 | G3: 15501771 | H3: 18629396 | I3: 15307648 | J3: 12755168 | K3: 7102488 | L3: 6538751 | M3: =SUM(K3,L3,G3,H3,I3,J3) -> 75835222 | N3: 20.59
D4: 10 | E4: Actinomycetia | F4: 1760 | G4: 6058772 | H4: 7076165 | I4: 5219010 | J4: 5655199 | K4: 5403994 | L4: 5414647 | M4: =SUM(K4,L4,G4,H4,I4,J4) -> 34827787 | N4: 9.46
D5: 3 | E5: Gammaproteobacteria | F5: 1236 | G5: 6181156 | H5: 7642713 | I5: 5495226 | J5: 4983147 | K5: 4582211 | L5: 4353072 | M5: =SUM(K5,L5,G5,H5,I5,J5) -> 33237525 | N5: 9.03
D6: 87 | E6: Insecta | F6: 50557 | G6: 4983309 | H6: 5585292 | I6: 5728342 | J6: 4676392 | K6: 5523978 | L6: 5591960 | M6: =SUM(K6,L6,G6,H6,I6,J6) -> 32089273 | N6: 8.71
D7: 148 | E7: Actinopteri | F7: 186623 | G7: 1878340 | H7: 2016702 | I7: 6782755 | J7: 2997992 | K7: 1984084 | L7: 2058136 | M7: =SUM(K7,L7,G7,H7,I7,J7) -> 17718009 | N7: 4.81
D8: 36 | E8: Flavobacteriia | F8: 117743 | G8: 1239945 | H8: 1454953 | I8: 5298955 | J8: 4426010 | K8: 1239704 | L8: 1110533 | M8: =SUM(K8,L8,G8,H8,I8,J8) -> 14770100 | N8: 4.01
D9: 144 | E9: Mammalia | F9: 40674 | G9: 1174782 | H9: 1297454 | I9: 1232027 | J9: 1025224 | K9: 1299397 | L9: 1349373 | M9: =SUM(K9,L9,G9,H9,I9,J9) -> 7378257 | N9: 2.00
D10: 237 | E10: Magnoliopsida | F10: 3398 | G10: 1155300 | H10: 1280470 | I10: 1234868 | J10: 1016572 | K10: 1273819 | L10: 1310003 | M10: =SUM(K10,L10,G10,H10,I10,J10) -> 7271032 | N10: 1.97
D11: 37 | E11: Cytophagia | F11: 768503 | G11: 672363 | H11: 747057 | I11: 1303234 | J11: 1159266 | K11: 952225 | L11: 904080 | M11: =SUM(K11,L11,G11,H11,I11,J11) -> 5738225 | N11: 1.56
D12: 38 | E12: Saprospiria | F12: 1937959 | G12: 1039431 | H12: 1198744 | I12: 679571 | J12: 667674 | K12: 907740 | L12: 837009 | M12: =SUM(K12,L12,G12,H12,I12,J12) -> 5330169 | N12: 1.45
D13: 48 | E13: Nitrospira | F13: 203693 | G13: 54641 | H13: 63662 | I13: 714396 | J13: 757234 | K13: 1551369 | L13: 1731767 | M13: =SUM(K13,L13,G13,H13,I13,J13) -> 4873069 | N13: 1.32
D14: 4 | E14: Deltaproteobacteria | F14: 28221 | G14: 553595 | H14: 637324 | I14: 476885 | J14: 438866 | K14: 1028215 | L14: 1042835 | M14: =SUM(K14,L14,G14,H14,I14,J14) -> 4177720 | N14: 1.13
D15: 145 | E15: Aves | F15: 8782 | G15: 482872 | H15: 534208 | I15: 488922 | J15: 408349 | K15: 533900 | L15: 554305 | M15: =SUM(K15,L15,G15,H15,I15,J15) -> 3002556 | N15: 0.82
D16: 90 | E16: Ostracoda | F16: 6670 | G16: 652363 | H16: 720791 | I16: 429122 | J16: 349938 | K16: 388889 | L16: 347679 | M16: =SUM(K16,L16,G16,H16,I16,J16) -> 2888782 | N16: 0.78
D17: 93 | E17: Malacostraca | F17: 6681 | G17: 967383 | H17: 1134303 | I17: 251166 | J17: 193102 | K17: 143110 | L17: 141589 | M17: =SUM(K17,L17,G17,H17,I17,J17) -> 2830653 | N17: 0.77
D18: 16 | E18: Bacilli | F18: 91061 | G18: 401215 | H18: 432834 | I18: 458370 | J18: 408493 | K18: 464470 | L18: 465585 | M18: =SUM(K18,L18,G18,H18,I18,J18) -> 2630967 | N18: 0.71
D19: 50 | E19: Planctomycetia | F19: 203683 | G19: 226162 | H19: 254039 | I19: 258615 | J19: 250016 | K19: 517401 | L19: 559772 | M19: =SUM(K19,L19,G19,H19,I19,J19) -> 2066005 | N19: 0.56
D20: 40 | E20: Sphingobacteriia | F20: 117747 | G20: 195663 | H20: 221383 | I20: 274686 | J20: 227879 | K20: 245972 | L20: 229547 | M20: =SUM(K20,L20,G20,H20,I20,J20) -> 1395130 | N20: 0.38
D21: 39 | E21: Chitinophagia | F21: 1853228 | G21: 199004 | H21: 226457 | I21: 232428 | J21: 200529 | K21: 264955 | L21: 248195 | M21: =SUM(K21,L21,G21,H21,I21,J21) -> 1371568 | N21: 0.37
D22: 177 | E22: Sordariomycetes | F22: 147550 | G22: 164273 | H22: 181171 | I22: 148844 | J22: 130932 | K22: 199516 | L22: 207526 | M22: =SUM(K22,L22,G22,H22,I22,J22) -> 1032262 | N22: 0.28
D23: 114 | E23: Gastropoda | F23: 6448 | G23: 151548 | H23: 166962 | I23: 169303 | J23: 141594 | K23: 165820 | L23: 170577 | M23: =SUM(K23,L23,G23,H23,I23,J23) -> 965804 | N23: 0.26
D24: 17 | E24: Clostridia | F24: 186801 | G24: 136132 | H24: 153730 | I24: 154236 | J24: 132170 | K24: 175398 | L24: 175156 | M24: =SUM(K24,L24,G24,H24,I24,J24) -> 926822 | N24: 0.25
D25: 115 | E25: Bivalvia | F25: 6544 | G25: 144116 | H25: 159410 | I25: 158795 | J25: 130899 | K25: 156383 | L25: 160248 | M25: =SUM(K25,L25,G25,H25,I25,J25) -> 909851 | N25: 0.25
D26: 41 | E26: Bacteroidia | F26: 200643 | G26: 118316 | H26: 131603 | I26: 143409 | J26: 121254 | K26: 162188 | L26: 155310 | M26: =SUM(K26,L26,G26,H26,I26,J26) -> 832080 | N26: 0.23
D27: 46 | E27: Gemmatimonadetes | F27: 219685 | G27: 181331 | H27: 214328 | I27: 53462 | J27: 50985 | K27: 118930 | L27: 121229 | M27: =SUM(K27,L27,G27,H27,I27,J27) -> 740265 | N27: 0.20
D28: 180 | E28: Eurotiomycetes | F28: 147545 | G28: 117655 | H28: 130375 | I28: 108432 | J28: 94750 | K28: 137263 | L28: 142799 | M28: =SUM(K28,L28,G28,H28,I28,J28) -> 731274 | N28: 0.20
D29: 345 | E29: Caudoviricetes | F29: 2731619 | G29: 107776 | H29: 120769 | I29: 128637 | J29: 108629 | K29: 104592 | L29: 106920 | M29: =SUM(K29,L29,G29,H29,I29,J29) -> 677323 | N29: 0.18
D30: 108 | E30: Chromadorea | F30: 119089 | G30: 121395 | H30: 165366 | I30: 115167 | J30: 95563 | K30: 87514 | L30: 90069 | M30: =SUM(K30,L30,G30,H30,I30,J30) -> 675074 | N30: 0.18
D31: 32 | E31: Deinococci | F31: 188787 | G31: 64689 | H31: 65355 | I31: 143138 | J31: 182266 | K31: 80129 | L31: 80906 | M31: =SUM(K31,L31,G31,H31,I31,J31) -> 616483 | N31: 0.17
D32: 328 | E32: Halobacteria | F32: 183963 | G32: 85246 | H32: 93726 | I32: 77865 | J32: 72638 | K32: 137962 | L32: 145750 | M32: =SUM(K32,L32,G32,H32,I32,J32) -> 613187 | N32: 0.17
D33: 181 | E33: Dothideomycetes | F33: 147541 | G33: 91616 | H33: 100395 | I33: 87987 | J33: 76944 | K33: 113677 | L33: 118593 | M33: =SUM(K33,L33,G33,H33,I33,J33) -> 589212 | N33: 0.16
D34: 54 | E34: Verrucomicrobiae | F34: 203494 | G34: 62687 | H34: 68125 | I34: 72595 | J34: 67227 | K34: 122583 | L34: 115593 | M34: =SUM(K34,L34,G34,H34,I34,J34) -> 508810 | N34: 0.14
D35: 11 | E35: Acidimicrobiia | F35: 84992 | G35: 67633 | H35: 68880 | I35: 52014 | J35: 63766 | K35: 136805 | L35: 119335 | M35: =SUM(K35,L35,G35,H35,I35,J35) -> 508433 | N35: 0.14
D36: 147 | E36: Amphibia | F36: 8292 | G36: 75627 | H36: 82845 | I36: 77394 | J36: 64942 | K36: 82490 | L36: 85446 | M36: =SUM(K36,L36,G36,H36,I36,J36) -> 468744 | N36: 0.13
D37: 192 | E37: Saccharomycetes | F37: 4891 | G37: 64754 | H37: 71617 | I37: 64236 | J37: 53498 | K37: 69264 | L37: 71587 | M37: =SUM(K37,L37,G37,H37,I37,J37) -> 394956 | N37: 0.11
D38: 94 | E38: Hexanauplia | F38: 72037 | G38: 59778 | H38: 66724 | I38: 70923 | J38: 57776 | K38: 65144 | L38: 65721 | M38: =SUM(K38,L38,G38,H38,I38,J38) -> 386066 | N38: 0.10
D39: 102 | E39: Arachnida | F39: 6854 | G39: 56607 | H39: 63026 | I39: 62434 | J39: 52035 | K39: 66345 | L39: 68608 | M39: =SUM(K39,L39,G39,H39,I39,J39) -> 369055 | N39: 0.10
D40: 198 | E40: Agaricomycetes | F40: 155619 | G40: 56859 | H40: 62621 | I40: 53120 | J40: 46549 | K40: 69571 | L40: 71849 | M40: =SUM(K40,L40,G40,H40,I40,J40) -> 360569 | N40: 0.10
D41: 55 | E41: Opitutae | F41: 414999 | G41: 32700 | H41: 36342 | I41: 42115 | J41: 36618 | K41: 99727 | L41: 101652 | M41: =SUM(K41,L41,G41,H41,I41,J41) -> 349154 | N41: 0.09
D42: 5 | E42: Epsilonproteobacteria | F42: 29547 | G42: 44371 | H42: 50316 | I42: 62442 | J42: 55929 | K42: 56041 | L42: 54683 | M42: =SUM(K42,L42,G42,H42,I42,J42) -> 323782 | N42: 0.09
D43: 122 | E43: Cestoda | F43: 6199 | G43: 52053 | H43: 56852 | I43: 52662 | J43: 44028 | K43: 56562 | L43: 58781 | M43: =SUM(K43,L43,G43,H43,I43,J43) -> 320938 | N43: 0.09
D44: 157 | E44: Asteroidea | F44: 7588 | G44: 44838 | H44: 49389 | I44: 49506 | J44: 41253 | K44: 51585 | L44: 53174 | M44: =SUM(K44,L44,G44,H44,I44,J44) -> 289745 | N44: 0.08
D45: 51 | E45: Phycisphaerae | F45: 666505 | G45: 33745 | H45: 37554 | I45: 34411 | J45: 31804 | K45: 67440 | L45: 68267 | M45: =SUM(K45,L45,G45,H45,I45,J45) -> 273221 | N45: 0.07
D46: 146 | E46: Lepidosauria | F46: 8504 | G46: 44898 | H46: 49331 | I46: 43098 | J46: 36331 | K46: 48306 | L46: 50996 | M46: =SUM(K46,L46,G46,H46,I46,J46) -> 272960 | N46: 0.07
D47: 123 | E47: Trematoda | F47: 6178 | G47: 41430 | H47: 46050 | I47: 41489 | J47: 34038 | K47: 43273 | L47: 44584 | M47: =SUM(K47,L47,G47,H47,I47,J47) -> 250864 | N47: 0.07
D48: 164 | E48: Anthozoa | F48: 6101 | G48: 38374 | H48: 42396 | I48: 42902 | J48: 35787 | K48: 44432 | L48: 46244 | M48: =SUM(K48,L48,G48,H48,I48,J48) -> 250135 | N48: 0.07
D49: 62 | E49: Vicinamibacteria | F49: 1813735 | G49: 24001 | H49: 29102 | I49: 25318 | J49: 26338 | K49: 63550 | L49: 73294 | M49: =SUM(K49,L49,G49,H49,I49,J49) -> 241603 | N49: 0.07
D50: 63 | E50: Acidobacteriia | F50: 204432 | G50: 24900 | H50: 28461 | I50: 26047 | J50: 24444 | K50: 51776 | L50: 56108 | M50: =SUM(K50,L50,G50,H50,I50,J50) -> 211736 | N50: 0.06
D51: 274 | E51: Aconoidasida | F51: 422676 | G51: 32505 | H51: 36648 | I51: 34539 | J51: 27686 | K51: 32452 | L51: 32970 | M51: =SUM(K51,L51,G51,H51,I51,J51) -> 196800 | N51: 0.05
D52: 262 | E52: Chlorophyceae | F52: 3166 | G52: 30946 | H52: 34868 | I52: 27148 | J52: 23885 | K52: 36725 | L52: 38632 | M52: =SUM(K52,L52,G52,H52,I52,J52) -> 192204 | N52: 0.05
D53: 12 | E53: Thermoleophilia | F53: 1497346 | G53: 24269 | H53: 27255 | I53: 23062 | J53: 23238 | K53: 46541 | L53: 45755 | M53: =SUM(K53,L53,G53,H53,I53,J53) -> 190120 | N53: 0.05
D54: 150 | E54: Chondrichthyes | F54: 7777 | G54: 29362 | H54: 32349 | I54: 29547 | J54: 25197 | K54: 32330 | L54: 33910 | M54: =SUM(K54,L54,G54,H54,I54,J54) -> 182695 | N54: 0.05
D55: 13 | E55: Coriobacteriia | F55: 84998 | G55: 25015 | H55: 28545 | I55: 21981 | J55: 20072 | K55: 38167 | L55: 39430 | M55: =SUM(K55,L55,G55,H55,I55,J55) -> 173210 | N55: 0.05
D56: 153 | E56: Ascidiacea | F56: 7713 | G56: 27791 | H56: 30097 | I56: 29114 | J56: 24283 | K56: 29681 | L56: 30778 | M56: =SUM(K56,L56,G56,H56,I56,J56) -> 171744 | N56: 0.05
D57: 66 | E57: Spirochaetia | F57: 203692 | G57: 22943 | H57: 25663 | I57: 26500 | J57: 22670 | K57: 35230 | L57: 35217 | M57: =SUM(K57,L57,G57,H57,I57,J57) -> 168223 | N57: 0.05
D58: 199 | E58: Tremellomycetes | F58: 155616 | G58: 26310 | H58: 29261 | I58: 23834 | J58: 20915 | K58: 31986 | L58: 33394 | M58: =SUM(K58,L58,G58,H58,I58,J58) -> 165700 | N58: 0.04
D59: 313 | E59: Kinetoplastea | F59: 5653 | G59: 25115 | H59: 27879 | I59: 23482 | J59: 20421 | K59: 32190 | L59: 33986 | M59: =SUM(K59,L59,G59,H59,I59,J59) -> 163073 | N59: 0.04
D60: 156 | E60: Leptocardii | F60: 2682552 | G60: 24484 | H60: 26960 | I60: 26358 | J60: 22186 | K60: 28197 | L60: 29813 | M60: =SUM(K60,L60,G60,H60,I60,J60) -> 157998 | N60: 0.04
D61: 6 | E61: Oligoflexia | F61: 1553900 | G61: 19833 | H61: 24109 | I61: 31702 | J61: 24785 | K61: 23183 | L61: 22902 | M61: =SUM(K61,L61,G61,H61,I61,J61) -> 146514 | N61: 0.04
D62: 178 | E62: Leotiomycetes | F62: 147548 | G62: 23090 | H62: 25605 | I62: 21972 | J62: 19006 | K62: 27405 | L62: 28317 | M62: =SUM(K62,L62,G62,H62,I62,J62) -> 145395 | N62: 0.04
D63: 95 | E63: Thecostraca | F63: 116172 | G63: 21911 | H63: 24162 | I63: 19958 | J63: 17531 | K63: 25496 | L63: 26918 | M63: =SUM(K63,L63,G63,H63,I63,J63) -> 135976 | N63: 0.04
D64: 33 | E64: Mollicutes | F64: 31969 | G64: 17051 | H64: 19579 | I64: 21654 | J64: 17579 | K64: 19049 | L64: 18354 | M64: =SUM(K64,L64,G64,H64,I64,J64) -> 113266 | N64: 0.03
D65: 202 | E65: Ustilaginomycetes | F65: 5257 | G65: 18337 | H65: 20732 | I65: 14860 | J65: 13130 | K65: 21904 | L65: 23142 | M65: =SUM(K65,L65,G65,H65,I65,J65) -> 112105 | N65: 0.03
D66: 275 | E66: Conoidasida | F66: 1280412 | G66: 17203 | H66: 18993 | I66: 15754 | J66: 13320 | K66: 19065 | L66: 20116 | M66: =SUM(K66,L66,G66,H66,I66,J66) -> 104451 | N66: =(M66/$A$2)*100 -> 0.03
D67: 14 | E67: Rubrobacteria | F67: 84995 | G67: 14061 | H67: 16042 | I67: 12559 | J67: 12309 | K67: 24362 | L67: 24407 | M67: =SUM(K67,L67,G67,H67,I67,J67) -> 103740 | N67: 0.03
D68: 23 | E68: Anaerolineae | F68: 292625 | G68: 9834 | H68: 10814 | I68: 12387 | J68: 11863 | K68: 26479 | L68: 26391 | M68: =SUM(K68,L68,G68,H68,I68,J68) -> 97768 | N68: 0.03
D69: 276 | E69: Oligohymenophorea | F69: 6020 | G69: 24975 | H69: 28095 | I69: 13402 | J69: 9912 | K69: 9624 | L69: 9825 | M69: =SUM(K69,L69,G69,H69,I69,J69) -> 95833 | N69: 0.03
D70: 18 | E70: Negativicutes | F70: 909932 | G70: 12622 | H70: 14303 | I70: 13948 | J70: 12378 | K70: 18591 | L70: 18471 | M70: =SUM(K70,L70,G70,H70,I70,J70) -> 90313 | N70: 0.02
D71: 64 | E71: Holophagae | F71: 533205 | G71: 9041 | H71: 10232 | I71: 10752 | J71: 10097 | K71: 23625 | L71: 25396 | M71: =SUM(K71,L71,G71,H71,I71,J71) -> 89143 | N71: 0.02
D72: 127 | E72: Pilidiophora | F72: 6218 | G72: 13440 | H72: 14655 | I72: 14677 | J72: 11903 | K72: 16085 | L72: 16774 | M72: =SUM(K72,L72,G72,H72,I72,J72) -> 87534 | N72: 0.02
D73: 130 | E73: Gymnolaemata | F73: 10206 | G73: 13444 | H73: 14697 | I73: 14175 | J73: 12079 | K73: 15477 | L73: 15732 | M73: =SUM(K73,L73,G73,H73,I73,J73) -> 85604 | N73: 0.02
D74: 329 | E74: Methanomicrobia | F74: 224756 | G74: 11833 | H74: 12797 | I74: 12798 | J74: 11110 | K74: 18314 | L74: 18171 | M74: =SUM(K74,L74,G74,H74,I74,J74) -> 85023 | N74: 0.02
D75: 214 | E75: Glomeromycetes | F75: 214506 | G75: 13743 | H75: 15134 | I75: 15519 | J75: 12752 | K75: 13530 | L75: 13222 | M75: =SUM(K75,L75,G75,H75,I75,J75) -> 83900 | N75: 0.02
D76: 244 | E76: Marchantiopsida | F76: 186770 | G76: 13025 | H76: 14389 | I76: 13575 | J76: 11669 | K76: 15403 | L76: 15726 | M76: =SUM(K76,L76,G76,H76,I76,J76) -> 83787 | N76: 0.02
D77: 263 | E77: Trebouxiophyceae | F77: 75966 | G77: 12207 | H77: 14147 | I77: 10489 | J77: 9431 | K77: 14529 | L77: 15222 | M77: =SUM(K77,L77,G77,H77,I77,J77) -> 76025 | N77: 0.02
D78: 24 | E78: Chloroflexia | F78: 32061 | G78: 5814 | H78: 6416 | I78: 7872 | J78: 8401 | K78: 24513 | L78: 21798 | M78: =SUM(K78,L78,G78,H78,I78,J78) -> 74814 | N78: 0.02
D79: 96 | E79: Branchiopoda | F79: 6658 | G79: 10722 | H79: 11828 | I79: 11801 | J79: 9730 | K79: 12714 | L79: 13323 | M79: =SUM(K79,L79,G79,H79,I79,J79) -> 70118 | N79: 0.02
D80: 165 | E80: Staurozoa | F80: 1927913 | G80: 10650 | H80: 11622 | I80: 12775 | J80: 10503 | K80: 11761 | L80: 11860 | M80: =SUM(K80,L80,G80,H80,I80,J80) -> 69171 | N80: 0.02
D81: 203 | E81: Exobasidiomycetes | F81: 452283 | G81: 11282 | H81: 12416 | I81: 9101 | J81: 8026 | K81: 13180 | L81: 13938 | M81: =SUM(K81,L81,G81,H81,I81,J81) -> 67943 | N81: 0.02
D82: 15 | E82: Nitriliruptoria | F82: 908620 | G82: 9681 | H82: 10723 | I82: 7988 | J82: 7873 | K82: 15442 | L82: 15552 | M82: =SUM(K82,L82,G82,H82,I82,J82) -> 67259 | N82: 0.02
D83: 142 | E83: Eurotatoria | F83: 2816136 | G83: 8178 | H83: 9667 | I83: 12828 | J83: 10909 | K83: 11426 | L83: 12190 | M83: =SUM(K83,L83,G83,H83,I83,J83) -> 65198 | N83: 0.02
D84: 265 | E84: Mamiellophyceae | F84: 1035538 | G84: 9123 | H84: 10312 | I84: 7996 | J84: 7413 | K84: 14338 | L84: 14908 | M84: =SUM(K84,L84,G84,H84,I84,J84) -> 64090 | N84: 0.02
D85: 72 | E85: Fusobacteriia | F85: 203490 | G85: 8655 | H85: 9918 | I85: 12552 | J85: 10492 | K85: 10710 | L85: 10391 | M85: =SUM(K85,L85,G85,H85,I85,J85) -> 62718 | N85: 0.02
D86: 149 | E86: Cladistia | F86: 1338366 | G86: 9516 | H86: 10637 | I86: 10331 | J86: 8710 | K86: 11437 | L86: 11784 | M86: =SUM(K86,L86,G86,H86,I86,J86) -> 62415 | N86: 0.02
D87: 42 | E87: Chlorobia | F87: 191410 | G87: 8448 | H87: 9466 | I87: 7899 | J87: 6984 | K87: 12118 | L87: 12049 | M87: =SUM(K87,L87,G87,H87,I87,J87) -> 56964 | N87: 0.02
D88: 7 | E88: Acidithiobacillia | F88: 1807140 | G88: 8459 | H88: 9987 | I88: 10760 | J88: 9223 | K88: 8864 | L88: 8916 | M88: =SUM(K88,L88,G88,H88,I88,J88) -> 56209 | N88: 0.02
D89: 337 | E89: Thermoprotei | F89: 183924 | G89: 7962 | H89: 8781 | I89: 8080 | J89: 6883 | K89: 8883 | L89: 9146 | M89: =SUM(K89,L89,G89,H89,I89,J89) -> 49735 | N89: 0.01
D90: 159 | E90: Echinoidea | F90: 7625 | G90: 7969 | H90: 8670 | I90: 7880 | J90: 6559 | K90: 8499 | L90: 8578 | M90: =SUM(K90,L90,G90,H90,I90,J90) -> 48155 | N90: 0.01
D91: 151 | E91: Hyperoartia | F91: 117569 | G91: 7441 | H91: 8255 | I91: 6324 | J91: 5727 | K91: 9224 | L91: 9885 | M91: =SUM(K91,L91,G91,H91,I91,J91) -> 46856 | N91: 0.01
D92: 315 | E92: Eumycetozoa | F92: 142796 | G92: 7313 | H92: 8065 | I92: 7813 | J92: 6449 | K92: 7996 | L92: 8024 | M92: =SUM(K92,L92,G92,H92,I92,J92) -> 45660 | N92: 0.01
D93: 58 | E93: Chlamydiia | F93: 204429 | G93: 4230 | H93: 4812 | I93: 7598 | J93: 6760 | K93: 11756 | L93: 9506 | M93: =SUM(K93,L93,G93,H93,I93,J93) -> 44662 | N93: 0.01
D94: 286 | E94: Pelagophyceae | F94: 35675 | G94: 5410 | H94: 5845 | I94: 5199 | J94: 4989 | K94: 9822 | L94: 10196 | M94: =SUM(K94,L94,G94,H94,I94,J94) -> 41461 | N94: 0.01
D95: 206 | E95: Microbotryomycetes | F95: 162481 | G95: 5363 | H95: 5984 | I95: 5406 | J95: 4831 | K95: 9005 | L95: 9678 | M95: =SUM(K95,L95,G95,H95,I95,J95) -> 40267 | N95: 0.01
D96: 22 | E96: Gloeobacteria | F96: 307596 | G96: 4786 | H96: 5413 | I96: 4967 | J96: 4753 | K96: 9098 | L96: 9423 | M96: =SUM(K96,L96,G96,H96,I96,J96) -> 38440 | N96: 0.01
D97: 19 | E97: Erysipelotrichia | F97: 526524 | G97: 5782 | H97: 6452 | I97: 6706 | J97: 5726 | K97: 6481 | L97: 6503 | M97: =SUM(K97,L97,G97,H97,I97,J97) -> 37650 | N97: 0.01
D98: 367 | E98: Megaviricetes | F98: 2732523 | G98: 5279 | H98: 5930 | I98: 6459 | J98: 5297 | K98: 6065 | L98: 6196 | M98: =SUM(K98,L98,G98,H98,I98,J98) -> 35226 | N98: 0.01
D99: 73 | E99: Thermotogae | F99: 188708 | G99: 5319 | H99: 5878 | I99: 5706 | J99: 4873 | K99: 6775 | L99: 6570 | M99: =SUM(K99,L99,G99,H99,I99,J99) -> 35121 | N99: 0.01
D100: 43 | E100: Ignavibacteria | F100: 795747 | G100: 5073 | H100: 5735 | I100: 5642 | J100: 4736 | K100: 6622 | L100: 6354 | M100: =SUM(K100,L100,G100,H100,I100,J100) -> 34162 | N100: 0.01
D101: 26 | E101: Dehalococcoidia | F101: 301297 | G101: 4878 | H101: 5281 | I101: 4526 | J101: 4314 | K101: 7424 | L101: 7476 | M101: =SUM(K101,L101,G101,H101,I101,J101) -> 33899 | N101: 0.01
D102: 204 | E102: Malasseziomycetes | F102: 1538075 | G102: 4446 | H102: 4756 | I102: 4749 | J102: 4170 | K102: 6882 | L102: 7312 | M102: =SUM(K102,L102,G102,H102,I102,J102) -> 32315 | N102: 0.01
D103: 65 | E103: Blastocatellia | F103: 1562566 | G103: 3508 | H103: 3966 | I103: 4113 | J103: 3815 | K103: 8103 | L103: 8711 | M103: =SUM(K103,L103,G103,H103,I103,J103) -> 32216 | N103: 0.01
D104: 27 | E104: Ktedonobacteria | F104: 388447 | G104: 4122 | H104: 4337 | I104: 4275 | J104: 4115 | K104: 7304 | L104: 7117 | M104: =SUM(K104,L104,G104,H104,I104,J104) -> 31270 | N104: 0.01
D105: 20 | E105: Tissierellia | F105: 1737404 | G105: 4347 | H105: 4978 | I105: 5758 | J105: 4836 | K105: 5645 | L105: 5620 | M105: =SUM(K105,L105,G105,H105,I105,J105) -> 31184 | N105: 0.01
D106: 238 | E106: Pinopsida | F106: 58019 | G106: 5042 | H106: 5399 | I106: 4978 | J106: 4176 | K106: 5232 | L106: 5457 | M106: =SUM(K106,L106,G106,H106,I106,J106) -> 30284 | N106: 0.01
D107: 321 | E107: Florideophyceae | F107: 2806 | G107: 4597 | H107: 5177 | I107: 4675 | J107: 3932 | K107: 5088 | L107: 5263 | M107: =SUM(K107,L107,G107,H107,I107,J107) -> 28732 | N107: 0.01
D108: 25 | E108: Ardenticatenia | F108: 1382928 | G108: 3160 | H108: 3580 | I108: 3366 | J108: 3173 | K108: 7617 | L108: 7610 | M108: =SUM(K108,L108,G108,H108,I108,J108) -> 28506 | N108: 0.01
D109: 233 | E109: Choanoflagellata | F109: 28009 | G109: 4572 | H109: 5060 | I109: 3929 | J109: 3391 | K109: 5475 | L109: 5884 | M109: =SUM(K109,L109,G109,H109,I109,J109) -> 28311 | N109: 0.01
D110: 333 | E110: Thermococci | F110: 183968 | G110: 3886 | H110: 4275 | I110: 4345 | J110: 3846 | K110: 5569 | L110: 5830 | M110: =SUM(K110,L110,G110,H110,I110,J110) -> 27751 | N110: 0.01
D111: 34 | E111: Fimbriimonadia | F111: 1663419 | G111: 3525 | H111: 4107 | I111: 3323 | J111: 3174 | K111: 6476 | L111: 6835 | M111: =SUM(K111,L111,G111,H111,I111,J111) -> 27440 | N111: 0.01
D112: 116 | E112: Cephalopoda | F112: 6605 | G112: 4200 | H112: 4631 | I112: 4723 | J112: 3793 | K112: 4734 | L112: 4945 | M112: =SUM(K112,L112,G112,H112,I112,J112) -> 27026 | N112: 0.01
D113: 28 | E113: Thermomicrobia | F113: 189775 | G113: 3008 | H113: 3334 | I113: 3155 | J113: 3560 | K113: 6929 | L113: 6649 | M113: =SUM(K113,L113,G113,H113,I113,J113) -> 26635 | N113: 0.01
D114: 103 | E114: Merostomata | F114: 6844 | G114: 4197 | H114: 4802 | I114: 4114 | J114: 3396 | K114: 4613 | L114: 4700 | M114: =SUM(K114,L114,G114,H114,I114,J114) -> 25822 | N114: 0.01
D115: 109 | E115: Enoplea | F115: 119088 | G115: 3947 | H115: 4420 | I115: 4919 | J115: 3808 | K115: 4174 | L115: 4224 | M115: =SUM(K115,L115,G115,H115,I115,J115) -> 25492 | N115: 0.01
D116: 340 | E116: Thermoplasmata | F116: 183967 | G116: 3313 | H116: 3627 | I116: 4391 | J116: 3871 | K116: 5095 | L116: 5156 | M116: =SUM(K116,L116,G116,H116,I116,J116) -> 25453 | N116: 0.01
D117: 247 | E117: Bryopsida | F117: 3214 | G117: 4240 | H117: 4781 | I117: 3589 | J117: 3026 | K117: 4486 | L117: 4617 | M117: =SUM(K117,L117,G117,H117,I117,J117) -> 24739 | N117: 0.01
D118: 161 | E118: Crinoidea | F118: 35069 | G118: 3954 | H118: 4324 | I118: 3947 | J118: 3303 | K118: 4319 | L118: 4521 | M118: =SUM(K118,L118,G118,H118,I118,J118) -> 24368 | N118: 0.01
D119: 331 | E119: Methanobacteria | F119: 183925 | G119: 3948 | H119: 4230 | I119: 4303 | J119: 3534 | K119: 3943 | L119: 3950 | M119: =SUM(K119,L119,G119,H119,I119,J119) -> 23908 | N119: 0.01
D120: 52 | E120: Candidatus Brocadiia | F120: 2517206 | G120: 2560 | H120: 2915 | I120: 3613 | J120: 3009 | K120: 5707 | L120: 5456 | M120: =SUM(K120,L120,G120,H120,I120,J120) -> 23260 | N120: 0.01
D121: 347 | E121: Pisoniviricetes | F121: 2732506 | G121: 3771 | H121: 4308 | I121: 3567 | J121: 3041 | K121: 3903 | L121: 4092 | M121: =SUM(K121,L121,G121,H121,I121,J121) -> 22682 | N121: 0.01
D122: 215 | E122: Mucoromycetes | F122: 2212703 | G122: 3813 | H122: 3975 | I122: 3546 | J122: 3081 | K122: 3908 | L122: 4119 | M122: =SUM(K122,L122,G122,H122,I122,J122) -> 22442 | N122: 0.01
D123: 88 | E123: Collembola | F123: 30001 | G123: 3105 | H123: 3535 | I123: 3422 | J123: 2875 | K123: 4063 | L123: 4359 | M123: =SUM(K123,L123,G123,H123,I123,J123) -> 21359 | N123: 0.01
D124: 74 | E124: Synergistia | F124: 649775 | G124: 2922 | H124: 3312 | I124: 2826 | J124: 2605 | K124: 4516 | L124: 4631 | M124: =SUM(K124,L124,G124,H124,I124,J124) -> 20812 | N124: 0.01
D125: 135 | E125: Lingulata | F125: 115361 | G125: 3127 | H125: 3253 | I125: 3522 | J125: 2800 | K125: 3572 | L125: 3851 | M125: =SUM(K125,L125,G125,H125,I125,J125) -> 20125 | N125: 0.01
D126: 44 | E126: Balneolia | F126: 1853221 | G126: 3078 | H126: 3380 | I126: 3496 | J126: 2910 | K126: 3546 | L126: 3426 | M126: =SUM(K126,L126,G126,H126,I126,J126) -> 19836 | N126: 0.01
D127: 133 | E127: Clitellata | F127: 42113 | G127: 2674 | H127: 3042 | I127: 2865 | J127: 2225 | K127: 3836 | L127: 4523 | M127: =SUM(K127,L127,G127,H127,I127,J127) -> 19165 | N127: 0.01
D128: 190 | E128: Pezizomycetes | F128: 147549 | G128: 3256 | H128: 3693 | I128: 2651 | J128: 2273 | K128: 3526 | L128: 3689 | M128: =SUM(K128,L128,G128,H128,I128,J128) -> 19088 | N128: 0.01
D129: 154 | E129: Appendicularia | F129: 30302 | G129: 3106 | H129: 3456 | I129: 3010 | J129: 2539 | K129: 3305 | L129: 3400 | M129: =SUM(K129,L129,G129,H129,I129,J129) -> 18816 | N129: 0.01
D130: 29 | E130: Caldilineae | F130: 475962 | G130: 1474 | H130: 1727 | I130: 2408 | J130: 2535 | K130: 5554 | L130: 4920 | M130: =SUM(K130,L130,G130,H130,I130,J130) -> 18618 | N130: =(M130/$A$2)*100 -> 0.01
D131: 30 | E131: Tepidiformia | F131: 2682225 | G131: 2457 | H131: 2842 | I131: 2077 | J131: 2057 | K131: 4421 | L131: 4761 | M131: =SUM(K131,L131,G131,H131,I131,J131) -> 18615 | N131: 0.01
D132: 243 | E132: Lycopodiopsida | F132: 1521260 | G132: 2619 | H132: 2889 | I132: 2676 | J132: 2404 | K132: 3934 | L132: 3996 | M132: =SUM(K132,L132,G132,H132,I132,J132) -> 18518 | N132: 0.01
D133: 110 | E133: Priapulimorpha | F133: 2082883 | G133: 2283 | H133: 2402 | I133: 3638 | J133: 2984 | K133: 3277 | L133: 3484 | M133: =SUM(K133,L133,G133,H133,I133,J133) -> 18068 | N133: 0.00
D134: 59 | E134: Lentisphaeria | F134: 1313211 | G134: 2241 | H134: 2484 | I134: 2459 | J134: 2204 | K134: 4042 | L134: 4183 | M134: =SUM(K134,L134,G134,H134,I134,J134) -> 17613 | N134: 0.00
D135: 326 | E135: Cryptophyceae | F135: 3027 | G135: 2597 | H135: 2823 | I135: 2759 | J135: 2300 | K135: 3533 | L135: 3582 | M135: =SUM(K135,L135,G135,H135,I135,J135) -> 17594 | N135: 0.00
D136: 184 | E136: Lecanoromycetes | F136: 147547 | G136: 2870 | H136: 3028 | I136: 2515 | J136: 2137 | K136: 3280 | L136: 3325 | M136: =SUM(K136,L136,G136,H136,I136,J136) -> 17155 | N136: 0.00
D137: 366 | E137: Revtraviricetes | F137: 2732514 | G137: 2489 | H137: 2679 | I137: 2827 | J137: 2395 | K137: 2967 | L137: 2929 | M137: =SUM(K137,L137,G137,H137,I137,J137) -> 16286 | N137: 0.00
D138: 166 | E138: Hydrozoa | F138: 6074 | G138: 2686 | H138: 2953 | I138: 2691 | J138: 2201 | K138: 2829 | L138: 2829 | M138: =SUM(K138,L138,G138,H138,I138,J138) -> 16189 | N138: 0.00
D139: 75 | E139: Nitrospinia | F139: 1293498 | G139: 1832 | H139: 2019 | I139: 2146 | J139: 2010 | K139: 3933 | L139: 4052 | M139: =SUM(K139,L139,G139,H139,I139,J139) -> 15992 | N139: 0.00
D140: 219 | E140: Chytridiomycetes | F140: 451435 | G140: 2668 | H140: 2980 | I140: 2450 | J140: 2082 | K140: 2771 | L140: 2845 | M140: =SUM(K140,L140,G140,H140,I140,J140) -> 15796 | N140: 0.00
D141: 207 | E141: Pucciniomycetes | F141: 162484 | G141: 2428 | H141: 2663 | I141: 2339 | J141: 1964 | K141: 2619 | L141: 2850 | M141: =SUM(K141,L141,G141,H141,I141,J141) -> 14863 | N141: 0.00
D142: 291 | E142: Eustigmatophyceae | F142: 5747 | G142: 2290 | H142: 2549 | I142: 2307 | J142: 1966 | K142: 2656 | L142: 2769 | M142: =SUM(K142,L142,G142,H142,I142,J142) -> 14537 | N142: 0.00
D143: 346 | E143: Herviviricetes | F143: 2731363 | G143: 1987 | H143: 2249 | I143: 2053 | J143: 1821 | K143: 2796 | L143: 2924 | M143: =SUM(K143,L143,G143,H143,I143,J143) -> 13830 | N143: 0.00
D144: 173 | E144: Demospongiae | F144: 6042 | G144: 2218 | H144: 2432 | I144: 2226 | J144: 1844 | K144: 2428 | L144: 2540 | M144: =SUM(K144,L144,G144,H144,I144,J144) -> 13688 | N144: 0.00
D145: 193 | E145: Schizosaccharomycetes | F145: 147554 | G145: 2102 | H145: 2308 | I145: 2310 | J145: 1962 | K145: 2454 | L145: 2443 | M145: =SUM(K145,L145,G145,H145,I145,J145) -> 13579 | N145: 0.00
D146: 162 | E146: Enteropneusta | F146: 10220 | G146: 2085 | H146: 2328 | I146: 2124 | J146: 1807 | K146: 2283 | L146: 2308 | M146: =SUM(K146,L146,G146,H146,I146,J146) -> 12935 | N146: 0.00
D147: 332 | E147: Methanococci | F147: 183939 | G147: 2132 | H147: 2529 | I147: 2092 | J147: 1725 | K147: 2022 | L147: 2066 | M147: =SUM(K147,L147,G147,H147,I147,J147) -> 12566 | N147: 0.00
D148: 234 | E148: Filasterea | F148: 2687318 | G148: 2250 | H148: 2364 | I148: 1792 | J148: 1435 | K148: 2288 | L148: 2273 | M148: =SUM(K148,L148,G148,H148,I148,J148) -> 12402 | N148: 0.00
D149: 322 | E149: Bangiophyceae | F149: 2797 | G149: 1828 | H149: 2041 | I149: 1974 | J149: 1688 | K149: 2406 | L149: 2357 | M149: =SUM(K149,L149,G149,H149,I149,J149) -> 12294 | N149: 0.00
D150: 21 | E150: Limnochordia | F150: 1676648 | G150: 1782 | H150: 2024 | I150: 1766 | J150: 1527 | K150: 2535 | L150: 2599 | M150: =SUM(K150,L150,G150,H150,I150,J150) -> 12233 | N150: 0.00
D151: 287 | E151: Bacillariophyceae | F151: 33849 | G151: 1855 | H151: 2103 | I151: 1855 | J151: 1575 | K151: 2336 | L151: 2382 | M151: =SUM(K151,L151,G151,H151,I151,J151) -> 12106 | N151: 0.00
D152: 76 | E152: Aquificae | F152: 187857 | G152: 1451 | H152: 1577 | I152: 1977 | J152: 1617 | K152: 2513 | L152: 2498 | M152: =SUM(K152,L152,G152,H152,I152,J152) -> 11633 | N152: 0.00
D153: 77 | E153: Thermodesulfobacteria | F153: 67799 | G153: 1679 | H153: 2030 | I153: 1657 | J153: 1456 | K153: 2212 | L153: 2358 | M153: =SUM(K153,L153,G153,H153,I153,J153) -> 11392 | N153: 0.00
D154: 194 | E154: Pneumocystidomycetes | F154: 147553 | G154: 1839 | H154: 1931 | I154: 2036 | J154: 1731 | K154: 1956 | L154: 1754 | M154: =SUM(K154,L154,G154,H154,I154,J154) -> 11247 | N154: 0.00
D155: 45 | E155: Rhodothermia | F155: 1853222 | G155: 1594 | H155: 1807 | I155: 1334 | J155: 1053 | K155: 2489 | L155: 2622 | M155: =SUM(K155,L155,G155,H155,I155,J155) -> 10899 | N155: 0.00
D156: 60 | E156: Kiritimatiellae | F156: 1921781 | G156: 1381 | H156: 1631 | I156: 1360 | J156: 1264 | K156: 2451 | L156: 2697 | M156: =SUM(K156,L156,G156,H156,I156,J156) -> 10784 | N156: 0.00
D157: 266 | E157: Chloropicophyceae | F157: 2302911 | G157: 1530 | H157: 1775 | I157: 1548 | J157: 1273 | K157: 2142 | L157: 2248 | M157: =SUM(K157,L157,G157,H157,I157,J157) -> 10516 | N157: 0.00
D158: 78 | E158: Calditrichia | F158: 1962850 | G158: 1620 | H158: 2095 | I158: 1336 | J158: 1207 | K158: 2047 | L158: 1995 | M158: =SUM(K158,L158,G158,H158,I158,J158) -> 10300 | N158: 0.00
D159: 304 | E159: Bigyra | F159: 2683628 | G159: 1773 | H159: 2056 | I159: 1343 | J159: 1166 | K159: 1698 | L159: 1709 | M159: =SUM(K159,L159,G159,H159,I159,J159) -> 9745 | N159: 0.00
D160: 79 | E160: Deferribacteres | F160: 68337 | G160: 1333 | H160: 1549 | I160: 1499 | J160: 1375 | K160: 1842 | L160: 1856 | M160: =SUM(K160,L160,G160,H160,I160,J160) -> 9454 | N160: 0.00
D161: 8 | E161: Hydrogenophilalia | F161: 2008785 | G161: 1259 | H161: 1543 | I161: 1720 | J161: 1476 | K161: 1759 | L161: 1694 | M161: =SUM(K161,L161,G161,H161,I161,J161) -> 9451 | N161: 0.00
D162: 288 | E162: Coscinodiscophyceae | F162: 33836 | G162: 1225 | H162: 1429 | I162: 1682 | J162: 1419 | K162: 1782 | L162: 1854 | M162: =SUM(K162,L162,G162,H162,I162,J162) -> 9391 | N162: 0.00
D163: 338 | E163: Nitrososphaeria | F163: 1643678 | G163: 1621 | H163: 1748 | I163: 1372 | J163: 1193 | K163: 1574 | L163: 1565 | M163: =SUM(K163,L163,G163,H163,I163,J163) -> 9073 | N163: 0.00
D164: 31 | E164: Thermoflexia | F164: 1495646 | G164: 1271 | H164: 1492 | I164: 1062 | J164: 997 | K164: 2037 | L164: 2138 | M164: =SUM(K164,L164,G164,H164,I164,J164) -> 8997 | N164: 0.00
D165: 292 | E165: Phaeophyceae | F165: 2870 | G165: 2241 | H165: 2431 | I165: 1059 | J165: 878 | K165: 1099 | L165: 1151 | M165: =SUM(K165,L165,G165,H165,I165,J165) -> 8859 | N165: 0.00
D166: 242 | E166: Polypodiopsida | F166: 241806 | G166: 1817 | H166: 2095 | I166: 1237 | J166: 1134 | K166: 1195 | L166: 1253 | M166: =SUM(K166,L166,G166,H166,I166,J166) -> 8731 | N166: 0.00
D167: 350 | E167: Alsuviricetes | F167: 2732461 | G167: 1194 | H167: 1247 | I167: 1331 | J167: 1223 | K167: 1708 | L167: 1850 | M167: =SUM(K167,L167,G167,H167,I167,J167) -> 8553 | N167: 0.00
D168: 351 | E168: Flasuviricetes | F168: 2732462 | G168: 1188 | H168: 1297 | I168: 1261 | J168: 1054 | K168: 1615 | L168: 1757 | M168: =SUM(K168,L168,G168,H168,I168,J168) -> 8172 | N168: 0.00
D169: 378 | E169: Malgrandaviricetes | F169: 2732413 | G169: 1204 | H169: 1342 | I169: 1496 | J169: 1262 | K169: 1322 | L169: 1389 | M169: =SUM(K169,L169,G169,H169,I169,J169) -> 8015 | N169: 0.00
D170: 368 | E170: Pokkesviricetes | F170: 2732525 | G170: 1057 | H170: 1250 | I170: 1485 | J170: 1169 | K170: 1524 | L170: 1441 | M170: =SUM(K170,L170,G170,H170,I170,J170) -> 7926 | N170: 0.00
D171: 354 | E171: Ellioviricetes | F171: 2497576 | G171: 1432 | H171: 1501 | I171: 1208 | J171: 1086 | K171: 1321 | L171: 1373 | M171: =SUM(K171,L171,G171,H171,I171,J171) -> 7921 | N171: 0.00
D172: 267 | E172: Ulvophyceae | F172: 33103 | G172: 908 | H172: 1071 | I172: 1448 | J172: 1211 | K172: 1585 | L172: 1556 | M172: =SUM(K172,L172,G172,H172,I172,J172) -> 7779 | N172: 0.00
D173: 285 | E173: Dinophyceae | F173: 2864 | G173: 1566 | H173: 1692 | I173: 881 | J173: 734 | K173: 1230 | L173: 1316 | M173: =SUM(K173,L173,G173,H173,I173,J173) -> 7419 | N173: 0.00
D174: 359 | E174: Resentoviricetes | F174: 2732459 | G174: 1018 | H174: 1194 | I174: 1100 | J174: 1001 | K174: 1403 | L174: 1525 | M174: =SUM(K174,L174,G174,H174,I174,J174) -> 7241 | N174: 0.00
D175: 9 | E175: Zetaproteobacteria | F175: 580370 | G175: 1203 | H175: 1309 | I175: 995 | J175: 935 | K175: 1262 | L175: 1395 | M175: =SUM(K175,L175,G175,H175,I175,J175) -> 7099 | N175: 0.00
D176: 235 | E176: Ichthyosporea | F176: 127916 | G176: 955 | H176: 1092 | I176: 978 | J176: 864 | K176: 1382 | L176: 1498 | M176: =SUM(K176,L176,G176,H176,I176,J176) -> 6769 | N176: 0.00
D177: 61 | E177: Tichowtungiia | F177: 2907184 | G177: 738 | H177: 783 | I177: 962 | J177: 898 | K177: 1693 | L177: 1640 | M177: =SUM(K177,L177,G177,H177,I177,J177) -> 6714 | N177: 0.00
D178: 222 | E178: Kickxellomycetes | F178: 2219690 | G178: 1130 | H178: 1169 | I178: 958 | J178: 849 | K178: 1289 | L178: 1311 | M178: =SUM(K178,L178,G178,H178,I178,J178) -> 6706 | N178: 0.00
D179: 218 | E179: Mortierellomycetes | F179: 2212732 | G179: 1092 | H179: 1116 | I179: 996 | J179: 886 | K179: 1212 | L179: 1181 | M179: =SUM(K179,L179,G179,H179,I179,J179) -> 6483 | N179: 0.00
D180: 191 | E180: Orbiliomycetes | F180: 189478 | G180: 942 | H180: 975 | I180: 1199 | J180: 940 | K180: 1210 | L180: 1202 | M180: =SUM(K180,L180,G180,H180,I180,J180) -> 6468 | N180: 0.00
D181: 277 | E181: Spirotrichea | F181: 33829 | G181: 1111 | H181: 1306 | I181: 567 | J181: 344 | K181: 1483 | L181: 1568 | M181: =SUM(K181,L181,G181,H181,I181,J181) -> 6379 | N181: 0.00
D182: 53 | E182: Candidatus Uabimicrobiia | F182: 2897345 | G182: 1016 | H182: 1095 | I182: 908 | J182: 888 | K182: 1187 | L182: 1196 | M182: =SUM(K182,L182,G182,H182,I182,J182) -> 6290 | N182: 0.00
D183: 381 | E183: Naldaviricetes | F183: 2840056 | G183: 989 | H183: 1044 | I183: 1011 | J183: 879 | K183: 1103 | L183: 1205 | M183: =SUM(K183,L183,G183,H183,I183,J183) -> 6231 | N183: 0.00
D184: 56 | E184: Methylacidiphilae | F184: 1955630 | G184: 800 | H184: 932 | I184: 1020 | J184: 877 | K184: 1241 | L184: 1332 | M184: =SUM(K184,L184,G184,H184,I184,J184) -> 6202 | N184: 0.00
D185: 212 | E185: Wallemiomycetes | F185: 431957 | G185: 1140 | H185: 1178 | I185: 863 | J185: 806 | K185: 1024 | L185: 968 | M185: =SUM(K185,L185,G185,H185,I185,J185) -> 5979 | N185: 0.00
D186: 185 | E186: Xylonomycetes | F186: 1217819 | G186: 978 | H186: 1099 | I186: 892 | J186: 746 | K186: 1134 | L186: 1127 | M186: =SUM(K186,L186,G186,H186,I186,J186) -> 5976 | N186: 0.00
D187: 355 | E187: Insthoviricetes | F187: 2497577 | G187: 985 | H187: 1036 | I187: 1102 | J187: 864 | K187: 975 | L187: 999 | M187: =SUM(K187,L187,G187,H187,I187,J187) -> 5961 | N187: 0.00
D188: 80 | E188: Chrysiogenetes | F188: 118001 | G188: 908 | H188: 983 | I188: 919 | J188: 894 | K188: 1016 | L188: 1065 | M188: =SUM(K188,L188,G188,H188,I188,J188) -> 5785 | N188: 0.00
D189: 134 | E189: Polychaeta | F189: 6341 | G189: 646 | H189: 680 | I189: 775 | J189: 661 | K189: 1157 | L189: 1352 | M189: =SUM(K189,L189,G189,H189,I189,J189) -> 5271 | N189: 0.00
D190: 334 | E190: Archaeoglobi | F190: 183980 | G190: 902 | H190: 968 | I190: 749 | J190: 699 | K190: 933 | L190: 923 | M190: =SUM(K190,L190,G190,H190,I190,J190) -> 5174 | N190: 0.00
D191: 200 | E191: Dacrymycetes | F191: 452332 | G191: 1089 | H191: 1125 | I191: 635 | J191: 608 | K191: 793 | L191: 890 | M191: =SUM(K191,L191,G191,H191,I191,J191) -> 5140 | N191: 0.00
D192: 348 | E192: Stelpaviricetes | F192: 2732507 | G192: 887 | H192: 955 | I192: 841 | J192: 632 | K192: 855 | L192: 947 | M192: =SUM(K192,L192,G192,H192,I192,J192) -> 5117 | N192: 0.00
D193: 356 | E193: Monjiviricetes | F193: 2497574 | G193: 969 | H193: 1006 | I193: 684 | J193: 620 | K193: 830 | L193: 970 | M193: =SUM(K193,L193,G193,H193,I193,J193) -> 5079 | N193: 0.00
D194: 124 | E194: Rhabditophora | F194: 147100 | G194: 472 | H194: 592 | I194: 663 | J194: 526 | K194: 1525 | L194: 1264 | M194: =SUM(K194,L194,G194,H194,I194,J194) -> 5042 | N194: =(M194/$A$2)*100 -> 0.00
D195: 208 | E195: Mixiomycetes | F195: 432025 | G195: 733 | H195: 814 | I195: 680 | J195: 560 | K195: 878 | L195: 887 | M195: =SUM(K195,L195,G195,H195,I195,J195) -> 4552 | N195: 0.00
D196: 70 | E196: Candidatus Sumerlaeia | F196: 2315419 | G196: 530 | H196: 533 | I196: 610 | J196: 537 | K196: 1112 | L196: 1132 | M196: =SUM(K196,L196,G196,H196,I196,J196) -> 4454 | N196: 0.00
D197: 35 | E197: Chthonomonadetes | F197: 1077257 | G197: 549 | H197: 655 | I197: 520 | J197: 476 | K197: 1067 | L197: 1134 | M197: =SUM(K197,L197,G197,H197,I197,J197) -> 4401 | N197: 0.00
D198: 278 | E198: Phyllopharyngea | F198: 37471 | G198: 280 | H198: 428 | I198: 830 | J198: 657 | K198: 1086 | L198: 1096 | M198: =SUM(K198,L198,G198,H198,I198,J198) -> 4377 | N198: 0.00
D199: 195 | E199: Taphrinomycetes | F199: 147555 | G199: 883 | H199: 855 | I199: 440 | J199: 442 | K199: 641 | L199: 605 | M199: =SUM(K199,L199,G199,H199,I199,J199) -> 3866 | N199: 0.00
D200: 314 | E200: Euglenida | F200: 3035 | G200: 516 | H200: 556 | I200: 500 | J200: 434 | K200: 586 | L200: 596 | M200: =SUM(K200,L200,G200,H200,I200,J200) -> 3188 | N200: 0.00
... 195 more rows

Sheet Order
A1: total_reads | B1: total_perc | D1: assigned_number | E1: order | F1: taxonomy_id | G1: sample02 | H1: sample03 | I1: sample08 | J1: sample09 | K1: sample10 | L1: sample11 | M1: total_sample_reads | N1: total_sample_reads_perc
A2: =SUM(M2:M1452) -> 357224347 | B2: =SUM(N2:N1452) -> 100 | D2: 16 | E2: Burkholderiales | F2: 80840 | G2: 14474479 | H2: 17431772 | I2: 14372209 | J2: 11966056 | K2: 6348641 | L2: 5805410 | M2: =SUM(K2,L2,G2,H2,I2,J2) -> 70398567 | N2: =(M2/$A$2)*100 -> 19.71
D3: 1 | E3: Hyphomicrobiales | F3: 356 | G3: 5853830 | H3: 6460680 | I3: 5679182 | J3: 5624103 | K3: 4193018 | L3: 3952180 | M3: =SUM(K3,L3,G3,H3,I3,J3) -> 31762993 | N3: 8.89
D4: 2 | E4: Rhodobacterales | F4: 204455 | G4: 4657222 | H4: 5674543 | I4: 4900176 | J4: 4731651 | K4: 2855371 | L4: 2838837 | M4: =SUM(K4,L4,G4,H4,I4,J4) -> 25657800 | N4: 7.18
D5: 207 | E5: Lepidoptera | F5: 7088 | G5: 3286024 | H5: 3677403 | I5: 3802123 | J5: 3097777 | K5: 3615311 | L5: 3658945 | M5: =SUM(K5,L5,G5,H5,I5,J5) -> 21137583 | N5: 5.92
D6: 22 | E6: Xanthomonadales | F6: 135614 | G6: 3403790 | H6: 4737517 | I6: 2763441 | J6: 2524012 | K6: 2071366 | L6: 1894211 | M6: =SUM(K6,L6,G6,H6,I6,J6) -> 17394337 | N6: 4.87
D7: 3 | E7: Sphingomonadales | F7: 204457 | G7: 2765933 | H7: 3430313 | I7: 3239671 | J7: 3028385 | K7: 2036233 | L7: 1884333 | M7: =SUM(K7,L7,G7,H7,I7,J7) -> 16384868 | N7: 4.59
D8: 61 | E8: Micrococcales | F8: 85006 | G8: 3302963 | H8: 4011309 | I8: 2697152 | J8: 3182240 | K8: 1197775 | L8: 1205417 | M8: =SUM(K8,L8,G8,H8,I8,J8) -> 15596856 | N8: 4.37
D9: 138 | E9: Flavobacteriales | F9: 200644 | G9: 1238493 | H9: 1453187 | I9: 5297137 | J9: 4424543 | K9: 1238835 | L9: 1109738 | M9: =SUM(K9,L9,G9,H9,I9,J9) -> 14761933 | N9: 4.13
D10: 517 | E10: Perciformes | F10: 8111 | G10: 313080 | H10: 305034 | I10: 3871702 | J10: 1253683 | K10: 258499 | L10: 271120 | M10: =SUM(K10,L10,G10,H10,I10,J10) -> 6273118 | N10: 1.76
D11: 5 | E11: Caulobacterales | F11: 204458 | G11: 1356920 | H11: 1949828 | I11: 1105833 | J11: 912080 | K11: 455450 | L11: 444162 | M11: =SUM(K11,L11,G11,H11,I11,J11) -> 6224273 | N11: 1.74
D12: 23 | E12: Pseudomonadales | F12: 72274 | G12: 998696 | H12: 1164327 | I12: 1077001 | J12: 945885 | K12: 914309 | L12: 896179 | M12: =SUM(K12,L12,G12,H12,I12,J12) -> 5996397 | N12: 1.68
D13: 139 | E13: Cytophagales | F13: 768507 | G13: 672363 | H13: 747057 | I13: 1303234 | J13: 1159265 | K13: 952225 | L13: 904078 | M13: =SUM(K13,L13,G13,H13,I13,J13) -> 5738222 | N13: 1.61
D14: 60 | E14: Streptomycetales | F14: 85011 | G14: 851231 | H14: 958704 | I14: 731998 | J14: 683721 | K14: 1221349 | L14: 1259164 | M14: =SUM(K14,L14,G14,H14,I14,J14) -> 5706167 | N14: 1.60
D15: 140 | E15: Saprospirales | F15: 1936988 | G15: 1039431 | H15: 1198744 | I15: 679571 | J15: 667674 | K15: 907740 | L15: 837009 | M15: =SUM(K15,L15,G15,H15,I15,J15) -> 5330169 | N15: 1.49
D16: 62 | E16: Corynebacteriales | F16: 85007 | G16: 659749 | H16: 709048 | I16: 699261 | J16: 734331 | K16: 1087183 | L16: 1021015 | M16: =SUM(K16,L16,G16,H16,I16,J16) -> 4910587 | N16: 1.37
D17: 152 | E17: Nitrospirales | F17: 189778 | G17: 54641 | H17: 63662 | I17: 714396 | J17: 757234 | K17: 1551369 | L17: 1731767 | M17: =SUM(K17,L17,G17,H17,I17,J17) -> 4873069 | N17: 1.36
D18: 4 | E18: Rhodospirillales | F18: 204441 | G18: 423096 | H18: 487377 | I18: 491581 | J18: 468678 | K18: 738580 | L18: 766133 | M18: =SUM(K18,L18,G18,H18,I18,J18) -> 3375445 | N18: 0.94
D19: 43 | E19: Myxococcales | F19: 29 | G19: 408238 | H19: 471541 | I19: 332812 | J19: 307876 | K19: 790147 | L19: 800246 | M19: =SUM(K19,L19,G19,H19,I19,J19) -> 3110860 | N19: 0.87
D20: 241 | E20: Podocopida | F20: 84318 | G20: 652299 | H20: 720730 | I20: 429107 | J20: 349928 | K20: 388857 | L20: 347640 | M20: =SUM(K20,L20,G20,H20,I20,J20) -> 2888561 | N20: 0.81
D21: 209 | E21: Hymenoptera | F21: 7399 | G21: 450110 | H21: 498263 | I21: 487465 | J21: 405651 | K21: 506367 | L21: 522475 | M21: =SUM(K21,L21,G21,H21,I21,J21) -> 2870331 | N21: 0.80
D22: 24 | E22: Enterobacterales | F22: 91347 | G22: 400056 | H22: 447813 | I22: 400271 | J22: 356106 | K22: 414215 | L22: 409713 | M22: =SUM(K22,L22,G22,H22,I22,J22) -> 2428174 | N22: 0.68
D23: 454 | E23: Rodentia | F23: 9989 | G23: 362650 | H23: 399271 | I23: 383919 | J23: 317608 | K23: 401734 | L23: 416409 | M23: =SUM(K23,L23,G23,H23,I23,J23) -> 2281591 | N23: 0.64
D24: 248 | E24: Amphipoda | F24: 6821 | G24: 874952 | H24: 1031865 | I24: 149315 | J24: 110538 | K24: 41635 | L24: 37036 | M24: =SUM(K24,L24,G24,H24,I24,J24) -> 2245341 | N24: 0.63
D25: 92 | E25: Bacillales | F25: 1385 | G25: 321276 | H25: 343086 | I25: 347695 | J25: 309319 | K25: 364309 | L25: 366755 | M25: =SUM(K25,L25,G25,H25,I25,J25) -> 2052440 | N25: 0.57
D26: 210 | E26: Diptera | F26: 7147 | G26: 302159 | H26: 334634 | I26: 326528 | J26: 270364 | K26: 349138 | L26: 362378 | M26: =SUM(K26,L26,G26,H26,I26,J26) -> 1945201 | N26: 0.54
D27: 565 | E27: Cypriniformes | F27: 7952 | G27: 266176 | H27: 292395 | I27: 416628 | J27: 274936 | K27: 283183 | L27: 290998 | M27: =SUM(K27,L27,G27,H27,I27,J27) -> 1824316 | N27: 0.51
D28: 17 | E28: Rhodocyclales | F28: 206389 | G28: 295171 | H28: 347404 | I28: 287311 | J28: 252349 | K28: 227317 | L28: 222161 | M28: =SUM(K28,L28,G28,H28,I28,J28) -> 1631713 | N28: 0.46
D29: 63 | E29: Pseudonocardiales | F29: 85010 | G29: 237983 | H29: 267570 | I29: 204367 | J29: 192943 | K29: 350298 | L29: 360702 | M29: =SUM(K29,L29,G29,H29,I29,J29) -> 1613863 | N29: 0.45
D30: 218 | E30: Phasmatodea | F30: 7020 | G30: 249975 | H30: 278659 | I30: 286096 | J30: 232193 | K30: 268588 | L30: 272801 | M30: =SUM(K30,L30,G30,H30,I30,J30) -> 1588312 | N30: 0.44
D31: 64 | E31: Propionibacteriales | F31: 85009 | G31: 228135 | H31: 243193 | I31: 206985 | J31: 204820 | K31: 341102 | L31: 345877 | M31: =SUM(K31,L31,G31,H31,I31,J31) -> 1570112 | N31: 0.44
D32: 448 | E32: Carnivora | F32: 33554 | G32: 232502 | H32: 255838 | I32: 245545 | J32: 204679 | K32: 255852 | L32: 266467 | M32: =SUM(K32,L32,G32,H32,I32,J32) -> 1460883 | N32: 0.41
D33: 211 | E33: Coleoptera | F33: 7041 | G33: 225581 | H33: 251546 | I33: 257544 | J33: 210611 | K33: 242424 | L33: 246496 | M33: =SUM(K33,L33,G33,H33,I33,J33) -> 1434202 | N33: 0.40
D34: 65 | E34: Micromonosporales | F34: 85008 | G34: 214029 | H34: 240982 | I34: 179989 | J34: 169305 | K34: 305812 | L34: 316481 | M34: =SUM(K34,L34,G34,H34,I34,J34) -> 1426598 | N34: 0.40
D35: 19 | E35: Neisseriales | F35: 206351 | G35: 250607 | H35: 292693 | I35: 305824 | J35: 238025 | K35: 165581 | L35: 161041 | M35: =SUM(K35,L35,G35,H35,I35,J35) -> 1413771 | N35: 0.40
D36: 142 | E36: Sphingobacteriales | F36: 200666 | G36: 195532 | H36: 221172 | I36: 274606 | J36: 227825 | K36: 245881 | L36: 229483 | M36: =SUM(K36,L36,G36,H36,I36,J36) -> 1394499 | N36: 0.39
D37: 449 | E37: Artiodactyla | F37: 91561 | G37: 219805 | H37: 242204 | I37: 230410 | J37: 192017 | K37: 240415 | L37: 250030 | M37: =SUM(K37,L37,G37,H37,I37,J37) -> 1374881 | N37: 0.38
D38: 141 | E38: Chitinophagales | F38: 1853229 | G38: 199004 | H38: 226457 | I38: 232428 | J38: 200529 | K38: 264955 | L38: 248195 | M38: =SUM(K38,L38,G38,H38,I38,J38) -> 1371568 | N38: 0.38
D39: 882 | E39: Poales | F39: 38820 | G39: 169734 | H39: 186513 | I39: 186683 | J39: 148364 | K39: 208149 | L39: 218620 | M39: =SUM(K39,L39,G39,H39,I39,J39) -> 1118063 | N39: 0.31
D40: 18 | E40: Nitrosomonadales | F40: 32003 | G40: 210892 | H40: 235210 | I40: 144542 | J40: 132272 | K40: 181055 | L40: 178529 | M40: =SUM(K40,L40,G40,H40,I40,J40) -> 1082500 | N40: 0.30
D41: 26 | E41: Chromatiales | F41: 135613 | G41: 277065 | H41: 232460 | I41: 115179 | J41: 103630 | K41: 160536 | L41: 159733 | M41: =SUM(K41,L41,G41,H41,I41,J41) -> 1048603 | N41: 0.29
D42: 25 | E42: Oceanospirillales | F42: 135619 | G42: 172363 | H42: 197721 | I42: 154866 | J42: 138083 | K42: 183730 | L42: 182410 | M42: =SUM(K42,L42,G42,H42,I42,J42) -> 1029173 | N42: 0.29
D43: 456 | E43: Primates | F43: 9443 | G43: 154336 | H43: 171089 | I43: 163731 | J43: 135653 | K43: 164756 | L43: 171466 | M43: =SUM(K43,L43,G43,H43,I43,J43) -> 961031 | N43: 0.27
D44: 844 | E44: Fabales | F44: 72025 | G44: 154340 | H44: 170997 | I44: 167005 | J44: 136452 | K44: 161022 | L44: 165053 | M44: =SUM(K44,L44,G44,H44,I44,J44) -> 954869 | N44: 0.27
D45: 559 | E45: Salmoniformes | F45: 8006 | G45: 138214 | H45: 151250 | I45: 209018 | J45: 139369 | K45: 156361 | L45: 160338 | M45: =SUM(K45,L45,G45,H45,I45,J45) -> 954550 | N45: 0.27
D46: 861 | E46: Solanales | F46: 4069 | G46: 146829 | H46: 163300 | I46: 155030 | J46: 128725 | K46: 154432 | L46: 157920 | M46: =SUM(K46,L46,G46,H46,I46,J46) -> 906236 | N46: 0.25
D47: 27 | E47: Alteromonadales | F47: 135622 | G47: 125933 | H47: 131710 | I47: 168913 | J47: 148797 | K47: 131748 | L47: 127303 | M47: =SUM(K47,L47,G47,H47,I47,J47) -> 834404 | N47: 0.23
D48: 94 | E48: Eubacteriales | F48: 186802 | G48: 122142 | H48: 137989 | I48: 137661 | J48: 118084 | K48: 156300 | L48: 156326 | M48: =SUM(K48,L48,G48,H48,I48,J48) -> 828502 | N48: 0.23
D49: 208 | E49: Trichoptera | F49: 30263 | G49: 122755 | H49: 137367 | I49: 139455 | J49: 113220 | K49: 130483 | L49: 131986 | M49: =SUM(K49,L49,G49,H49,I49,J49) -> 775266 | N49: 0.22
D50: 150 | E50: Gemmatimonadales | F50: 219686 | G50: 181331 | H50: 214328 | I50: 53462 | J50: 50985 | K50: 118930 | L50: 121229 | M50: =SUM(K50,L50,G50,H50,I50,J50) -> 740265 | N50: 0.21
D51: 66 | E51: Streptosporangiales | F51: 85012 | G51: 105439 | H51: 118568 | I51: 94501 | J51: 89056 | K51: 159177 | L51: 162843 | M51: =SUM(K51,L51,G51,H51,I51,J51) -> 729584 | N51: 0.20
D52: 28 | E52: Aeromonadales | F52: 135624 | G52: 82392 | H52: 96489 | I52: 178037 | J52: 219761 | K52: 75903 | L52: 74254 | M52: =SUM(K52,L52,G52,H52,I52,J52) -> 726836 | N52: 0.20
D53: 143 | E53: Bacteroidales | F53: 171549 | G53: 103338 | H53: 114717 | I53: 122576 | J53: 103521 | K53: 144070 | L53: 138265 | M53: =SUM(K53,L53,G53,H53,I53,J53) -> 726487 | N53: 0.20
D54: 852 | E54: Brassicales | F54: 3699 | G54: 112298 | H54: 124944 | I54: 122385 | J54: 101524 | K54: 121654 | L54: 125403 | M54: =SUM(K54,L54,G54,H54,I54,J54) -> 708208 | N54: 0.20
D55: 853 | E55: Malvales | F55: 41938 | G55: 113081 | H55: 126392 | I55: 119499 | J55: 98188 | K55: 119743 | L55: 122234 | M55: =SUM(K55,L55,G55,H55,I55,J55) -> 699137 | N55: 0.20
D56: 154 | E56: Pirellulales | F56: 2691354 | G56: 80993 | H56: 90680 | I56: 88004 | J56: 87647 | K56: 171316 | L56: 178868 | M56: =SUM(K56,L56,G56,H56,I56,J56) -> 697508 | N56: 0.20
D57: 474 | E57: Passeriformes | F57: 9126 | G57: 111839 | H57: 124519 | I57: 108139 | J57: 91472 | K57: 122285 | L57: 127452 | M57: =SUM(K57,L57,G57,H57,I57,J57) -> 685706 | N57: 0.19
D58: 1272 | E58: Caudovirales | F58: 28883 | G58: 107767 | H58: 120758 | I58: 128622 | J58: 108621 | K58: 104581 | L58: 106905 | M58: =SUM(K58,L58,G58,H58,I58,J58) -> 677254 | N58: 0.19
D59: 30 | E59: Moraxellales | F59: 2887326 | G59: 217284 | H59: 58471 | I59: 149982 | J59: 117319 | K59: 59495 | L59: 57328 | M59: =SUM(K59,L59,G59,H59,I59,J59) -> 659879 | N59: 0.18
D60: 327 | E60: Trochida | F60: 2315720 | G60: 97716 | H60: 108191 | I60: 108940 | J60: 89078 | K60: 103334 | L60: 105556 | M60: =SUM(K60,L60,G60,H60,I60,J60) -> 612815 | N60: 0.17
D61: 475 | E61: Accipitriformes | F61: 2558200 | G61: 95303 | H61: 105093 | I61: 102030 | J61: 84818 | K61: 107692 | L61: 111453 | M61: =SUM(K61,L61,G61,H61,I61,J61) -> 606389 | N61: 0.17
D62: 246 | E62: Decapoda | F62: 6683 | G62: 92041 | H62: 101925 | I62: 101420 | J62: 82273 | K62: 101001 | L62: 104076 | M62: =SUM(K62,L62,G62,H62,I62,J62) -> 582736 | N62: 0.16
D63: 155 | E63: Gemmatales | F63: 2691355 | G63: 57396 | H63: 64827 | I63: 66278 | J63: 63788 | K63: 145011 | L63: 166059 | M63: =SUM(K63,L63,G63,H63,I63,J63) -> 563359 | N63: 0.16
D64: 93 | E64: Lactobacillales | F64: 186826 | G64: 77237 | H64: 86610 | I64: 106128 | J64: 95183 | K64: 95326 | L64: 94409 | M64: =SUM(K64,L64,G64,H64,I64,J64) -> 554893 | N64: 0.16
D65: 518 | E65: Spariformes | F65: 1489931 | G65: 65263 | H65: 69373 | I65: 188790 | J65: 88301 | K65: 65953 | L65: 68095 | M65: =SUM(K65,L65,G65,H65,I65,J65) -> 545775 | N65: 0.15
D66: 156 | E66: Planctomycetales | F66: 112 | G66: 58834 | H66: 65810 | I66: 70007 | J66: 65924 | K66: 128647 | L66: 137265 | M66: =SUM(K66,L66,G66,H66,I66,J66) -> 526487 | N66: =(M66/$A$2)*100 -> 0.15
D67: 450 | E67: Chiroptera | F67: 9397 | G67: 83135 | H67: 92206 | I67: 83313 | J67: 70397 | K67: 92279 | L67: 96311 | M67: =SUM(K67,L67,G67,H67,I67,J67) -> 517641 | N67: 0.14
D68: 129 | E68: Deinococcales | F68: 118964 | G68: 50194 | H68: 48773 | I68: 129852 | J68: 169866 | K68: 56736 | L68: 57072 | M68: =SUM(K68,L68,G68,H68,I68,J68) -> 512493 | N68: 0.14
D69: 163 | E69: Verrucomicrobiales | F69: 48461 | G69: 62686 | H69: 68125 | I69: 72594 | J69: 67224 | K69: 122581 | L69: 115593 | M69: =SUM(K69,L69,G69,H69,I69,J69) -> 508803 | N69: 0.14
D70: 6 | E70: Rickettsiales | F70: 766 | G70: 7626 | H70: 8691 | I70: 67003 | J70: 69011 | K70: 182979 | L70: 172647 | M70: =SUM(K70,L70,G70,H70,I70,J70) -> 507957 | N70: 0.14
D71: 679 | E71: Hypocreales | F71: 5125 | G71: 80574 | H71: 89320 | I71: 74374 | J71: 64974 | K71: 96640 | L71: 100317 | M71: =SUM(K71,L71,G71,H71,I71,J71) -> 506199 | N71: 0.14
D72: 82 | E72: Acidimicrobiales | F72: 84993 | G72: 66859 | H72: 67913 | I72: 51394 | J72: 63064 | K72: 135491 | L72: 117900 | M72: =SUM(K72,L72,G72,H72,I72,J72) -> 502621 | N72: 0.14
D73: 310 | E73: Rhabditida | F73: 6236 | G73: 92340 | H73: 133926 | I73: 84689 | J73: 69604 | K73: 53994 | L73: 55275 | M73: =SUM(K73,L73,G73,H73,I73,J73) -> 489828 | N73: 0.14
D74: 535 | E74: Blenniiformes | F74: 1489921 | G74: 73077 | H74: 80613 | I74: 99032 | J74: 70189 | K74: 80671 | L74: 84538 | M74: =SUM(K74,L74,G74,H74,I74,J74) -> 488120 | N74: 0.14
D75: 708 | E75: Eurotiales | F75: 5042 | G75: 77962 | H75: 86311 | I75: 72702 | J75: 63681 | K75: 91566 | L75: 95060 | M75: =SUM(K75,L75,G75,H75,I75,J75) -> 487282 | N75: 0.14
D76: 532 | E76: Beloniformes | F76: 76071 | G76: 70259 | H76: 78317 | I76: 101931 | J76: 71762 | K76: 77267 | L76: 79932 | M76: =SUM(K76,L76,G76,H76,I76,J76) -> 479468 | N76: 0.13
D77: 538 | E77: Carangiformes | F77: 1489907 | G77: 58103 | H77: 62694 | I77: 102110 | J77: 64199 | K77: 65878 | L77: 68409 | M77: =SUM(K77,L77,G77,H77,I77,J77) -> 421393 | N77: 0.12
D78: 862 | E78: Lamiales | F78: 4143 | G78: 66168 | H78: 73295 | I78: 72071 | J78: 59267 | K78: 69941 | L78: 71793 | M78: =SUM(K78,L78,G78,H78,I78,J78) -> 412535 | N78: 0.12
D79: 29 | E79: Vibrionales | F79: 135623 | G79: 66072 | H79: 71452 | I79: 69719 | J79: 60150 | K79: 72414 | L79: 71239 | M79: =SUM(K79,L79,G79,H79,I79,J79) -> 411046 | N79: 0.12
D80: 533 | E80: Cyprinodontiformes | F80: 28738 | G80: 60425 | H80: 66457 | I80: 74762 | J80: 57799 | K80: 69226 | L80: 72058 | M80: =SUM(K80,L80,G80,H80,I80,J80) -> 400727 | N80: 0.11
D81: 845 | E81: Rosales | F81: 3744 | G81: 63112 | H81: 69749 | I81: 65747 | J81: 55006 | K81: 72130 | L81: 74274 | M81: =SUM(K81,L81,G81,H81,I81,J81) -> 400018 | N81: 0.11
D82: 503 | E82: Apterygiformes | F82: 8819 | G82: 63380 | H82: 69703 | I82: 66471 | J82: 55203 | K82: 70993 | L82: 73138 | M82: =SUM(K82,L82,G82,H82,I82,J82) -> 398888 | N82: 0.11
D83: 755 | E83: Saccharomycetales | F83: 4892 | G83: 64752 | H83: 71616 | I83: 64234 | J83: 53497 | K83: 69264 | L83: 71587 | M83: =SUM(K83,L83,G83,H83,I83,J83) -> 394950 | N83: 0.11
D84: 545 | E84: Scombriformes | F84: 1489894 | G84: 44266 | H84: 47497 | I84: 145430 | J84: 66439 | K84: 43978 | L84: 45990 | M84: =SUM(K84,L84,G84,H84,I84,J84) -> 393600 | N84: 0.11
D85: 257 | E85: Siphonostomatoida | F85: 72033 | G85: 56762 | H85: 63352 | I85: 67902 | J85: 55293 | K85: 62249 | L85: 62654 | M85: =SUM(K85,L85,G85,H85,I85,J85) -> 368212 | N85: 0.10
D86: 519 | E86: Pempheriformes | F86: 1489939 | G86: 34101 | H86: 36751 | I86: 149759 | J86: 61956 | K86: 35358 | L86: 36366 | M86: =SUM(K86,L86,G86,H86,I86,J86) -> 354291 | N86: 0.10
D87: 846 | E87: Fagales | F87: 3502 | G87: 55223 | H87: 60443 | I87: 60177 | J87: 50163 | K87: 63171 | L87: 63631 | M87: =SUM(K87,L87,G87,H87,I87,J87) -> 352808 | N87: 0.10
D88: 543 | E88: Kurtiformes | F88: 1489876 | G88: 49973 | H88: 54829 | I88: 79974 | J88: 51371 | K88: 55951 | L88: 58437 | M88: =SUM(K88,L88,G88,H88,I88,J88) -> 350535 | N88: 0.10
D89: 512 | E89: Gymnophiona | F89: 8445 | G89: 56990 | H89: 62561 | I89: 57881 | J89: 48238 | K89: 61241 | L89: 63414 | M89: =SUM(K89,L89,G89,H89,I89,J89) -> 350325 | N89: 0.10
D90: 106 | E90: Nostocales | F90: 1161 | G90: 47534 | H90: 52600 | I90: 57790 | J90: 49275 | K90: 72053 | L90: 69534 | M90: =SUM(K90,L90,G90,H90,I90,J90) -> 348786 | N90: 0.10
D91: 580 | E91: Acipenseriformes | F91: 7899 | G91: 53493 | H91: 58709 | I91: 65506 | J91: 48645 | K91: 57295 | L91: 59296 | M91: =SUM(K91,L91,G91,H91,I91,J91) -> 342944 | N91: 0.10
D92: 344 | E92: Ostreida | F92: 6562 | G92: 54295 | H92: 59804 | I92: 60026 | J92: 49151 | K92: 58856 | L92: 59855 | M92: =SUM(K92,L92,G92,H92,I92,J92) -> 341987 | N92: 0.10
D93: 476 | E93: Galliformes | F93: 8976 | G93: 53804 | H93: 59262 | I93: 54280 | J93: 44735 | K93: 57951 | L93: 59836 | M93: =SUM(K93,L93,G93,H93,I93,J93) -> 329868 | N93: 0.09
D94: 541 | E94: Anabantiformes | F94: 1489900 | G94: 48067 | H94: 52722 | I94: 67062 | J94: 46043 | K94: 53150 | L94: 55495 | M94: =SUM(K94,L94,G94,H94,I94,J94) -> 322539 | N94: 0.09
D95: 164 | E95: Opitutales | F95: 415000 | G95: 29351 | H95: 32635 | I95: 38060 | J95: 33000 | K95: 92752 | L95: 94903 | M95: =SUM(K95,L95,G95,H95,I95,J95) -> 320701 | N95: 0.09
D96: 7 | E96: Hyphomonadales | F96: 2800060 | G96: 49470 | H96: 59088 | I96: 36809 | J96: 34596 | K96: 72092 | L96: 67441 | M96: =SUM(K96,L96,G96,H96,I96,J96) -> 319496 | N96: 0.09
D97: 52 | E97: Campylobacterales | F97: 213849 | G97: 41717 | H97: 47283 | I97: 59659 | J97: 53471 | K97: 53163 | L97: 51767 | M97: =SUM(K97,L97,G97,H97,I97,J97) -> 307060 | N97: 0.09
D98: 31 | E98: Methylococcales | F98: 135618 | G98: 49022 | H98: 56873 | I98: 47509 | J98: 42140 | K98: 54602 | L98: 54242 | M98: =SUM(K98,L98,G98,H98,I98,J98) -> 304388 | N98: 0.09
D99: 44 | E99: Desulfuromonadales | F99: 69541 | G99: 42151 | H99: 48270 | I99: 39726 | J99: 36670 | K99: 67793 | L99: 69764 | M99: =SUM(K99,L99,G99,H99,I99,J99) -> 304374 | N99: 0.09
D100: 219 | E100: Plecoptera | F100: 50622 | G100: 45988 | H100: 51405 | I100: 51090 | J100: 42222 | K100: 55652 | L100: 56976 | M100: =SUM(K100,L100,G100,H100,I100,J100) -> 303333 | N100: 0.08
D101: 539 | E101: Pleuronectiformes | F101: 8252 | G101: 39185 | H101: 42427 | I101: 77753 | J101: 44835 | K101: 43422 | L101: 45160 | M101: =SUM(K101,L101,G101,H101,I101,J101) -> 292782 | N101: 0.08
D102: 572 | E102: Osteoglossiformes | F102: 41712 | G102: 45670 | H102: 50038 | I102: 47984 | J102: 39475 | K102: 51839 | L102: 53509 | M102: =SUM(K102,L102,G102,H102,I102,J102) -> 288515 | N102: 0.08
D103: 45 | E103: Desulfovibrionales | F103: 213115 | G103: 42076 | H103: 47896 | I103: 41172 | J103: 37254 | K103: 59257 | L103: 60322 | M103: =SUM(K103,L103,G103,H103,I103,J103) -> 287977 | N103: 0.08
D104: 32 | E104: Cellvibrionales | F104: 1706369 | G104: 45107 | H104: 50492 | I104: 43585 | J104: 38552 | K104: 54102 | L104: 53102 | M104: =SUM(K104,L104,G104,H104,I104,J104) -> 284940 | N104: 0.08
D105: 107 | E105: Synechococcales | F105: 1890424 | G105: 42758 | H105: 48544 | I105: 39719 | J105: 35640 | K105: 57415 | L105: 58644 | M105: =SUM(K105,L105,G105,H105,I105,J105) -> 282720 | N105: 0.08
D106: 716 | E106: Pleosporales | F106: 92860 | G106: 43825 | H106: 48330 | I106: 41867 | J106: 36440 | K106: 53421 | L106: 55934 | M106: =SUM(K106,L106,G106,H106,I106,J106) -> 279817 | N106: 0.08
D107: 345 | E107: Pectinida | F107: 106218 | G107: 42819 | H107: 47844 | I107: 47651 | J107: 39614 | K107: 48299 | L107: 50137 | M107: =SUM(K107,L107,G107,H107,I107,J107) -> 276364 | N107: 0.08
D108: 549 | E108: Holocentriformes | F108: 1490028 | G108: 40421 | H108: 44384 | I108: 56217 | J108: 39347 | K108: 46733 | L108: 48200 | M108: =SUM(K108,L108,G108,H108,I108,J108) -> 275302 | N108: 0.08
D109: 510 | E109: Squamata | F109: 8509 | G109: 44890 | H109: 49319 | I109: 43086 | J109: 36319 | K109: 48294 | L109: 50982 | M109: =SUM(K109,L109,G109,H109,I109,J109) -> 272890 | N109: 0.08
D110: 67 | E110: Actinomycetales | F110: 2037 | G110: 39372 | H110: 44203 | I110: 35825 | J110: 33216 | K110: 57510 | L110: 58848 | M110: =SUM(K110,L110,G110,H110,I110,J110) -> 268974 | N110: 0.08
D111: 374 | E111: Diphyllobothriidea | F111: 1224679 | G111: 41281 | H111: 45086 | I111: 41775 | J111: 35000 | K111: 45990 | L111: 47664 | M111: =SUM(K111,L111,G111,H111,I111,J111) -> 256796 | N111: 0.07
D112: 349 | E112: Cardiida | F112: 2783445 | G112: 40095 | H112: 44002 | I112: 42685 | J112: 35156 | K112: 41550 | L112: 42410 | M112: =SUM(K112,L112,G112,H112,I112,J112) -> 245898 | N112: 0.07
D113: 601 | E113: Forcipulatida | F113: 7599 | G113: 37569 | H113: 41393 | I113: 42067 | J113: 35017 | K113: 43140 | L113: 44254 | M113: =SUM(K113,L113,G113,H113,I113,J113) -> 243440 | N113: 0.07
D114: 1241 | E114: Halobacteriales | F114: 2235 | G114: 33661 | H114: 37287 | I114: 30705 | J114: 28864 | K114: 53960 | L114: 57129 | M114: =SUM(K114,L114,G114,H114,I114,J114) -> 241606 | N114: 0.07
D115: 173 | E115: Vicinamibacterales | F115: 2910145 | G115: 24001 | H115: 29102 | I115: 25318 | J115: 26338 | K115: 63550 | L115: 73294 | M115: =SUM(K115,L115,G115,H115,I115,J115) -> 241603 | N115: 0.07
D116: 534 | E116: Atheriniformes | F116: 8075 | G116: 34910 | H116: 38540 | I116: 42346 | J116: 33415 | K116: 39677 | L116: 40638 | M116: =SUM(K116,L116,G116,H116,I116,J116) -> 229526 | N116: 0.06
D117: 570 | E117: Clupeiformes | F117: 32446 | G117: 32752 | H117: 35726 | I117: 43197 | J117: 31371 | K117: 38794 | L117: 40619 | M117: =SUM(K117,L117,G117,H117,I117,J117) -> 222459 | N117: 0.06
D118: 158 | E118: Phycisphaerales | F118: 666506 | G118: 26797 | H118: 29788 | I118: 26798 | J118: 24694 | K118: 52805 | L118: 53490 | M118: =SUM(K118,L118,G118,H118,I118,J118) -> 214372 | N118: 0.06
D119: 542 | E119: Synbranchiformes | F119: 43697 | G119: 32147 | H119: 34722 | I119: 47385 | J119: 31385 | K119: 32830 | L119: 34334 | M119: =SUM(K119,L119,G119,H119,I119,J119) -> 212803 | N119: 0.06
D120: 847 | E120: Malpighiales | F120: 3646 | G120: 34665 | H120: 38092 | I120: 35187 | J120: 29333 | K120: 37146 | L120: 38102 | M120: =SUM(K120,L120,G120,H120,I120,J120) -> 212525 | N120: 0.06
D121: 551 | E121: Gadiformes | F121: 8043 | G121: 27297 | H121: 29840 | I121: 58131 | J121: 32797 | K121: 31276 | L121: 32901 | M121: =SUM(K121,L121,G121,H121,I121,J121) -> 212242 | N121: 0.06
D122: 546 | E122: Batrachoidiformes | F122: 8064 | G122: 31750 | H122: 34804 | I122: 43759 | J122: 30374 | K122: 35115 | L122: 36336 | M122: =SUM(K122,L122,G122,H122,I122,J122) -> 212138 | N122: 0.06
D123: 477 | E123: Anseriformes | F123: 8826 | G123: 34720 | H123: 38082 | I123: 35018 | J123: 28907 | K123: 36709 | L123: 38609 | M123: =SUM(K123,L123,G123,H123,I123,J123) -> 212045 | N123: 0.06
D124: 228 | E124: Hemiptera | F124: 7524 | G124: 32798 | H124: 36711 | I124: 36313 | J124: 30085 | K124: 36758 | L124: 37369 | M124: =SUM(K124,L124,G124,H124,I124,J124) -> 210034 | N124: 0.06
D125: 569 | E125: Gonorynchiformes | F125: 29140 | G125: 31905 | H125: 34805 | I125: 39858 | J125: 30149 | K125: 35516 | L125: 37626 | M125: =SUM(K125,L125,G125,H125,I125,J125) -> 209859 | N125: 0.06
D126: 478 | E126: Caprimulgiformes | F126: 8902 | G126: 33267 | H126: 37058 | I126: 34135 | J126: 28468 | K126: 35293 | L126: 36634 | M126: =SUM(K126,L126,G126,H126,I126,J126) -> 204855 | N126: 0.06
D127: 46 | E127: Desulfobacterales | F127: 213118 | G127: 27309 | H127: 31133 | I127: 29041 | J127: 25836 | K127: 43377 | L127: 43992 | M127: =SUM(K127,L127,G127,H127,I127,J127) -> 200688 | N127: 0.06
D128: 1242 | E128: Haloferacales | F128: 1644055 | G128: 28533 | H128: 31225 | I128: 24805 | J128: 23137 | K128: 45234 | L128: 47537 | M128: =SUM(K128,L128,G128,H128,I128,J128) -> 200471 | N128: 0.06
D129: 480 | E129: Columbiformes | F129: 8929 | G129: 31928 | H129: 35589 | I129: 31711 | J129: 26004 | K129: 35916 | L129: 37204 | M129: =SUM(K129,L129,G129,H129,I129,J129) -> 198352 | N129: 0.06
D130: 157 | E130: Isosphaerales | F130: 2691356 | G130: 20381 | H130: 22857 | I130: 22995 | J130: 21876 | K130: 47361 | L130: 51396 | M130: =SUM(K130,L130,G130,H130,I130,J130) -> 186866 | N130: =(M130/$A$2)*100 -> 0.05
D131: 288 | E131: Sarcoptiformes | F131: 83137 | G131: 27650 | H131: 30871 | I131: 32694 | J131: 26748 | K131: 33265 | L131: 33658 | M131: =SUM(K131,L131,G131,H131,I131,J131) -> 184886 | N131: 0.05
D132: 311 | E132: Strongylida | F132: 6308 | G132: 28711 | H132: 31092 | I132: 30336 | J132: 25856 | K132: 33392 | L132: 34668 | M132: =SUM(K132,L132,G132,H132,I132,J132) -> 184055 | N132: 0.05
D133: 33 | E133: Thiotrichales | F133: 72273 | G133: 25328 | H133: 28946 | I133: 30430 | J133: 26633 | K133: 33889 | L133: 32843 | M133: =SUM(K133,L133,G133,H133,I133,J133) -> 178069 | N133: 0.05
D134: 848 | E134: Cucurbitales | F134: 71239 | G134: 27582 | H134: 30553 | I134: 29156 | J134: 23913 | K134: 30779 | L134: 31723 | M134: =SUM(K134,L134,G134,H134,I134,J134) -> 173706 | N134: 0.05
D135: 1008 | E135: Haemosporida | F135: 5819 | G135: 27339 | H135: 30889 | I135: 29616 | J135: 23578 | K135: 26680 | L135: 27081 | M135: =SUM(K135,L135,G135,H135,I135,J135) -> 165183 | N135: 0.05
D136: 710 | E136: Chaetothyriales | F136: 34395 | G136: 27283 | H136: 30263 | I136: 23336 | J136: 20501 | K136: 31005 | L136: 32294 | M136: =SUM(K136,L136,G136,H136,I136,J136) -> 164682 | N136: 0.05
D137: 1155 | E137: Trypanosomatida | F137: 2704949 | G137: 25052 | H137: 27817 | I137: 23311 | J137: 20318 | K137: 31667 | L137: 33445 | M137: =SUM(K137,L137,G137,H137,I137,J137) -> 161610 | N137: 0.05
D138: 34 | E138: Pasteurellales | F138: 135625 | G138: 22755 | H138: 24970 | I138: 29791 | J138: 24993 | K138: 28822 | L138: 27523 | M138: =SUM(K138,L138,G138,H138,I138,J138) -> 158854 | N138: 0.04
D139: 600 | E139: Amphioxiformes | F139: 2682553 | G139: 24484 | H139: 26960 | I139: 26358 | J139: 22186 | K139: 28197 | L139: 29813 | M139: =SUM(K139,L139,G139,H139,I139,J139) -> 157998 | N139: 0.04
D140: 973 | E140: Chlamydomonadales | F140: 3042 | G140: 24762 | H140: 27709 | I140: 22428 | J140: 19909 | K140: 30048 | L140: 31654 | M140: =SUM(K140,L140,G140,H140,I140,J140) -> 156510 | N140: 0.04
D141: 174 | E141: Acidobacteriales | F141: 204433 | G141: 17048 | H141: 19568 | I141: 19303 | J141: 18008 | K141: 37428 | L141: 39932 | M141: =SUM(K141,L141,G141,H141,I141,J141) -> 151287 | N141: 0.04
D142: 1243 | E142: Natrialbales | F142: 1644060 | G142: 20470 | H142: 22340 | I142: 19690 | J142: 18119 | K142: 33894 | L142: 36035 | M142: =SUM(K142,L142,G142,H142,I142,J142) -> 150548 | N142: 0.04
D143: 883 | E143: Zingiberales | F143: 4618 | G143: 22483 | H143: 24787 | I143: 24503 | J143: 20451 | K143: 25892 | L143: 26998 | M143: =SUM(K143,L143,G143,H143,I143,J143) -> 145114 | N143: 0.04
D144: 680 | E144: Glomerellales | F144: 1028384 | G144: 23899 | H144: 26181 | I144: 19903 | J144: 17662 | K144: 27873 | L144: 29068 | M144: =SUM(K144,L144,G144,H144,I144,J144) -> 144586 | N144: 0.04
D145: 509 | E145: Testudines | F145: 8459 | G145: 23640 | H145: 26371 | I145: 22588 | J145: 19335 | K145: 25667 | L145: 26670 | M145: =SUM(K145,L145,G145,H145,I145,J145) -> 144271 | N145: 0.04
D146: 627 | E146: Actiniaria | F146: 6103 | G146: 21397 | H146: 23684 | I146: 24339 | J146: 19989 | K146: 24203 | L146: 25578 | M146: =SUM(K146,L146,G146,H146,I146,J146) -> 139190 | N146: 0.04
D147: 110 | E147: Pseudanabaenales | F147: 2881377 | G147: 19047 | H147: 21855 | I147: 20317 | J147: 18160 | K147: 28597 | L147: 28243 | M147: =SUM(K147,L147,G147,H147,I147,J147) -> 136219 | N147: 0.04
D148: 869 | E148: Ericales | F148: 41945 | G148: 21815 | H148: 23559 | I148: 23191 | J148: 19441 | K148: 23742 | L148: 24202 | M148: =SUM(K148,L148,G148,H148,I148,J148) -> 135950 | N148: 0.04
D149: 68 | E149: Frankiales | F149: 85013 | G149: 19075 | H149: 21197 | I149: 17010 | J149: 16325 | K149: 30316 | L149: 31232 | M149: =SUM(K149,L149,G149,H149,I149,J149) -> 135155 | N149: 0.04
D150: 595 | E150: Aplousobranchia | F150: 32436 | G150: 21401 | H150: 23211 | I150: 21560 | J150: 17891 | K150: 21800 | L150: 22499 | M150: =SUM(K150,L150,G150,H150,I150,J150) -> 128362 | N150: 0.04
D151: 69 | E151: Geodermatophilales | F151: 1643682 | G151: 19563 | H151: 21842 | I151: 16608 | J151: 15676 | K151: 26735 | L151: 27464 | M151: =SUM(K151,L151,G151,H151,I151,J151) -> 127888 | N151: 0.04
D152: 520 | E152: Tetraodontiformes | F152: 31022 | G152: 19216 | H152: 21077 | I152: 24512 | J152: 18300 | K152: 21986 | L152: 22638 | M152: =SUM(K152,L152,G152,H152,I152,J152) -> 127729 | N152: 0.04
D153: 54 | E153: Bdellovibrionales | F153: 213481 | G153: 16727 | H153: 20549 | I153: 27138 | J153: 21337 | K153: 19921 | L153: 19841 | M153: =SUM(K153,L153,G153,H153,I153,J153) -> 125513 | N153: 0.04
D154: 547 | E154: Syngnathiformes | F154: 129912 | G154: 18805 | H154: 20528 | I154: 22007 | J154: 17197 | K154: 21996 | L154: 23268 | M154: =SUM(K154,L154,G154,H154,I154,J154) -> 123801 | N154: 0.03
D155: 387 | E155: Strigeidida | F155: 6180 | G155: 19532 | H155: 21454 | I155: 21258 | J155: 16986 | K155: 21114 | L155: 21831 | M155: =SUM(K155,L155,G155,H155,I155,J155) -> 122175 | N155: 0.03
D156: 388 | E156: Plagiorchiida | F156: 27871 | G156: 20695 | H156: 23327 | I156: 19068 | J156: 16015 | K156: 20966 | L156: 21466 | M156: =SUM(K156,L156,G156,H156,I156,J156) -> 121537 | N156: 0.03
D157: 720 | E157: Mycosphaerellales | F157: 2726947 | G157: 19189 | H157: 20743 | I157: 17331 | J157: 15467 | K157: 22517 | L157: 23695 | M157: =SUM(K157,L157,G157,H157,I157,J157) -> 118942 | N157: 0.03
D158: 860 | E158: Vitales | F158: 403667 | G158: 18435 | H158: 20254 | I158: 21017 | J158: 17700 | K158: 19981 | L158: 20323 | M158: =SUM(K158,L158,G158,H158,I158,J158) -> 117710 | N158: 0.03
D159: 771 | E159: Agaricales | F159: 5338 | G159: 18187 | H159: 20010 | I159: 18089 | J159: 15742 | K159: 21859 | L159: 22337 | M159: =SUM(K159,L159,G159,H159,I159,J159) -> 116224 | N159: 0.03
D160: 70 | E160: Bifidobacteriales | F160: 85004 | G160: 17293 | H160: 19612 | I160: 15653 | J160: 14550 | K160: 24195 | L160: 24494 | M160: =SUM(K160,L160,G160,H160,I160,J160) -> 115797 | N160: 0.03
D161: 513 | E161: Anura | F161: 8342 | G161: 18029 | H161: 19668 | I161: 18965 | J161: 16297 | K161: 20788 | L161: 21544 | M161: =SUM(K161,L161,G161,H161,I161,J161) -> 115291 | N161: 0.03
D162: 212 | E162: Neuroptera | F162: 7516 | G162: 17363 | H162: 19499 | I162: 22150 | J162: 18126 | K162: 18838 | L162: 18845 | M162: =SUM(K162,L162,G162,H162,I162,J162) -> 114821 | N162: 0.03
D163: 83 | E163: Solirubrobacterales | F163: 588673 | G163: 14768 | H163: 16610 | I163: 13963 | J163: 13718 | K163: 27724 | L163: 27442 | M163: =SUM(K163,L163,G163,H163,I163,J163) -> 114225 | N163: 0.03
D164: 35 | E164: Legionellales | F164: 118969 | G164: 14212 | H164: 15971 | I164: 18764 | J164: 16582 | K164: 24600 | L164: 22829 | M164: =SUM(K164,L164,G164,H164,I164,J164) -> 112958 | N164: 0.03
D165: 783 | E165: Ustilaginales | F165: 5267 | G165: 18304 | H165: 20699 | I165: 14847 | J165: 13118 | K165: 21888 | L165: 23124 | M165: =SUM(K165,L165,G165,H165,I165,J165) -> 111980 | N165: 0.03
D166: 761 | E166: Polyporales | F166: 5303 | G166: 16971 | H166: 18861 | I166: 15275 | J166: 13524 | K166: 21558 | L166: 22478 | M166: =SUM(K166,L166,G166,H166,I166,J166) -> 108667 | N166: 0.03
D167: 700 | E167: Helotiales | F167: 5178 | G167: 16807 | H167: 18779 | I167: 16261 | J167: 14089 | K167: 20472 | L167: 21023 | M167: =SUM(K167,L167,G167,H167,I167,J167) -> 107431 | N167: 0.03
D168: 86 | E168: Eggerthellales | F168: 1643822 | G168: 15794 | H168: 18016 | I168: 13575 | J168: 12279 | K168: 23468 | L168: 24173 | M168: =SUM(K168,L168,G168,H168,I168,J168) -> 107305 | N168: 0.03
D169: 891 | E169: Alismatales | F169: 16360 | G169: 16606 | H169: 17941 | I169: 18327 | J169: 14885 | K169: 18925 | L169: 19896 | M169: =SUM(K169,L169,G169,H169,I169,J169) -> 106580 | N169: 0.03
D170: 88 | E170: Rubrobacterales | F170: 84996 | G170: 14060 | H170: 16040 | I170: 12559 | J170: 12309 | K170: 24361 | L170: 24407 | M170: =SUM(K170,L170,G170,H170,I170,J170) -> 103736 | N170: 0.03
D171: 144 | E171: Marinilabiliales | F171: 1970189 | G171: 14476 | H171: 16299 | I171: 20123 | J171: 17161 | K171: 17384 | L171: 16395 | M171: =SUM(K171,L171,G171,H171,I171,J171) -> 101838 | N171: 0.03
D172: 1011 | E172: Eucoccidiorida | F172: 75739 | G172: 16546 | H172: 18205 | I172: 15291 | J172: 12899 | K172: 18364 | L172: 19344 | M172: =SUM(K172,L172,G172,H172,I172,J172) -> 100649 | N172: 0.03
D173: 685 | E173: Sordariales | F173: 5139 | G173: 15027 | H173: 16465 | I173: 14260 | J173: 12504 | K173: 19756 | L173: 20141 | M173: =SUM(K173,L173,G173,H173,I173,J173) -> 98153 | N173: 0.03
D174: 566 | E174: Siluriformes | F174: 7995 | G174: 14520 | H174: 16076 | I174: 18033 | J174: 13781 | K174: 17363 | L174: 18201 | M174: =SUM(K174,L174,G174,H174,I174,J174) -> 97974 | N174: 0.03
D175: 36 | E175: Nevskiales | F175: 1775403 | G175: 16847 | H175: 19692 | I175: 12078 | J175: 10963 | K175: 18527 | L175: 18107 | M175: =SUM(K175,L175,G175,H175,I175,J175) -> 96214 | N175: 0.03
D176: 8 | E176: Maricaulales | F176: 2800059 | G176: 14070 | H176: 16434 | I176: 13652 | J176: 12672 | K176: 19229 | L176: 18739 | M176: =SUM(K176,L176,G176,H176,I176,J176) -> 94796 | N176: 0.03
D177: 179 | E177: Spirochaetales | F177: 136 | G177: 13543 | H177: 14854 | I177: 14923 | J177: 12839 | K177: 18732 | L177: 18876 | M177: =SUM(K177,L177,G177,H177,I177,J177) -> 93767 | N177: 0.03
D178: 536 | E178: Cichliformes | F178: 1489911 | G178: 14664 | H178: 16139 | I178: 17818 | J178: 13468 | K178: 15409 | L178: 15980 | M178: =SUM(K178,L178,G178,H178,I178,J178) -> 93478 | N178: 0.03
D179: 628 | E179: Scleractinia | F179: 6125 | G179: 13395 | H179: 14624 | I179: 15317 | J179: 12947 | K179: 16694 | L179: 17191 | M179: =SUM(K179,L179,G179,H179,I179,J179) -> 90168 | N179: 0.03
D180: 870 | E180: Asterales | F180: 4209 | G180: 14528 | H180: 15811 | I180: 15245 | J180: 12899 | K180: 15136 | L180: 15593 | M180: =SUM(K180,L180,G180,H180,I180,J180) -> 89212 | N180: 0.02
D181: 407 | E181: Heteronemertea | F181: 6219 | G181: 13439 | H181: 14655 | I181: 14677 | J181: 11903 | K181: 16084 | L181: 16774 | M181: =SUM(K181,L181,G181,H181,I181,J181) -> 87532 | N181: 0.02
D182: 410 | E182: Cheilostomatida | F182: 10207 | G182: 13429 | H182: 14684 | I182: 14161 | J182: 12069 | K182: 15465 | L182: 15708 | M182: =SUM(K182,L182,G182,H182,I182,J182) -> 85516 | N182: 0.02
D183: 928 | E183: Marchantiales | F183: 28908 | G183: 13009 | H183: 14376 | I183: 13533 | J183: 11631 | K183: 15347 | L183: 15666 | M183: =SUM(K183,L183,G183,H183,I183,J183) -> 83562 | N183: 0.02
D184: 808 | E184: Glomerales | F184: 36750 | G184: 13670 | H184: 15050 | I184: 15466 | J184: 12710 | K184: 13423 | L184: 13131 | M184: =SUM(K184,L184,G184,H184,I184,J184) -> 83450 | N184: 0.02
D185: 582 | E185: Carcharhiniformes | F185: 30483 | G185: 12550 | H185: 13690 | I185: 13872 | J185: 11709 | K185: 15467 | L185: 15840 | M185: =SUM(K185,L185,G185,H185,I185,J185) -> 83128 | N185: 0.02
D186: 1060 | E186: Saprolegniales | F186: 4763 | G186: 12101 | H186: 13232 | I186: 11333 | J186: 10136 | K186: 16862 | L186: 19055 | M186: =SUM(K186,L186,G186,H186,I186,J186) -> 82719 | N186: 0.02
D187: 686 | E187: Diaporthales | F187: 5114 | G187: 13090 | H187: 14488 | I187: 11511 | J187: 10273 | K187: 16213 | L187: 16819 | M187: =SUM(K187,L187,G187,H187,I187,J187) -> 82394 | N187: 0.02
D188: 71 | E188: Jiangellales | F188: 1217098 | G188: 12432 | H188: 14073 | I188: 10572 | J188: 10262 | K188: 17067 | L188: 17543 | M188: =SUM(K188,L188,G188,H188,I188,J188) -> 81949 | N188: 0.02
D189: 777 | E189: Trichosporonales | F189: 1851469 | G189: 12776 | H189: 14194 | I189: 10749 | J189: 9782 | K189: 16422 | L189: 17218 | M189: =SUM(K189,L189,G189,H189,I189,J189) -> 81141 | N189: 0.02
D190: 130 | E190: Thermales | F190: 68933 | G190: 11415 | H190: 13103 | I190: 10438 | J190: 9803 | K190: 17973 | L190: 18285 | M190: =SUM(K190,L190,G190,H190,I190,J190) -> 81017 | N190: 0.02
D191: 145 | E191: Bacteroidetes Order II. Incertae sedis | F191: 1100069 | G191: 10311 | H191: 11790 | I191: 10050 | J191: 9343 | K191: 19414 | L191: 19844 | M191: =SUM(K191,L191,G191,H191,I191,J191) -> 80752 | N191: 0.02
D192: 47 | E192: Bradymonadales | F192: 1779134 | G192: 9888 | H192: 11161 | I192: 8898 | J192: 8363 | K192: 20169 | L192: 20837 | M192: =SUM(K192,L192,G192,H192,I192,J192) -> 79316 | N192: 0.02
D193: 108 | E193: Oscillatoriales | F193: 1150 | G193: 10718 | H193: 11782 | I193: 11229 | J193: 10338 | K193: 16251 | L193: 16275 | M193: =SUM(K193,L193,G193,H193,I193,J193) -> 76593 | N193: 0.02
D194: 876 | E194: Caryophyllales | F194: 3524 | G194: 12591 | H194: 14081 | I194: 12300 | J194: 10314 | K194: 13491 | L194: 13762 | M194: =SUM(K194,L194,G194,H194,I194,J194) -> 76539 | N194: =(M194/$A$2)*100 -> 0.02
D195: 109 | E195: Chroococcales | F195: 1118 | G195: 10527 | H195: 11654 | I195: 11712 | J195: 9929 | K195: 15098 | L195: 14799 | M195: =SUM(K195,L195,G195,H195,I195,J195) -> 73719 | N195: 0.02
D196: 854 | E196: Myrtales | F196: 41944 | G196: 11296 | H196: 12522 | I196: 10952 | J196: 9442 | K196: 13772 | L196: 14577 | M196: =SUM(K196,L196,G196,H196,I196,J196) -> 72561 | N196: 0.02
D197: 778 | E197: Tremellales | F197: 5234 | G197: 11443 | H197: 12652 | I197: 11252 | J197: 9541 | K197: 13317 | L197: 13683 | M197: =SUM(K197,L197,G197,H197,I197,J197) -> 71888 | N197: 0.02
D198: 709 | E198: Onygenales | F198: 33183 | G198: 11040 | H198: 12327 | I198: 11334 | J198: 9636 | K198: 13228 | L198: 13974 | M198: =SUM(K198,L198,G198,H198,I198,J198) -> 71539 | N198: 0.02
D199: 290 | E199: Ixodida | F199: 6935 | G199: 11186 | H199: 12301 | I199: 9870 | J199: 8859 | K199: 13728 | L199: 14626 | M199: =SUM(K199,L199,G199,H199,I199,J199) -> 70570 | N199: 0.02
D200: 725 | E200: Botryosphaeriales | F200: 451869 | G200: 10330 | H200: 11531 | I200: 10129 | J200: 8898 | K200: 14464 | L200: 15199 | M200: =SUM(K200,L200,G200,H200,I200,J200) -> 70551 | N200: 0.02
... 1252 more rows

Sheet Species
A1: total_reads | C1: assigned_number | D1: species | E1: taxonomy_id | F1: sample02 | G1: sample03 | H1: sample08 | I1: sample09 | J1: sample10 | K1: sample11 | L1: total_sample_reads | M1: total_sample_reads_perc
A2: =SUM(L2:L78358) -> 300810690 | C2: 12581 | D2: Haliscomenobacter hydrossis | E2: 2350 | F2: 1030396 | G2: 1188892 | H2: 672123 | I2: 661655 | J2: 898911 | K2: 828985 | L2: =SUM(J2,K2,F2,G2,H2,I2) -> 5280962 | M2: =(L2/$A$2)*100 -> 1.76
C3: 1581 | D3: Sphingorhabdus lacus | E3: 392610 | F3: 861711 | G3: 1061273 | H3: 822933 | I3: 794812 | J3: 604813 | K3: 528502 | L3: =SUM(J3,K3,F3,G3,H3,I3) -> 4674044 | M3: 1.55
C4: 2984 | D4: Sphaerotilus natans | E4: 34103 | F4: 1038265 | G4: 1288009 | H4: 582051 | I4: 370225 | J4: 70216 | K4: 59549 | L4: =SUM(J4,K4,F4,G4,H4,I4) -> 3408315 | M4: 1.13
C5: 13006 | D5: Nitrospira defluvii | E5: 330214 | F5: 34236 | G5: 40549 | H5: 500649 | I5: 521349 | J5: 1057493 | K5: 1118389 | L5: =SUM(J5,K5,F5,G5,H5,I5) -> 3272665 | M5: 1.09
C6: 2477 | D6: Hydrogenophaga sp. SL48 | E6: 2806347 | F6: 122156 | G6: 151412 | H6: 1318367 | I6: 1142364 | J6: 48500 | K6: 40552 | L6: =SUM(J6,K6,F6,G6,H6,I6) -> 2823351 | M6: 0.94
C7: 3493 | D7: Thermomonas carbonis | E7: 1463158 | F7: 360701 | G7: 412811 | H7: 381849 | I7: 349991 | J7: 585692 | K7: 519909 | L7: =SUM(J7,K7,F7,G7,H7,I7) -> 2610953 | M7: 0.87
C8: 20356 | D8: Darwinula stevensoni | E8: 69355 | F8: 605388 | G8: 668679 | H8: 371351 | I8: 301489 | J8: 337527 | K8: 297129 | L8: =SUM(J8,K8,F8,G8,H8,I8) -> 2581563 | M8: 0.86
C9: 2152 | D9: Brevundimonas pondensis | E9: 2774189 | F9: 569639 | G9: 783372 | H9: 578482 | I9: 446209 | J9: 7852 | K9: 8498 | L9: =SUM(J9,K9,F9,G9,H9,I9) -> 2394052 | M9: 0.80
C10: 20685 | D10: Hyalella azteca | E10: 294128 | F10: 874616 | G10: 1031478 | H10: 148901 | I10: 110162 | J10: 41169 | K10: 36503 | L10: =SUM(J10,K10,F10,G10,H10,I10) -> 2242829 | M10: 0.75
C11: 7685 | D11: Microbacterium oxydans | E11: 82380 | F11: 347082 | G11: 424519 | H11: 579291 | I11: 713478 | J11: 6053 | K11: 5435 | L11: =SUM(J11,K11,F11,G11,H11,I11) -> 2075858 | M11: 0.69
C12: 7679 | D12: Microbacterium foliorum | E12: 104336 | F12: 510890 | G12: 726853 | H12: 289684 | I12: 339284 | J12: 9674 | K12: 9039 | L12: =SUM(J12,K12,F12,G12,H12,I12) -> 1885424 | M12: 0.63
C13: 1326 | D13: Tabrizicola piscis | E13: 2494374 | F13: 290905 | G13: 350035 | H13: 376463 | I13: 366390 | J13: 224652 | K13: 219878 | L13: =SUM(J13,K13,F13,G13,H13,I13) -> 1828323 | M13: 0.61
C14: 2442 | D14: Variovorax paradoxus | E14: 34073 | F14: 325692 | G14: 399882 | H14: 335424 | I14: 287340 | J14: 156724 | K14: 144146 | L14: =SUM(J14,K14,F14,G14,H14,I14) -> 1649208 | M14: 0.55
C15: 25898 | D15: Perca fluviatilis | E15: 8168 | F15: 30234 | G15: 19947 | H15: 1218556 | I15: 355237 | J15: 2564 | K15: 3029 | L15: =SUM(J15,K15,F15,G15,H15,I15) -> 1629567 | M15: 0.54
C16: 2490 | D16: Hydrogenophaga taeniospiralis | E16: 65656 | F16: 101201 | G16: 123928 | H16: 654987 | I16: 570851 | J16: 43212 | K16: 36534 | L16: =SUM(J16,K16,F16,G16,H16,I16) -> 1530713 | M16: 0.51
C17: 2978 | D17: Leptothrix cholodnii | E17: 34029 | F17: 427220 | G17: 522149 | H17: 246935 | I17: 168542 | J17: 83803 | K17: 73204 | L17: =SUM(J17,K17,F17,G17,H17,I17) -> 1521853 | M17: 0.51
C18: 1329 | D18: Gemmobacter fulva | E18: 2840474 | F18: 294217 | G18: 338933 | H18: 266026 | I18: 251962 | J18: 105073 | K18: 98486 | L18: =SUM(J18,K18,F18,G18,H18,I18) -> 1354697 | M18: 0.45
C19: 2965 | D19: Rhizobacter sp. AJA081-3 | E19: 2753607 | F19: 341019 | G19: 404685 | H19: 155631 | I19: 125512 | J19: 155382 | K19: 138258 | L19: =SUM(J19,K19,F19,G19,H19,I19) -> 1320487 | M19: 0.44
C20: 7653 | D20: Microbacterium sp. PAMC22086 | E20: 2861281 | F20: 190276 | G20: 230734 | H20: 367739 | I20: 456097 | J20: 2357 | K20: 1939 | L20: =SUM(J20,K20,F20,G20,H20,I20) -> 1249142 | M20: 0.42
C21: 2969 | D21: Rubrivivax gelatinosus | E21: 28068 | F21: 327609 | G21: 390454 | H21: 129472 | I21: 106131 | J21: 146091 | K21: 127941 | L21: =SUM(J21,K21,F21,G21,H21,I21) -> 1227698 | M21: 0.41
C22: 13299 | D22: uncultured bacterium | E22: 77133 | F22: 200810 | G22: 239638 | H22: 198792 | I22: 178441 | J22: 188618 | K22: 181672 | L22: =SUM(J22,K22,F22,G22,H22,I22) -> 1187971 | M22: 0.39
C23: 12424 | D23: Emticicia oligotrophica | E23: 312279 | F23: 119008 | G23: 137219 | H23: 439399 | I23: 386573 | J23: 47707 | K23: 42770 | L23: =SUM(J23,K23,F23,G23,H23,I23) -> 1172676 | M23: 0.39
C24: 936 | D24: Bosea sp. ANAM02 | E24: 2020412 | F24: 280776 | G24: 330006 | H24: 209882 | I24: 223243 | J24: 41426 | K24: 46251 | L24: =SUM(J24,K24,F24,G24,H24,I24) -> 1131584 | M24: 0.38
C25: 306 | D25: Shinella sp. HZN7 | E25: 879274 | F25: 368078 | G25: 411638 | H25: 157910 | I25: 149413 | J25: 21480 | K25: 21029 | L25: =SUM(J25,K25,F25,G25,H25,I25) -> 1129548 | M25: 0.38
C26: 1328 | D26: Gemmobacter aquarius | E26: 2169400 | F26: 205224 | G26: 241591 | H26: 230956 | I26: 225391 | J26: 111704 | K26: 106154 | L26: =SUM(J26,K26,F26,G26,H26,I26) -> 1121020 | M26: 0.37
C27: 3646 | D27: Pseudoxanthomonas mexicana | E27: 128785 | F27: 272183 | G27: 455214 | H27: 147218 | I27: 136170 | J27: 26899 | K27: 22391 | L27: =SUM(J27,K27,F27,G27,H27,I27) -> 1060075 | M27: 0.35
C28: 1364 | D28: Fuscovulum blasticum | E28: 1075 | F28: 182244 | G28: 214249 | H28: 202204 | I28: 194366 | J28: 108314 | K28: 106746 | L28: =SUM(J28,K28,F28,G28,H28,I28) -> 1008123 | M28: 0.34
C29: 12333 | D29: Kaistella jeonii | E29: 266749 | F29: 7985 | G29: 15685 | H29: 488593 | I29: 424479 | J29: 1897 | K29: 1925 | L29: =SUM(J29,K29,F29,G29,H29,I29) -> 940564 | M29: 0.31
C30: 310 | D30: Shinella zoogloeoides | E30: 352475 | F30: 287104 | G30: 296289 | H30: 133675 | I30: 128236 | J30: 14938 | K30: 14810 | L30: =SUM(J30,K30,F30,G30,H30,I30) -> 875052 | M30: 0.29
C31: 2445 | D31: Acidovorax sp. KKS102 | E31: 358220 | F31: 176894 | G31: 221278 | H31: 166952 | I31: 146840 | J31: 70421 | K31: 60064 | L31: =SUM(J31,K31,F31,G31,H31,I31) -> 842449 | M31: 0.28
C32: 2594 | D32: Limnohabitans sp. 63ED37-2 | E32: 1678128 | F32: 93138 | G32: 111894 | H32: 331031 | I32: 228636 | J32: 36576 | K32: 32983 | L32: =SUM(J32,K32,F32,G32,H32,I32) -> 834258 | M32: 0.28
C33: 2987 | D33: Ideonella dechloratans | E33: 36863 | F33: 246074 | G33: 294225 | H33: 93083 | I33: 72888 | J33: 64957 | K33: 57589 | L33: =SUM(J33,K33,F33,G33,H33,I33) -> 828816 | M33: 0.28
C34: 2446 | D34: Acidovorax sp. JMULE5 | E34: 2518343 | F34: 170344 | G34: 209778 | H34: 149856 | I34: 130593 | J34: 62740 | K34: 52877 | L34: =SUM(J34,K34,F34,G34,H34,I34) -> 776188 | M34: 0.26
C35: 2540 | D35: Ramlibacter tataouinensis | E35: 94132 | F35: 168589 | G35: 200796 | H35: 116065 | I35: 96401 | J35: 88530 | K35: 80015 | L35: =SUM(J35,K35,F35,G35,H35,I35) -> 750396 | M35: 0.25
C36: 2485 | D36: Hydrogenophaga sp. NH-16 | E36: 2184519 | F36: 57832 | G36: 76150 | H36: 285736 | I36: 250121 | J36: 16494 | K36: 13269 | L36: =SUM(J36,K36,F36,G36,H36,I36) -> 699602 | M36: 0.23
C37: 6273 | D37: Sorangium cellulosum | E37: 56 | F37: 80075 | G37: 93516 | H37: 75571 | I37: 72279 | J37: 187618 | K37: 184430 | L37: =SUM(J37,K37,F37,G37,H37,I37) -> 693489 | M37: 0.23
C38: 25820 | D38: Epinephelus fuscoguttatus | E38: 293821 | F38: 52755 | G38: 55122 | H38: 342469 | I38: 125898 | J38: 54841 | K38: 56846 | L38: =SUM(J38,K38,F38,G38,H38,I38) -> 687931 | M38: 0.23
C39: 307 | D39: Shinella sp. PSBB067 | E39: 2715959 | F39: 217598 | G39: 227839 | H39: 106945 | I39: 101405 | J39: 15959 | K39: 15463 | L39: =SUM(J39,K39,F39,G39,H39,I39) -> 685209 | M39: 0.23
C40: 2492 | D40: Hydrogenophaga pseudoflava | E40: 47421 | F40: 63066 | G40: 84575 | H40: 268700 | I40: 233076 | J40: 17751 | K40: 14219 | L40: =SUM(J40,K40,F40,G40,H40,I40) -> 681387 | M40: 0.23
C41: 3578 | D41: Stenotrophomonas rhizophila | E41: 216778 | F41: 174588 | G41: 195060 | H41: 140905 | I41: 125778 | J41: 18097 | K41: 17013 | L41: =SUM(J41,K41,F41,G41,H41,I41) -> 671441 | M41: 0.22
C42: 1332 | D42: Rhodobacter sp. N10 | E42: 2807096 | F42: 116356 | G42: 139544 | H42: 131957 | I42: 128510 | J42: 76571 | K42: 75942 | L42: =SUM(J42,K42,F42,G42,H42,I42) -> 668880 | M42: 0.22
C43: 236 | D43: Sinorhizobium sp. RAC02 | E43: 1842534 | F43: 205755 | G43: 218711 | H43: 101552 | I43: 95667 | J43: 16827 | K43: 16777 | L43: =SUM(J43,K43,F43,G43,H43,I43) -> 655289 | M43: 0.22
C44: 2478 | D44: Hydrogenophaga sp. PBL-H3 | E44: 434010 | F44: 83130 | G44: 100593 | H44: 212598 | I44: 184461 | J44: 37398 | K44: 33267 | L44: =SUM(J44,K44,F44,G44,H44,I44) -> 651447 | M44: 0.22
C45: 2565 | D45: Kinneretia sp. DAIF2 | E45: 2714952 | F45: 173673 | G45: 209112 | H45: 80805 | I45: 63936 | J45: 64366 | K45: 57798 | L45: =SUM(J45,K45,F45,G45,H45,I45) -> 649690 | M45: 0.22
C46: 2479 | D46: Hydrogenophaga sp. RAC07 | E46: 1842537 | F46: 74291 | G46: 89539 | H46: 212452 | I46: 182645 | J46: 36275 | K46: 31794 | L46: =SUM(J46,K46,F46,G46,H46,I46) -> 626996 | M46: 0.21
C47: 2566 | D47: Kinneretia sp. XES5 | E47: 2877940 | F47: 192820 | G47: 199715 | H47: 100295 | I47: 94744 | J47: 14477 | K47: 14299 | L47: =SUM(J47,K47,F47,G47,H47,I47) -> 616350 | M47: 0.20
C48: 23552 | D48: Canis lupus | E48: 9612 | F48: 96590 | G48: 106812 | H48: 105513 | I48: 87282 | J48: 105799 | K48: 109622 | L48: =SUM(J48,K48,F48,G48,H48,I48) -> 611618 | M48: 0.20
C49: 23898 | D49: Mus musculus | E49: 10090 | F49: 92601 | G49: 102331 | H49: 101573 | I49: 82048 | J49: 100984 | K49: 104177 | L49: =SUM(J49,K49,F49,G49,H49,I49) -> 583714 | M49: 0.19
C50: 1352 | D50: Rhodobacteraceae bacterium | E50: 1904441 | F50: 97416 | G50: 115139 | H50: 106221 | I50: 102560 | J50: 68466 | K50: 69219 | L50: =SUM(J50,K50,F50,G50,H50,I50) -> 559021 | M50: 0.19
C51: 2481 | D51: Hydrogenophaga sp. BPS33 | E51: 2651974 | F51: 74310 | G51: 89292 | H51: 176451 | I51: 151497 | J51: 34794 | K51: 30529 | L51: =SUM(J51,K51,F51,G51,H51,I51) -> 556873 | M51: 0.19
C52: 2563 | D52: Schlegelella thermodepolymerans | E52: 215580 | F52: 138156 | G52: 166566 | H52: 75136 | I52: 59135 | J52: 53787 | K52: 48221 | L52: =SUM(J52,K52,F52,G52,H52,I52) -> 541001 | M52: 0.18
C53: 3647 | D53: Pseudoxanthomonas japonensis | E53: 69284 | F53: 128309 | G53: 209274 | H53: 79905 | I53: 73196 | J53: 21963 | K53: 19236 | L53: =SUM(J53,K53,F53,G53,H53,I53) -> 531883 | M53: 0.18
C54: 3192 | D54: Burkholderiales bacterium | E54: 1891238 | F54: 122790 | G54: 144283 | H54: 62572 | I54: 52626 | J54: 72652 | K54: 66963 | L54: =SUM(J54,K54,F54,G54,H54,I54) -> 521886 | M54: 0.17
C55: 3494 | D55: Thermomonas aquatica | E55: 2202149 | F55: 77697 | G55: 92181 | H55: 79079 | I55: 71297 | J55: 103767 | K55: 91901 | L55: =SUM(J55,K55,F55,G55,H55,I55) -> 515922 | M55: 0.17
C56: 1298 | D56: Paracoccus aminovorans | E56: 34004 | F56: 120658 | G56: 190863 | H56: 81847 | I56: 82166 | J56: 19282 | K56: 19667 | L56: =SUM(J56,K56,F56,G56,H56,I56) -> 514483 | M56: 0.17
C57: 2500 | D57: Rhodoferax sediminis | E57: 2509614 | F57: 104725 | G57: 125051 | H57: 92905 | I57: 76555 | J57: 61403 | K57: 53640 | L57: =SUM(J57,K57,F57,G57,H57,I57) -> 514279 | M57: 0.17
C58: 26645 | D58: Danio rerio | E58: 7955 | F58: 79292 | G58: 87338 | H58: 100661 | I58: 75514 | J58: 84395 | K58: 86499 | L58: =SUM(J58,K58,F58,G58,H58,I58) -> 513699 | M58: 0.17
C59: 2966 | D59: Rhizobacter gummiphilus | E59: 946333 | F59: 133165 | G59: 158832 | H59: 66667 | I59: 51667 | J59: 53344 | K59: 48784 | L59: =SUM(J59,K59,F59,G59,H59,I59) -> 512459 | M59: 0.17
C60: 25899 | D60: Perca flavescens | E60: 8167 | F60: 10391 | G60: 7266 | H60: 378410 | I60: 108543 | J60: 1932 | K60: 2024 | L60: =SUM(J60,K60,F60,G60,H60,I60) -> 508566 | M60: 0.17
C61: 2448 | D61: Acidovorax sp. 1608163 | E61: 2478662 | F61: 81915 | G61: 100183 | H61: 141487 | I61: 121114 | J61: 33397 | K61: 29284 | L61: =SUM(J61,K61,F61,G61,H61,I61) -> 507380 | M61: 0.17
C62: 13009 | D62: Candidatus Nitrospira kreftii | E62: 2652173 | F62: 3637 | G62: 4184 | H62: 66840 | I62: 75625 | J62: 153824 | K62: 202002 | L62: =SUM(J62,K62,F62,G62,H62,I62) -> 506112 | M62: 0.17
C63: 3505 | D63: Lysobacter sp. HDW10 | E63: 2714936 | F63: 19808 | G63: 37166 | H63: 212070 | I63: 204535 | J63: 4495 | K63: 3853 | L63: =SUM(J63,K63,F63,G63,H63,I63) -> 481927 | M63: 0.16
C64: 24132 | D64: Homo sapiens | E64: 9606 | F64: 78308 | G64: 87053 | H64: 84125 | I64: 68588 | J64: 79766 | K64: 82737 | L64: =SUM(J64,K64,F64,G64,H64,I64) -> 480577 | M64: 0.16
C65: 26658 | D65: Cyprinus carpio | E65: 7962 | F65: 60457 | G65: 65625 | H65: 145348 | I65: 77326 | J65: 65097 | K65: 66576 | L65: =SUM(J65,K65,F65,G65,H65,I65) -> 480429 | M65: 0.16
C66: 12421 | D66: Runella slithyformis | E66: 106 | F66: 33124 | G66: 35526 | H66: 97144 | I66: 93958 | J66: 113783 | K66: 106106 | L66: =SUM(J66,K66,F66,G66,H66,I66) -> 479641 | M66: =(L66/$A$2)*100 -> 0.16
C67: 2480 | D67: Hydrogenophaga sp. BA0156 | E67: 2716225 | F67: 72713 | G67: 88163 | H67: 132862 | I67: 114311 | J67: 35406 | K67: 32083 | L67: =SUM(J67,K67,F67,G67,H67,I67) -> 475538 | M67: 0.16
C68: 13007 | D68: Nitrospira sp. | E68: 70125 | F68: 7205 | G68: 8183 | H68: 66015 | I68: 71335 | J68: 145037 | K68: 171170 | L68: =SUM(J68,K68,F68,G68,H68,I68) -> 468945 | M68: 0.16
C69: 3536 | D69: Stenotrophomonas maltophilia | E69: 40324 | F69: 93621 | G69: 130168 | H69: 84860 | I69: 76443 | J69: 41426 | K69: 39517 | L69: =SUM(J69,K69,F69,G69,H69,I69) -> 466035 | M69: 0.15
C70: 2491 | D70: Hydrogenophaga crassostreae | E70: 1763535 | F70: 49907 | G70: 58824 | H70: 164043 | I70: 140618 | J70: 25073 | K70: 21762 | L70: =SUM(J70,K70,F70,G70,H70,I70) -> 460227 | M70: 0.15
C71: 12422 | D71: Runella rosea | E71: 2259595 | F71: 35613 | G71: 39155 | H71: 96180 | I71: 90812 | J71: 101755 | K71: 95789 | L71: =SUM(J71,K71,F71,G71,H71,I71) -> 459304 | M71: 0.15
C72: 2484 | D72: Hydrogenophaga sp. PAMC20947 | E72: 2565558 | F72: 49917 | G72: 59987 | H72: 161186 | I72: 138311 | J72: 25687 | K72: 22395 | L72: =SUM(J72,K72,F72,G72,H72,I72) -> 457483 | M72: 0.15
C73: 2157 | D73: Brevundimonas diminuta | E73: 293 | F73: 113432 | G73: 219433 | H73: 63154 | I73: 51720 | J73: 3521 | K73: 3506 | L73: =SUM(J73,K73,F73,G73,H73,I73) -> 454766 | M73: 0.15
C74: 26098 | D74: Oryzias latipes | E74: 8090 | F74: 65644 | G74: 73286 | H74: 97225 | I74: 67917 | J74: 72651 | K74: 75019 | L74: =SUM(J74,K74,F74,G74,H74,I74) -> 451742 | M74: 0.15
C75: 20374 | D75: Macrobrachium nipponense | E75: 159736 | F75: 70405 | G75: 77726 | H75: 80487 | I75: 64451 | J75: 77332 | K75: 79161 | L75: =SUM(J75,K75,F75,G75,H75,I75) -> 449562 | M75: 0.15
C76: 25829 | D76: Plectropomus leopardus | E76: 160734 | F76: 44018 | G76: 47102 | H76: 187036 | I76: 76660 | J76: 44015 | K76: 45870 | L76: =SUM(J76,K76,F76,G76,H76,I76) -> 444701 | M76: 0.15
C77: 102 | D77: Rhizobium leguminosarum | E77: 384 | F77: 89803 | G77: 95950 | H77: 90327 | I77: 86681 | J77: 41560 | K77: 39102 | L77: =SUM(J77,K77,F77,G77,H77,I77) -> 443423 | M77: 0.15
C78: 2197 | D78: Candidatus Megaira endosymbiont of Mesostigma viride | E78: 2866314 | F78: 253 | G78: 146 | H78: 55959 | I78: 59490 | J78: 167835 | K78: 158277 | L78: =SUM(J78,K78,F78,G78,H78,I78) -> 441960 | M78: 0.15
C79: 2460 | D79: Acidovorax carolinensis | E79: 553814 | F79: 82554 | G79: 99499 | H79: 98121 | I79: 83339 | J79: 39372 | K79: 34236 | L79: =SUM(J79,K79,F79,G79,H79,I79) -> 437121 | M79: 0.15
C80: 1365 | D80: Cereibacter sphaeroides | E80: 1063 | F80: 76460 | G80: 89930 | H80: 79298 | I80: 77935 | J80: 55379 | K80: 57510 | L80: =SUM(J80,K80,F80,G80,H80,I80) -> 436512 | M80: 0.15
C81: 1344 | D81: Rhodobacter capsulatus | E81: 1061 | F81: 77168 | G81: 91206 | H81: 84693 | I81: 81431 | J81: 49499 | K81: 50217 | L81: =SUM(J81,K81,F81,G81,H81,I81) -> 434214 | M81: 0.14
C82: 2483 | D82: Hydrogenophaga sp. YM1 | E82: 2806262 | F82: 68991 | G82: 83412 | H82: 116097 | I82: 99443 | J82: 32003 | K82: 28736 | L82: =SUM(J82,K82,F82,G82,H82,I82) -> 428682 | M82: 0.14
C83: 2564 | D83: Schlegelella brevitalea | E83: 413882 | F83: 111404 | G83: 132808 | H83: 57466 | I83: 45254 | J83: 42726 | K83: 38461 | L83: =SUM(J83,K83,F83,G83,H83,I83) -> 428119 | M83: 0.14
C84: 1353 | D84: Rhodobacteraceae bacterium QY30 | E84: 2033435 | F84: 72091 | G84: 86400 | H84: 77570 | I84: 75884 | J84: 56311 | K84: 58756 | L84: =SUM(J84,K84,F84,G84,H84,I84) -> 427012 | M84: 0.14
C85: 23947 | D85: Acomys russatus | E85: 60746 | F85: 65680 | G85: 71970 | H85: 73482 | I85: 60589 | J85: 74789 | K85: 77389 | L85: =SUM(J85,K85,F85,G85,H85,I85) -> 423899 | M85: 0.14
C86: 2482 | D86: Hydrogenophaga sp. PBC | E86: 795665 | F86: 70261 | G86: 84715 | H86: 109418 | I86: 93838 | J86: 33652 | K86: 30117 | L86: =SUM(J86,K86,F86,G86,H86,I86) -> 422001 | M86: 0.14
C87: 2992 | D87: Paucibacter sp. KCTC 42545 | E87: 1768242 | F87: 128454 | G87: 152473 | H87: 44775 | I87: 35217 | J87: 32034 | K87: 28767 | L87: =SUM(J87,K87,F87,G87,H87,I87) -> 421720 | M87: 0.14
C88: 2423 | D88: Variovorax sp. PAMC 28711 | E88: 1795631 | F88: 59856 | G88: 80770 | H88: 125193 | I88: 112361 | J88: 22292 | K88: 20046 | L88: =SUM(J88,K88,F88,G88,H88,I88) -> 420518 | M88: 0.14
C89: 2447 | D89: Acidovorax sp. RAC01 | E89: 1842533 | F89: 81540 | G89: 100084 | H89: 83256 | I89: 71515 | J89: 34798 | K89: 30655 | L89: =SUM(J89,K89,F89,G89,H89,I89) -> 401848 | M89: 0.13
C90: 25902 | D90: Sander lucioperca | E90: 283035 | F90: 8445 | G90: 5794 | H90: 296349 | I90: 87104 | J90: 1827 | K90: 1936 | L90: =SUM(J90,K90,F90,G90,H90,I90) -> 401455 | M90: 0.13
C91: 184 | D91: Agrobacterium tumefaciens | E91: 358 | F91: 82199 | G91: 88529 | H91: 87540 | I91: 83999 | J91: 30921 | K91: 27763 | L91: =SUM(J91,K91,F91,G91,H91,I91) -> 400951 | M91: 0.13
C92: 12423 | D92: Runella sp. SP2 | E92: 2268026 | F92: 30024 | G92: 33539 | H92: 88957 | I92: 81902 | J92: 84793 | K92: 79852 | L92: =SUM(J92,K92,F92,G92,H92,I92) -> 399067 | M92: 0.13
C93: 25842 | D93: Cottoperca gobio | E93: 56716 | F93: 30250 | G93: 31163 | H93: 199862 | I93: 70918 | J93: 28374 | K93: 29886 | L93: =SUM(J93,K93,F93,G93,H93,I93) -> 390453 | M93: 0.13
C94: 24815 | D94: Apteryx mantelli | E94: 2696672 | F94: 60962 | G94: 66948 | H94: 64034 | I94: 53143 | J94: 68466 | K94: 70477 | L94: =SUM(J94,K94,F94,G94,H94,I94) -> 384030 | M94: 0.13
C95: 26618 | D95: Coregonus sp. 'balchen' | E95: 861768 | F95: 54365 | G95: 59739 | H95: 88360 | I95: 57778 | J95: 60438 | K95: 61800 | L95: =SUM(J95,K95,F95,G95,H95,I95) -> 382480 | M95: 0.13
C96: 2150 | D96: Brevundimonas naejangsanensis | E96: 588932 | F96: 87022 | G96: 157610 | H96: 63384 | I96: 52156 | J96: 10472 | K96: 10255 | L96: =SUM(J96,K96,F96,G96,H96,I96) -> 380899 | M96: 0.13
C97: 1371 | D97: Frigidibacter mobilis | E97: 1335048 | F97: 68643 | G97: 82297 | H97: 68900 | I97: 67436 | J97: 43882 | K97: 44594 | L97: =SUM(J97,K97,F97,G97,H97,I97) -> 375752 | M97: 0.12
C98: 26603 | D98: Salmo trutta | E98: 8032 | F98: 53749 | G98: 58584 | H98: 82645 | I98: 52974 | J98: 61254 | K98: 62864 | L98: =SUM(J98,K98,F98,G98,H98,I98) -> 372070 | M98: 0.12
C99: 2972 | D99: Methylibium petroleiphilum | E99: 105560 | F99: 96120 | G99: 115073 | H99: 42433 | I99: 34379 | J99: 43076 | K99: 38191 | L99: =SUM(J99,K99,F99,G99,H99,I99) -> 369272 | M99: 0.12
C100: 2496 | D100: Rhodoferax sp. BAB1 | E100: 2741720 | F100: 84930 | G100: 101024 | H100: 60891 | I100: 51124 | J100: 36114 | K100: 32285 | L100: =SUM(J100,K100,F100,G100,H100,I100) -> 366368 | M100: 0.12
C101: 3645 | D101: Pseudoxanthomonas suwonensis | E101: 314722 | F101: 82696 | G101: 127634 | H101: 52600 | I101: 48109 | J101: 27109 | K101: 24563 | L101: =SUM(J101,K101,F101,G101,H101,I101) -> 362711 | M101: 0.12
C102: 11891 | D102: Flavobacterium sp. KSM-R2A25 | E102: 2895947 | F102: 23190 | G102: 28438 | H102: 134019 | I102: 116209 | J102: 32211 | K102: 26589 | L102: =SUM(J102,K102,F102,G102,H102,I102) -> 360656 | M102: 0.12
C103: 305 | D103: Shinella sp. XGS7 | E103: 2877941 | F103: 103152 | G103: 121842 | H103: 39486 | I103: 32412 | J103: 32714 | K103: 29306 | L103: =SUM(J103,K103,F103,G103,H103,I103) -> 358912 | M103: 0.12
C104: 2501 | D104: Rhodoferax koreense | E104: 1842727 | F104: 84725 | G104: 101158 | H104: 57005 | I104: 47197 | J104: 35836 | K104: 32133 | L104: =SUM(J104,K104,F104,G104,H104,I104) -> 358054 | M104: 0.12
C105: 2541 | D105: Ramlibacter sp. H242 | E105: 2732511 | F105: 81719 | G105: 96350 | H105: 51976 | I105: 43135 | J105: 42676 | K105: 39465 | L105: =SUM(J105,K105,F105,G105,H105,I105) -> 355321 | M105: 0.12
C106: 25974 | D106: Lateolabrax maculatus | E106: 315492 | F106: 34093 | G106: 36740 | H106: 149731 | I106: 61946 | J106: 35340 | K106: 36350 | L106: =SUM(J106,K106,F106,G106,H106,I106) -> 354200 | M106: 0.12
C107: 2527 | D107: Comamonas aquatica | E107: 225991 | F107: 78732 | G107: 94220 | H107: 64459 | I107: 53540 | J107: 32844 | K107: 29413 | L107: =SUM(J107,K107,F107,G107,H107,I107) -> 353208 | M107: 0.12
C108: 26410 | D108: Sphaeramia orbicularis | E108: 375764 | F108: 49950 | G108: 54811 | H108: 79944 | I108: 51352 | J108: 55913 | K108: 58391 | L108: =SUM(J108,K108,F108,G108,H108,I108) -> 350361 | M108: 0.12
C109: 1296 | D109: Paracoccus yeei | E109: 147645 | F109: 77165 | G109: 103430 | H109: 59391 | I109: 58161 | J109: 25823 | K109: 25311 | L109: =SUM(J109,K109,F109,G109,H109,I109) -> 349281 | M109: 0.12
C110: 2106 | D110: Rhodospirillales bacterium | E110: 2026786 | F110: 20413 | G110: 23656 | H110: 49075 | I110: 49976 | J110: 99375 | K110: 105105 | L110: =SUM(J110,K110,F110,G110,H110,I110) -> 347600 | M110: 0.12
C111: 2993 | D111: Roseateles depolymerans | E111: 76731 | F111: 97115 | G111: 117272 | H111: 41009 | I111: 32631 | J111: 31201 | K111: 27878 | L111: =SUM(J111,K111,F111,G111,H111,I111) -> 347106 | M111: 0.12
C112: 2989 | D112: Mitsuaria sp. 7 | E112: 1658665 | F112: 90605 | G112: 109555 | H112: 43340 | I112: 34243 | J112: 35638 | K112: 32167 | L112: =SUM(J112,K112,F112,G112,H112,I112) -> 345548 | M112: 0.11
C113: 2997 | D113: Inhella inkyongensis | E113: 392593 | F113: 98994 | G113: 118267 | H113: 37511 | I113: 30000 | J113: 29984 | K113: 27153 | L113: =SUM(J113,K113,F113,G113,H113,I113) -> 341909 | M113: 0.11
C114: 11892 | D114: Flavobacterium sp. KSM-R2A30 | E114: 2897181 | F114: 23285 | G114: 28856 | H114: 126850 | I114: 108672 | J114: 29724 | K114: 24237 | L114: =SUM(J114,K114,F114,G114,H114,I114) -> 341624 | M114: 0.11
C115: 2421 | D115: Variovorax sp. HW608 | E115: 1034889 | F115: 72851 | G115: 89298 | H115: 62048 | I115: 53361 | J115: 33274 | K115: 30382 | L115: =SUM(J115,K115,F115,G115,H115,I115) -> 341214 | M115: 0.11
C116: 2542 | D116: Polaromonas sp. JS666 | E116: 296591 | F116: 72754 | G116: 86840 | H116: 58109 | I116: 48364 | J116: 37207 | K116: 33369 | L116: =SUM(J116,K116,F116,G116,H116,I116) -> 336643 | M116: 0.11
C117: 23662 | D117: Cervus elaphus | E117: 9860 | F117: 51982 | G117: 56818 | H117: 57626 | I117: 47531 | J117: 58107 | K117: 60728 | L117: =SUM(J117,K117,F117,G117,H117,I117) -> 332792 | M117: 0.11
C118: 25890 | D118: Etheostoma spectabile | E118: 54343 | F118: 8462 | G118: 6737 | H118: 241190 | I118: 70222 | J118: 2357 | K118: 2660 | L118: =SUM(J118,K118,F118,G118,H118,I118) -> 331628 | M118: 0.11
C119: 12373 | D119: Flavobacteriales bacterium | E119: 2021391 | F119: 10971 | G119: 11089 | H119: 36097 | I119: 32956 | J119: 125754 | K119: 114430 | L119: =SUM(J119,K119,F119,G119,H119,I119) -> 331297 | M119: 0.11
C120: 958 | D120: Nordella sp. HKS 07 | E120: 2712222 | F120: 12878 | G120: 13986 | H120: 53167 | I120: 66779 | J120: 102749 | K120: 81698 | L120: =SUM(J120,K120,F120,G120,H120,I120) -> 331257 | M120: 0.11
C121: 2461 | D121: Acidovorax avenae | E121: 80867 | F121: 73946 | G121: 88381 | H121: 56919 | I121: 47468 | J121: 31729 | K121: 29428 | L121: =SUM(J121,K121,F121,G121,H121,I121) -> 327871 | M121: 0.11
C122: 3717 | D122: Ahniella affigens | E122: 2021234 | F122: 130426 | G122: 119138 | H122: 15991 | I122: 12779 | J122: 24733 | K122: 24708 | L122: =SUM(J122,K122,F122,G122,H122,I122) -> 327775 | M122: 0.11
C123: 9993 | D123: Exiguobacterium profundum | E123: 307643 | F123: 58187 | G123: 68237 | H123: 65248 | I123: 63287 | J123: 36124 | K123: 36112 | L123: =SUM(J123,K123,F123,G123,H123,I123) -> 327195 | M123: 0.11
C124: 2497 | D124: Rhodoferax sp. AJA081-3 | E124: 2752316 | F124: 72485 | G124: 86391 | H124: 56553 | I124: 47315 | J124: 34453 | K124: 29947 | L124: =SUM(J124,K124,F124,G124,H124,I124) -> 327144 | M124: 0.11
C125: 3524 | D125: Lysobacter oculi | E125: 2698682 | F125: 62008 | G125: 125496 | H125: 53362 | I125: 51675 | J125: 16731 | K125: 15340 | L125: =SUM(J125,K125,F125,G125,H125,I125) -> 324612 | M125: 0.11
C126: 22071 | D126: Steromphala cineraria | E126: 216125 | F126: 50221 | G126: 55861 | H126: 56362 | I126: 46150 | J126: 54672 | K126: 56165 | L126: =SUM(J126,K126,F126,G126,H126,I126) -> 319431 | M126: 0.11
C127: 27057 | D127: Acipenser ruthenus | E127: 7906 | F127: 48733 | G127: 53584 | H127: 61540 | I127: 45232 | J127: 53062 | K127: 54745 | L127: =SUM(J127,K127,F127,G127,H127,I127) -> 316896 | M127: 0.11
C128: 2619 | D128: Verminephrobacter eiseniae | E128: 364317 | F128: 88503 | G128: 104157 | H128: 43782 | I128: 36747 | J128: 23205 | K128: 20468 | L128: =SUM(J128,K128,F128,G128,H128,I128) -> 316862 | M128: 0.11
C129: 22536 | D129: Crassostrea gigas | E129: 29159 | F129: 49844 | G129: 54854 | H129: 55535 | I129: 45503 | J129: 53927 | K129: 54736 | L129: =SUM(J129,K129,F129,G129,H129,I129) -> 314399 | M129: 0.10
C130: 2998 | D130: Aquabacterium olei | E130: 1296669 | F130: 84711 | G130: 101793 | H130: 43249 | I130: 32906 | J130: 27034 | K130: 24590 | L130: =SUM(J130,K130,F130,G130,H130,I130) -> 314283 | M130: =(L130/$A$2)*100 -> 0.10
C131: 26646 | D131: Danio aesculapii | E131: 1142201 | F131: 49569 | G131: 54357 | H131: 60914 | I131: 45328 | J131: 50611 | K131: 52652 | L131: =SUM(J131,K131,F131,G131,H131,I131) -> 313431 | M131: 0.10
C132: 2616 | D132: Alicycliphilus denitrificans | E132: 179636 | F132: 65701 | G132: 78474 | H132: 58127 | I132: 48623 | J132: 31836 | K132: 29526 | L132: =SUM(J132,K132,F132,G132,H132,I132) -> 312287 | M132: 0.10
C133: 25925 | D133: Sparus aurata | E133: 8175 | F133: 35903 | G133: 37909 | H133: 110201 | I133: 50104 | J133: 36631 | K133: 37775 | L133: =SUM(J133,K133,F133,G133,H133,I133) -> 308523 | M133: 0.10
C134: 1333 | D134: Rhodobacter sp. LPB0142 | E134: 1850250 | F134: 57719 | G134: 68846 | H134: 56922 | I134: 55835 | J134: 32512 | K134: 32773 | L134: =SUM(J134,K134,F134,G134,H134,I134) -> 304607 | M134: 0.10
C135: 2462 | D135: Acidovorax radicis | E135: 758826 | F135: 63428 | G135: 77426 | H135: 60488 | I135: 51899 | J135: 26941 | K135: 23286 | L135: =SUM(J135,K135,F135,G135,H135,I135) -> 303468 | M135: 0.10
C136: 278 | D136: Ensifer adhaerens | E136: 106592 | F136: 68278 | G136: 74350 | H136: 59515 | I136: 57322 | J136: 22578 | K136: 21021 | L136: =SUM(J136,K136,F136,G136,H136,I136) -> 303064 | M136: 0.10
C137: 25863 | D137: Pholis gunnellus | E137: 56726 | F137: 25581 | G137: 26994 | H137: 143329 | I137: 53866 | J137: 25074 | K137: 26318 | L137: =SUM(J137,K137,F137,G137,H137,I137) -> 301162 | M137: 0.10
C138: 2590 | D138: Ottowia sp. 27C | E138: 2816950 | F138: 58105 | G138: 69330 | H138: 64012 | I138: 58020 | J138: 26498 | K138: 24332 | L138: =SUM(J138,K138,F138,G138,H138,I138) -> 300297 | M138: 0.10
C139: 2502 | D139: Rhodoferax saidenbachensis | E139: 1484693 | F139: 60432 | G139: 71741 | H139: 59617 | I139: 48853 | J139: 31295 | K139: 27515 | L139: =SUM(J139,K139,F139,G139,H139,I139) -> 299453 | M139: 0.10
C140: 190 | D140: Agrobacterium vitis | E140: 373 | F140: 57815 | G140: 62029 | H140: 69164 | I140: 66611 | J140: 22335 | K140: 19947 | L140: =SUM(J140,K140,F140,G140,H140,I140) -> 297901 | M140: 0.10
C141: 1456 | D141: Sulfitobacter pseudonitzschiae | E141: 1402135 | F141: 51514 | G141: 61284 | H141: 59897 | I141: 57707 | J141: 34012 | K141: 32489 | L141: =SUM(J141,K141,F141,G141,H141,I141) -> 296903 | M141: 0.10
C142: 6289 | D142: Sandaracinus amylolyticus | E142: 927083 | F142: 34531 | G142: 38877 | H142: 29472 | I142: 26880 | J142: 80014 | K142: 83277 | L142: =SUM(J142,K142,F142,G142,H142,I142) -> 293051 | M142: 0.10
C143: 7699 | D143: Microbacterium hydrocarbonoxydans | E143: 273678 | F143: 76149 | G143: 108076 | H143: 45801 | I143: 54813 | J143: 2778 | K143: 2498 | L143: =SUM(J143,K143,F143,G143,H143,I143) -> 290115 | M143: 0.10
C144: 2558 | D144: Polaromonas naphthalenivorans | E144: 216465 | F144: 60613 | G144: 72195 | H144: 55107 | I144: 45681 | J144: 29594 | K144: 26280 | L144: =SUM(J144,K144,F144,G144,H144,I144) -> 289470 | M144: 0.10
C145: 22073 | D145: Phorcus lineatus | E145: 1620919 | F145: 46857 | G145: 51538 | H145: 51639 | I145: 42258 | J145: 48037 | K145: 48779 | L145: =SUM(J145,K145,F145,G145,H145,I145) -> 289108 | M145: 0.10
C146: 2528 | D146: Comamonas testosteroni | E146: 285 | F146: 63690 | G146: 76011 | H146: 52447 | I146: 43945 | J146: 26615 | K146: 23695 | L146: =SUM(J146,K146,F146,G146,H146,I146) -> 286403 | M146: 0.10
C147: 16449 | D147: Limnephilus rhombicus | E147: 692089 | F147: 44620 | G147: 49976 | H147: 52493 | I147: 42075 | J147: 47655 | K147: 48565 | L147: =SUM(J147,K147,F147,G147,H147,I147) -> 285384 | M147: 0.09
C148: 11977 | D148: Flavobacterium psychrophilum | E148: 96345 | F148: 28765 | G148: 34735 | H148: 100266 | I148: 80287 | J148: 18227 | K148: 15516 | L148: =SUM(J148,K148,F148,G148,H148,I148) -> 277796 | M148: 0.09
C149: 2973 | D149: Methylibium sp. Pch-M | E149: 2082386 | F149: 71192 | G149: 85289 | H149: 34192 | I149: 27422 | J149: 30866 | K149: 27638 | L149: =SUM(J149,K149,F149,G149,H149,I149) -> 276599 | M149: 0.09
C150: 26554 | D150: Myripristis murdjan | E150: 586833 | F150: 40415 | G150: 44379 | H150: 56213 | I150: 39340 | J150: 46716 | K150: 48177 | L150: =SUM(J150,K150,F150,G150,H150,I150) -> 275240 | M150: 0.09
C151: 3495 | D151: Thermomonas sp. HDW16 | E151: 2714945 | F151: 43045 | G151: 52813 | H151: 40850 | I151: 37380 | J151: 53015 | K151: 47656 | L151: =SUM(J151,K151,F151,G151,H151,I151) -> 274759 | M151: 0.09
C152: 16450 | D152: Limnephilus marmoratus | E152: 1271730 | F152: 43414 | G152: 48848 | H152: 48891 | I152: 39919 | J152: 46673 | K152: 46807 | L152: =SUM(J152,K152,F152,G152,H152,I152) -> 274552 | M152: 0.09
C153: 25839 | D153: Pseudochaenichthys georgianus | E153: 52239 | F153: 32465 | G153: 35446 | H153: 89707 | I153: 42999 | J153: 34337 | K153: 35765 | L153: =SUM(J153,K153,F153,G153,H153,I153) -> 270719 | M153: 0.09
C154: 26647 | D154: Danio kyathit | E154: 242068 | F154: 40728 | G154: 45335 | H154: 54276 | I154: 39715 | J154: 42643 | K154: 43547 | L154: =SUM(J154,K154,F154,G154,H154,I154) -> 266244 | M154: 0.09
C155: 4010 | D155: Pseudomonas aeruginosa | E155: 287 | F155: 36687 | G155: 44338 | H155: 73255 | I155: 65805 | J155: 22976 | K155: 22127 | L155: =SUM(J155,K155,F155,G155,H155,I155) -> 265188 | M155: 0.09
C156: 2451 | D156: Acidovorax sp. HDW3 | E156: 2714923 | F156: 42442 | G156: 50032 | H156: 66024 | I156: 65130 | J156: 19506 | K156: 17127 | L156: =SUM(J156,K156,F156,G156,H156,I156) -> 260261 | M156: 0.09
C157: 22827 | D157: Spirometra erinaceieuropaei | E157: 99802 | F157: 41269 | G157: 45069 | H157: 41765 | I157: 34994 | J157: 45976 | K157: 47643 | L157: =SUM(J157,K157,F157,G157,H157,I157) -> 256716 | M157: 0.09
C158: 26200 | D158: Gouania willdenowi | E158: 441366 | F158: 37319 | G158: 41280 | H158: 55637 | I158: 38218 | J158: 41100 | K158: 42808 | L158: =SUM(J158,K158,F158,G158,H158,I158) -> 256362 | M158: 0.09
C159: 2463 | D159: Acidovorax monticola | E159: 1926868 | F159: 56505 | G159: 68245 | H159: 46104 | I159: 38385 | J159: 24391 | K159: 22125 | L159: =SUM(J159,K159,F159,G159,H159,I159) -> 255755 | M159: 0.09
C160: 3266 | D160: Nitrosomonas ureae | E160: 44577 | F160: 48691 | G160: 54093 | H160: 27928 | I160: 31056 | J160: 46773 | K160: 47038 | L160: =SUM(J160,K160,F160,G160,H160,I160) -> 255579 | M160: 0.08
C161: 27014 | D161: Scleropages formosus | E161: 113540 | F161: 40397 | G161: 44338 | H161: 42640 | I161: 35046 | J161: 45543 | K161: 46882 | L161: =SUM(J161,K161,F161,G161,H161,I161) -> 254846 | M161: 0.08
C162: 937 | D162: Bosea sp. F3-2 | E162: 2599640 | F162: 57878 | G162: 66576 | H162: 45738 | I162: 47957 | J162: 17906 | K162: 18438 | L162: =SUM(J162,K162,F162,G162,H162,I162) -> 254493 | M162: 0.08
C163: 267 | D163: Sinorhizobium fredii | E163: 380 | F163: 51924 | G163: 55832 | H163: 49765 | I163: 48145 | J163: 24971 | K163: 23445 | L163: =SUM(J163,K163,F163,G163,H163,I163) -> 254082 | M163: 0.08
C164: 2184 | D164: Terricaulis silvestris | E164: 2686094 | F164: 19608 | G164: 23203 | H164: 25482 | I164: 24083 | J164: 83115 | K164: 77126 | L164: =SUM(J164,K164,F164,G164,H164,I164) -> 252617 | M164: 0.08
C165: 3497 | D165: Thermomonas brevis | E165: 215691 | F165: 39886 | G165: 47017 | H165: 45089 | I165: 39866 | J165: 42463 | K165: 37954 | L165: =SUM(J165,K165,F165,G165,H165,I165) -> 252275 | M165: 0.08
C166: 23715 | D166: Pipistrellus pipistrellus | E166: 59474 | F166: 39783 | G166: 44152 | H166: 42685 | I166: 35557 | J166: 44007 | K166: 45621 | L166: =SUM(J166,K166,F166,G166,H166,I166) -> 251805 | M166: 0.08
C167: 24512 | D167: Aquila chrysaetos | E167: 8962 | F167: 39248 | G167: 43054 | H167: 41732 | I167: 34923 | J167: 44833 | K167: 46538 | L167: =SUM(J167,K167,F167,G167,H167,I167) -> 250328 | M167: 0.08
C168: 23957 | D168: Onychomys torridus | E168: 38674 | F168: 38737 | G168: 42839 | H168: 43146 | I168: 35533 | J168: 44311 | K168: 45516 | L168: =SUM(J168,K168,F168,G168,H168,I168) -> 250082 | M168: 0.08
C169: 2592 | D169: Ottowia oryzae | E169: 2109914 | F169: 51355 | G169: 61729 | H169: 48061 | I169: 41002 | J169: 25108 | K169: 22695 | L169: =SUM(J169,K169,F169,G169,H169,I169) -> 249950 | M169: 0.08
C170: 12981 | D170: Gemmatimonas phototrophica | E170: 1379270 | F170: 64930 | G170: 77579 | H170: 17910 | I170: 16791 | J170: 36199 | K170: 36477 | L170: =SUM(J170,K170,F170,G170,H170,I170) -> 249886 | M170: 0.08
C171: 22551 | D171: Pecten maximus | E171: 6579 | F171: 38319 | G171: 42831 | H171: 42667 | I171: 35529 | J171: 43948 | K171: 45572 | L171: =SUM(J171,K171,F171,G171,H171,I171) -> 248866 | M171: 0.08
C172: 3520 | D172: Lysobacter enzymogenes | E172: 69 | F172: 45354 | G172: 57932 | H172: 41234 | I172: 36649 | J172: 34486 | K172: 33149 | L172: =SUM(J172,K172,F172,G172,H172,I172) -> 248804 | M172: 0.08
C173: 223 | D173: Neorhizobium galegae | E173: 399 | F173: 50555 | G173: 54086 | H173: 50611 | I173: 48399 | J173: 22835 | K173: 20825 | L173: =SUM(J173,K173,F173,G173,H173,I173) -> 247311 | M173: 0.08
C174: 22608 | D174: Gari tellinella | E174: 2589376 | F174: 39928 | G174: 43807 | H174: 42561 | I174: 35066 | J174: 41434 | K174: 42280 | L174: =SUM(J174,K174,F174,G174,H174,I174) -> 245076 | M174: 0.08
C175: 1295 | D175: Paracoccus zhejiangensis | E175: 1077935 | F175: 43869 | G175: 54605 | H175: 46840 | I175: 44857 | J175: 26946 | K175: 27948 | L175: =SUM(J175,K175,F175,G175,H175,I175) -> 245065 | M175: 0.08
C176: 15944 | D176: Selenia dentaria | E176: 934894 | F176: 37143 | G176: 41413 | H176: 45779 | I176: 36134 | J176: 41712 | K176: 42067 | L176: =SUM(J176,K176,F176,G176,H176,I176) -> 244248 | M176: 0.08
C177: 2449 | D177: Acidovorax sp. YS12 | E177: 2738413 | F177: 49000 | G177: 59087 | H177: 50239 | I177: 42204 | J177: 22616 | K177: 20521 | L177: =SUM(J177,K177,F177,G177,H177,I177) -> 243667 | M177: 0.08
C178: 7650 | D178: Microbacterium sp. CBA3102 | E178: 2603598 | F178: 64760 | G178: 87415 | H178: 38449 | I178: 46777 | J178: 3193 | K178: 2900 | L178: =SUM(J178,K178,F178,G178,H178,I178) -> 243494 | M178: 0.08
C179: 2503 | D179: Rhodoferax ferrireducens | E179: 192843 | F179: 52862 | G179: 62843 | H179: 42881 | I179: 36027 | J179: 25391 | K179: 22632 | L179: =SUM(J179,K179,F179,G179,H179,I179) -> 242636 | M179: 0.08
C180: 1275 | D180: Paracoccus sp. H4-D09 | E180: 2812658 | F180: 54064 | G180: 72551 | H180: 40463 | I180: 38711 | J180: 18415 | K180: 17874 | L180: =SUM(J180,K180,F180,G180,H180,I180) -> 242078 | M180: 0.08
C181: 6290 | D181: Minicystis rosea | E181: 888845 | F181: 30667 | G181: 35490 | H181: 24763 | I181: 22479 | J181: 62994 | K181: 62162 | L181: =SUM(J181,K181,F181,G181,H181,I181) -> 238555 | M181: 0.08
C182: 15679 | D182: Catocala fraxini | E182: 423510 | F182: 37395 | G182: 41508 | H182: 40703 | I182: 33019 | J182: 42335 | K182: 42990 | L182: =SUM(J182,K182,F182,G182,H182,I182) -> 237950 | M182: 0.08
C183: 1727 | D183: Sphingopyxis sp. FD7 | E183: 1914525 | F183: 42531 | G183: 53184 | H183: 52707 | I183: 47138 | J183: 21723 | K183: 19831 | L183: =SUM(J183,K183,F183,G183,H183,I183) -> 237114 | M183: 0.08
C184: 11976 | D184: Flavobacterium nackdongense | E184: 2547394 | F184: 19155 | G184: 24583 | H184: 83091 | I184: 72012 | J184: 19574 | K184: 16349 | L184: =SUM(J184,K184,F184,G184,H184,I184) -> 234764 | M184: 0.08
C185: 25872 | D185: Taurulus bubalis | E185: 61643 | F185: 22010 | G185: 23444 | H185: 96207 | I185: 39900 | J185: 24391 | K185: 25539 | L185: =SUM(J185,K185,F185,G185,H185,I185) -> 231491 | M185: 0.08
C186: 2450 | D186: Acidovorax sp. T1 | E186: 1858609 | F186: 48265 | G186: 58345 | H186: 46300 | I186: 39399 | J186: 20519 | K186: 18227 | L186: =SUM(J186,K186,F186,G186,H186,I186) -> 231055 | M186: 0.08
C187: 26204 | D187: Salarias fasciatus | E187: 181472 | F187: 35598 | G187: 39105 | H187: 42994 | I187: 31734 | J187: 39406 | K187: 41554 | L187: =SUM(J187,K187,F187,G187,H187,I187) -> 230391 | M187: 0.08
C188: 799 | D188: Rhodopseudomonas palustris | E188: 1076 | F188: 31901 | G188: 36828 | H188: 34131 | I188: 34043 | J188: 47370 | K188: 45766 | L188: =SUM(J188,K188,F188,G188,H188,I188) -> 230039 | M188: 0.08
C189: 2422 | D189: Variovorax sp. WDL1 | E189: 207745 | F189: 53445 | G189: 64770 | H189: 36168 | I189: 31039 | J189: 23222 | K189: 20750 | L189: =SUM(J189,K189,F189,G189,H189,I189) -> 229394 | M189: 0.08
C190: 1738 | D190: Sphingopyxis macrogoltabida | E190: 33050 | F190: 33216 | G190: 44275 | H190: 55849 | I190: 50442 | J190: 23144 | K190: 21870 | L190: =SUM(J190,K190,F190,G190,H190,I190) -> 228796 | M190: 0.08
C191: 2427 | D191: Variovorax sp. PAMC28562 | E191: 2762323 | F191: 42354 | G191: 52958 | H191: 52210 | I191: 45457 | J191: 18787 | K191: 16996 | L191: =SUM(J191,K191,F191,G191,H191,I191) -> 228762 | M191: 0.08
C192: 5079 | D192: Rheinheimera sp. F8 | E192: 1763998 | F192: 138645 | G192: 78138 | H192: 2717 | I192: 2399 | J192: 1127 | K192: 1066 | L192: =SUM(J192,K192,F192,G192,H192,I192) -> 224092 | M192: 0.07
C193: 1334 | D193: Rhodobacter sp. CZR27 | E193: 2033869 | F193: 37768 | G193: 45135 | H193: 43590 | I193: 42439 | J193: 26944 | K193: 27878 | L193: =SUM(J193,K193,F193,G193,H193,I193) -> 223754 | M193: 0.07
C194: 1301 | D194: Paracoccus denitrificans | E194: 266 | F194: 47431 | G194: 66882 | H194: 37938 | I194: 37233 | J194: 17221 | K194: 16986 | L194: =SUM(J194,K194,F194,G194,H194,I194) -> 223691 | M194: =(L194/$A$2)*100 -> 0.07
C195: 24322 | D195: Erithacus rubecula | E195: 37610 | F195: 36057 | G195: 40197 | H195: 35089 | I195: 29827 | J195: 39194 | K195: 41012 | L195: =SUM(J195,K195,F195,G195,H195,I195) -> 221376 | M195: 0.07
C196: 1740 | D196: Sphingopyxis fribergensis | E196: 1515612 | F196: 28607 | G196: 42680 | H196: 67729 | I196: 59162 | J196: 11308 | K196: 10343 | L196: =SUM(J196,K196,F196,G196,H196,I196) -> 219829 | M196: 0.07
C197: 16035 | D197: Calamotropha paludella | E197: 1371681 | F197: 33135 | G197: 37433 | H197: 39548 | I197: 32224 | J197: 38193 | K197: 38960 | L197: =SUM(J197,K197,F197,G197,H197,I197) -> 219493 | M197: 0.07
C198: 24513 | D198: Accipiter gentilis | E198: 8957 | F198: 33345 | G198: 36812 | H198: 37658 | I198: 31038 | J198: 39372 | K198: 40540 | L198: =SUM(J198,K198,F198,G198,H198,I198) -> 218765 | M198: 0.07
C199: 2185 | D199: Phenylobacterium zucineum | E199: 284016 | F199: 56867 | G199: 64044 | H199: 17711 | I199: 17207 | J199: 30400 | K199: 32075 | L199: =SUM(J199,K199,F199,G199,H199,I199) -> 218304 | M199: 0.07
C200: 4023 | D200: Pseudomonas putida | E200: 303 | F200: 40684 | G200: 46996 | H200: 36028 | I200: 31263 | J200: 32081 | K200: 31128 | L200: =SUM(J200,K200,F200,G200,H200,I200) -> 218180 | M200: 0.07
... 4300 more rows

Sheet Fish_Pathogens
A1: assigned_number | B1: species | C1: sample02 | D1: sample03 | E1: sample08 | F1: sample09 | G1: sample10 | H1: sample11 | I1: total_sample_reads | J1: total_sample_reads_perc | K1: disease_or_symptoms | L1: potential_candidates
A2: 11977 | B2: Flavobacterium psychrophilum | C2: 28765 | D2: 34735 | E2: 100266 | F2: 80287 | G2: 18227 | H2: 15516 | I2: =SUM(G2:H2) -> 33743 | J2: =(I2/300810690)*100 -> 0.01121735401 | K2: Bacterial Coldwater Disease | L2: salmonid freshwater fish
A3: 5425 | B3: Aeromonas veronii | C3: 4788 | D3: 5240 | E3: 41457 | F3: 38776 | G3: 7357 | H3: 6595 | I3: =SUM(G3:H3) -> 13952 | J3: =(I3/300810690)*100 -> 0.00463813304 | K3: aeromonas septicaemia | L3: Rainbow trout; Siberian sturgeon
A4: 11979 | B4: Flavobacterium branchiophilum | C4: 10406 | D4: 12285 | E4: 32249 | F4: 26043 | G4: 10426 | H4: 9113 | I4: =SUM(G4:H4) -> 19539 | J4: =(I4/300810690)*100 -> 0.006495447353 | K4: bacterial gill disease | L4: culture freshwater fish species
A5: 5426 | B5: Aeromonas hydrophila | C5: 5964 | D5: 6921 | E5: 17358 | F5: 56207 | G5: 6213 | H5: 6184 | I5: =SUM(G5:H5) -> 12397 | J5: 0.004121196624 | K5: motile aeromonas septicaemia | L5: freshwater fish
A6: 11986 | B6: Flavobacterium columnare | C6: 7492 | D6: 9045 | E6: 19969 | F6: 16256 | G6: 5438 | H6: 4786 | I6: =SUM(G6:H6) -> 10224 | J6: 0.003398815381 | K6: columnaris disease | L6: freshwater fish
A7: 5464 | B7: Aeromonas caviae | C7: 6717 | D7: 8887 | E7: 16659 | F7: 16909 | G7: 4394 | H7: 4225 | I7: =SUM(G7:H7) -> 8619 | J7: 0.002865257215 | K7: aeromonas septicaemia | L7: freshwater fish
A8: 5479 | B8: Aeromonas sobria | C8: 5928 | D8: 7591 | E8: 4099 | F8: 3057 | G8: 97 | H8: 63 | I8: =SUM(G8:H8) -> 160 | J8: 5.318959908e-05 | K8: aeromonas septicaemia | L8: Rainbow trout; Gizzard shad
A9: 5465 | B9: Aeromonas salmonicida | C9: 2733 | D9: 3082 | E9: 4453 | F9: 4045 | G9: 2935 | H9: 2853 | I9: =SUM(G9:H9) -> 5788 | J9: 0.001924133747 | K9: furunculosis | L9: salmonid freshwater fish; Brown trout
A10: 5562 | B10: Vibrio vulnificus | C10: 3544 | D10: 3803 | E10: 2975 | F10: 2516 | G10: 2941 | H10: 2822 | I10: =SUM(G10:H10) -> 5763 | J10: 0.001915822872 | K10: zoonotic pathogen causes septicema | L10: seafood and farmed fish
A11: 5504 | B11: Vibrio parahaemolyticus | C11: 2854 | D11: 2785 | E11: 2848 | F11: 2445 | G11: 2864 | H11: 2952 | I11: =SUM(G11:H11) -> 5816 | J11: 0.001933441927 | K11: zoonotic pathogen causes septicema | L11: seafood and farmed fish
A12: 5467 | B12: Aeromonas jandaei | C12: 1928 | D12: 2167 | E12: 3035 | F12: 3307 | G12: 1925 | H12: 1850 | I12: =SUM(G12:H12) -> 3775 | J12: 0.001254942103 | K12: aeromonas septicaemia | L12: farmed fish
A13: 5563 | B13: Vibrio fluvialis | C13: 2410 | D13: 2499 | E13: 1837 | F13: 1690 | G13: 2076 | H13: 2103 | I13: =SUM(G13:H13) -> 4179 | J13: 0.001389245841 | K13: zoonotic pathogen causes septicema | L13: seafood and farmed fish
A14: 5564 | B14: Vibrio cholerae | C14: 2213 | D14: 2465 | E14: 2100 | F14: 1744 | G14: 1897 | H14: 1811 | I14: =SUM(G14:H14) -> 3708 | J14: 0.001232668959 | K14: zoonotic pathogen causes septicema | L14: seafood and farmed fish
A15: 5565 | B15: Vibrio furnissii | C15: 1414 | D15: 1655 | E15: 1399 | F15: 1245 | G15: 1713 | H15: 1807 | I15: =SUM(G15:H15) -> 3520 | J15: 0.00117017118 | K15: zoonotic pathogen causes septicema | L15: seafood and farmed fish
A16: 4827 | B16: Edwardsiella tarda | C16: 979 | D16: 1056 | E16: 1248 | F16: 1057 | G16: 1578 | H16: 1527 | I16: =SUM(G16:H16) -> 3105 | J16: 0.001032210657 | K16: red pest disease | L16: Cultured fish; Striped bass; Channel catfish; Eels
A17: 5474 | B17: Aeromonas allosaccharophila | C17: 283 | D17: 287 | E17: 2823 | F17: 2593 | G17: 385 | H17: 335 | I17: =SUM(G17:H17) -> 720 | J17: 0.0002393531959 | K17: aeromonas septicaemia | L17: eel
A18: 5645 | B18: Photobacterium damselae | C18: 721 | D18: 879 | E18: 1306 | F18: 1079 | G18: 1301 | H18: 1204 | I18: =SUM(G18:H18) -> 2505 | J18: 0.0008327496606 | K18: disease outbreaks | L18: wild and farmed fish, mollusks, and crustaceans, and humans
A19: 5507 | B19: Vibrio alginolyticus | C19: 981 | D19: 972 | E19: 1574 | F19: 1360 | G19: 792 | H19: 777 | I19: =SUM(G19:H19) -> 1569 | J19: 0.000521590506 | K19: zoonotic pathogen causes septicema | L19: seafood and farmed fish
A20: 5569 | B20: Vibrio mimicus | C20: 1097 | D20: 1170 | E20: 945 | F20: 858 | G20: 1098 | H20: 1075 | I20: =SUM(G20:H20) -> 2173 | J20: 0.0007223812425 | K20: zoonotic pathogen causes septicema | L20: seafood and farmed fish
A21: 5670 | B21: Grimontia hollisae | C21: 944 | D21: 1078 | E21: 1027 | F21: 932 | G21: 794 | H21: 818 | I21: =SUM(G21:H21) -> 1612 | J21: 0.0005358852107 | K21: disease and intestinal issues | L21: coastal fish and humans
A22: 5580 | B22: Vibrio anguillarum | C22: 1132 | D22: 1120 | E22: 853 | F22: 662 | G22: 735 | H22: 784 | I22: =SUM(G22:H22) -> 1519 | J22: 0.0005049687563 | K22: zoonotic pathogen causes septicema | L22: seafood and farmed fish
A23: 10477 | B23: Lactococcus garvieae | C23: 491 | D23: 553 | E23: 1248 | F23: 1870 | G23: 549 | H23: 543 | I23: =SUM(G23:H23) -> 1092 | J23: 0.0003630190137 | K23: vascular endothelium | L23: marine fish in Far East, rainbow trout, Japanese yellowtail, grey mullet
A24: 4643 | B24: Yersinia ruckeri | C24: 1095 | D24: 1251 | E24: 748 | F24: 620 | G24: 726 | H24: 727 | I24: =SUM(G24:H24) -> 1453 | J24: 0.0004830280466 | K24: enteric redmouth disease | L24: Rainbow trout
A25: 5960 | B25: Piscirickettsia salmonis | C25: 722 | D25: 781 | E25: 803 | F25: 695 | G25: 960 | H25: 974 | I25: =SUM(G25:H25) -> 1934 | J25: 0.0006429292789 | K25: piscirickettsiosis | L25: farmed fish, coho salmon, rainbow trout
A26: 8362 | B26: Mycobacterium marinum | C26: 680 | D26: 802 | E26: 596 | F26: 657 | G26: 1015 | H26: 934 | I26: =SUM(G26:H26) -> 1949 | J26: 0.0006479158038 | K26: necrotizing granuloma like tuberculosis | L26: freshwater and marine fish
A27: 5508 | B27: Vibrio harveyi | C27: 511 | D27: 556 | E27: 701 | F27: 593 | G27: 791 | H27: 739 | I27: =SUM(G27:H27) -> 1530 | J27: 0.0005086255412 | K27: zoonotic pathogen causes septicema | L27: seafood and farmed fish
A28: 5581 | B28: Vibrio metschnikovii | C28: 595 | D28: 599 | E28: 677 | F28: 532 | G28: 722 | H28: 635 | I28: =SUM(G28:H28) -> 1357 | J28: 0.0004511142872 | K28: zoonotic pathogen causes septicema | L28: seafood and farmed fish
A29: 5585 | B29: Vibrio cincinnatiensis | C29: 456 | D29: 472 | E29: 642 | F29: 576 | G29: 651 | H29: 619 | I29: =SUM(G29:H29) -> 1270 | J29: 0.0004221924427 | K29: zoonotic pathogen causes septicema | L29: seafood and farmed fish
A30: 5416 | B30: Moritella marina | C30: 565 | D30: 608 | E30: 418 | F30: 394 | G30: 524 | H30: 531 | I30: =SUM(G30:H30) -> 1055 | J30: 0.0003507189189 | K30: winter ulcer disease | L30: Atlantic salmon
A31: 5967 | B31: Francisella philomiragia | C31: 542 | D31: 638 | E31: 424 | F31: 351 | G31: 418 | H31: 416 | I31: =SUM(G31:H31) -> 834 | J31: 0.0002772507852 | K31: francisellosis | L31: fish and shellfish
A32: 10417 | B32: Streptococcus parauberis | C32: 348 | D32: 400 | E32: 590 | F32: 631 | G32: 354 | H32: 318 | I32: =SUM(G32:H32) -> 672 | J32: 0.0002233963161 | K32: streptococcosis | L32: olive flounder, farmed fish, variety of fish species
A33: 5660 | B33: Aliivibrio salmonicida | C33: 362 | D33: 460 | E33: 468 | F33: 382 | G33: 445 | H33: 427 | I33: =SUM(G33:H33) -> 872 | J33: 0.000289883315 | K33: cold-water vibriosis | L33: salmonid fish
A34: 8044 | B34: Renibacterium salmoninarum | C34: 267 | D34: 343 | E34: 394 | F34: 403 | G34: 565 | H34: 539 | I34: =SUM(G34:H34) -> 1104 | J34: 0.0003670082337 | K34: bacterial kidney disease | L34: salmonid fish
A35: 6030 | B35: Pasteurella skyensis | C35: 251 | D35: 262 | E35: 431 | F35: 399 | G35: 229 | H35: 229 | I35: =SUM(G35:H35) -> 458 | J35: 0.0001522552274 | K35: disease outbreaks | L35: Scottish farmed salmon
A36: 15370 | B36: Streptobacillus moniliformis | C36: 140 | D36: 147 | E36: 257 | F36: 243 | G36: 188 | H36: 192 | I36: =SUM(G36:H36) -> 380 | J36: 0.0001263252978 | K36: disease outbreaks | L36: wild and farmed Atlantic salmon
A37: 10659 | B37: Candidatus Arthromitus | C37: 159 | D37: 199 | E37: 218 | F37: 180 | G37: 158 | H37: 167 | I37: =SUM(G37:H37) -> 325 | J37: 0.0001080413731 | K37: disease outbreaks | L37: rainbow trout
A38: 12128 | B38: Tenacibaculum soleae | C38: 24 | D38: 26 | E38: 35 | F38: 23 | G38: 14 | H38: 13 | I38: =SUM(G38:H38) -> 27 | J38: 8.975744845e-06 | K38: disease outbreaks | L38: sole, brill, and turbot
A39: 10660 | B39: Candidatus Arthromitus | C39: 2 | D39: 4 | E39: 25 | F39: 22 | G39: 33 | H39: 27 | I39: =SUM(G39:H39) -> 60 | J39: 1.994609965e-05 | K39: disease outbreaks | L39: rainbow trout
A40: 10461 | B40: Streptococcus phocae | C40: 3 | D40: 2 | E40: 6 | F40: 4 | G40: 8 | H40: 4 | I40: =SUM(G40:H40) -> 12 | J40: 3.989219931e-06 | K40: haemorrphages / disease outbreaks | L40: eels, yellowtail, Atlantic salmon, Chilean salmon
A41: 5620 | B41: Vibrio ordalii | C41: 2 | D41: 0 | E41: 2 | F41: 1 | G41: 6 | H41: 11 | I41: =SUM(G41:H41) -> 17 | J41: 5.651394902e-06 | K41: zoonotic pathogen causes septicema | L41: seafood and farmed fish
A42: 5481 | B42: Aeromonas bestiarum | C42: 2 | D42: 1 | E42: 2 | F42: 2 | G42: 6 | H42: 7 | I42: =SUM(G42:H42) -> 13 | J42: 4.321654925e-06 | K42: acute hemorrhagic septicemia or chronic skin ulcers | L42: carp, Mexican golden trout
